Workbook

Sheet 基本項目 (hidden)
B2: 年度 | C2: 今日現在 | D2: 年金所得 基準日 | E2: 未就学児 基準日 | G2: 納期 | H2: 納期限 | I2: 国保加入の届出月 | L2: 該当 | M2: =SUM(入力!$BR$106) -> 0 | O2: 国保加入の届出月
B3: 5 | C3: =TODAY() -> 2024-02-06 | D3: =VALUE("R"&基本項目!$B$3&".1.1") -> 2023-01-01 | E3: =VALUE("R"&基本項目!$B$3+1&".4.1") -> 2024-04-01 | G3: 第１期 | H3: 2023-07-31 | I3: 4 | J3: 5 | K3: 6 | L3: =IF($O$3="","",IF(OR($O$3=I3,$O$3=J3,$O$3=K3),"〇","")) ->  | M3: =IF(L3="〇",SUM($P$5),"") ->  | O3: =IF(入力!$CP$13="","",入力!$CP$13) -> 9 | P3: 月
G4: 第２期 | H4: 2023-08-31 | I4: 7 | L4: =IF($O$3="","",IF(L3="〇","〇",IF(OR($O$3=I4,$O$3=J4,$O$3=K4),"〇",""))) ->  | M4: =IF(L4="","",IF(AND(L4="〇",COUNTIF(L$3:L4,"〇")=1),SUM($P$5),SUM($P$6))) -> 
G5: 第３期 | H5: 2023-10-02 | I5: 8 | M5: =IF(L5="","",IF(AND(L5="〇",COUNTIF(L$3:L5,"〇")=1),SUM($P$5),SUM($P$6))) ->  | O5: 当初金額 | P5: =IF(COUNTIF($L$3:$L$10,"〇")=0,"",SUM($M$2)-ROUNDDOWN(SUM($M$2)/COUNTIF($L$3:$L$10,"〇"),-2)*(COUNTIF($L$3:$L$10,"〇")-1)) -> 0
G6: 第４期 | H6: 2023-10-31 | I6: 9 | L6: 〇 | M6: =IF(L6="","",IF(AND(L6="〇",COUNTIF(L$3:L6,"〇")=1),SUM($P$5),SUM($P$6))) -> 0 | O6: それ以外 | P6: =IF(COUNTIF($L$3:$L$10,"〇")=0,"",ROUNDDOWN(SUM($M$2)/COUNTIF($L$3:$L$10,"〇"),-2)) -> 0
G7: 第５期 | H7: 2023-11-30 | I7: 10 | L7: 〇 | M7: =IF(L7="","",IF(AND(L7="〇",COUNTIF(L$3:L7,"〇")=1),SUM($P$5),SUM($P$6))) -> 0
G8: 第６期 | H8: 2023-12-25 | I8: 11 | L8: 〇 | M8: =IF($O$3="","",IF(L8="","",IF(AND(L8="〇",COUNTIF(L$3:L8,"〇")=1),SUM($P$5),SUM($P$6)))) -> 0
G9: 第７期 | H9: 2024-01-31 | I9: 12 | L9: 〇 | M9: =IF(L9="","",IF(AND(L9="〇",COUNTIF(L$3:L9,"〇")=1),SUM($P$5),SUM($P$6))) -> 0
G10: 第８期 | H10: 2024-02-28 | I10: 1 | L10: 〇 | M10: =IF(L10="","",IF(AND(L10="〇",COUNTIF(L$3:L10,"〇")=1),SUM($P$5),SUM($P$6))) -> 0
G11: 随時期１ | H11: 2024-04-01 | I11: 2 | L11: =IF($O$3="","",IF(OR($O$3=I11,$O$3=J11,$O$3=K11),"〇","")) ->  | M11: =IF(L11="〇",SUM($M$2),"") -> 
G12: 随時期２ | H12: 2024-05-31 | I12: 3 | L12: =IF($O$3="","",IF(OR($O$3=I12,$O$3=J12,$O$3=K12),"〇","")) ->  | M12: =IF(L12="〇",SUM($M$2),"") -> 
G13: 注：４月末納期限は現額のみ，なので，３月に新規加入届出は，５月末となる。

Sheet 入力
B1: ="令和"&DBCS([1]基本項目!$B$3)&"年度 国民健康保険税 簡易計算（概算）" -> 令和５年度 国民健康保険税 簡易計算（概算）
B2: ="令和"&DBCS(基本項目!$B$3)&"年度 国民健康保険税 簡易計算（概算）" -> 令和５年度 国民健康保険税 簡易計算（概算） | BD2: １軽減判定となる世帯の所得金額 擬主，被保険者及び特定同一世帯所属者数の所得の合計額 ２特定同一世帯所属者 国民健康保険に加入したまま，７５歳を迎えることにより後期高齢者医療制度へ移行した方を，特定同一世帯所属者と言います。 ３特定世帯及び特定継続世帯の平等割額の軽減 特定同一世帯所属者になられたことによって，国保加入者が一人になる世帯は，特定同一世帯所属者になられた月から５年間，国民健康保険税のうち平等割額の２分の１が軽減されます（特定世帯）。また，５年を経過した後も３年間，平等割額の４分の１が軽減されます（特定継続世帯）。
D3: 下の被保険者に入っていない擬主及び特定同一世帯所属者の総所得金額
D4: 下の被保険者に入っていない特定同一世帯所属者の人数 | AL4: =IF(AU3="","",IF(AU4="","人数→","")) -> 
D5: 世帯の軽減判定所得合計 ＝ 擬主 ＋ 被保険者 ＋ 特定同一世帯所属者 | AU5: =SUM(GD31,AU3) -> 0
D6: 軽減判定人数 | P6: =IF(SUM($AU$4,$GD$32)=0,0,SUM($AU$4,$GD$32)) -> 0 | W6: 軽減判定結果 ⇒ | AU6: =IF(国民健康保険税軽減早見表H26から!$AN$20="","",国民健康保険税軽減早見表H26から!$AN$20) -> 
ET11: １２カ月すべての場合「○」は入力しなくてＯＫ 注：該当月数を指定する場合のみ「○」を入力
D12: 平等割額の軽減特例措置 国保被保険者が後期高齢者医療への移行により，残る世帯員が国保単身世帯になった場合，世帯にかかる平等割額を減額する。 H24まで：1/2減額(5年間)，H25から：1/2減額(5年間)，6年目から1/4減額(3年間延長) | CP12: 国保加入の届出月 | DJ12: =IF(SUM(AY18:BE27)=0,"","該当あれば 入力") -> 
CP13: 9 | CX13: 月
DJ14: =IF(DJ12="","","⇓") -> 
C15: 【被保険者の入力】
D16: 氏 名 | K16: 生年月日 | R16: 年齢 | U16: 年齢 直接 入力 | X16: 給与収入 | AE16: 給与所得 | AL16: 所得 金額 調整 控除 | AO16: 非自発的失業 | AR16: 非自発的失業 該当 30/100所得 | AY16: 公的年金収入 | BF16: 公的年金所得 | BM16: その他所得 | BT16: 給与収入の内 専従者 給与分収入額 | CA16: 純繰越 ﾏｲﾅｽ入力 | CH16: 雑繰越 ﾏｲﾅｽ入力 | CO16: 分離所得 特別控除前 | CV16: 分離所得 特別控除額 ﾌﾟﾗｽ入力 | DC16: 国保税 総所得金額 | DJ16: 年金所得に係る雑所得以外の 合計所得金額 | EO16: 給与 OR 年金 | ET16: 月途中の加入は該当するが，月途中に抜ける場合はその月は非該当 | GD16: 該当 月数 | GH16: 世帯 月数 | GL16: 障害 | GT16: 該当月判定用（介護） | ID16: 介護 該当 | IH16: 国保 該当 | IN16: 該当月判定用（後期） | JX16: 後期 該当 | KB16: 国保 該当 | KH16: 該当月判定用（修正後）介護 | LR16: 介護 該当 | LV16: 国保 該当 | LZ16: 障害 | ME16: 該当月判定用（修正後）後期 | NO16: 後期 該当 | NS16: 国保 該当 | NW16: 障害 | OB16: 軽減判定用所得計算
ET17: 4 | EW17: 5 | EZ17: 6 | FC17: 7 | FF17: 8 | FI17: 9 | FL17: 10 | FO17: 11 | FR17: 12 | FU17: 1 | FX17: 2 | GA17: 3 | GT17: 4 | GW17: 5 | GZ17: 6 | HC17: 7 | HF17: 8 | HI17: 9 | HL17: 10 | HO17: 11 | HR17: 12 | HU17: 1 | HX17: 2 | IA17: 3 | ID17: 月数計 | IH17: 月数計 | IN17: 4 | IQ17: 5 | IT17: 6 | IW17: 7 | IZ17: 8 | JC17: 9 | JF17: 10 | JI17: 11 | JL17: 12 | JO17: 1 | JR17: 2 | JU17: 3 | JX17: 月数計 | KB17: 月数計 | KH17: 4 | KK17: 5 | KN17: 6 | KQ17: 7 | KT17: 8 | KW17: 9 | KZ17: 10 | LC17: 11 | LF17: 12 | LI17: 1 | LL17: 2 | LO17: 3 | LR17: 月数計 | LV17: 月数計 | ME17: 4 | MH17: 5 | MK17: 6 | MN17: 7 | MQ17: 8 | MT17: 9 | MW17: 10 | MZ17: 11 | NC17: 12 | NF17: 1 | NI17: 2 | NL17: 3 | NO17: 月数計 | NS17: 月数計 | OB17: 4 | OE17: 5 | OH17: 6 | OK17: 7 | ON17: 8 | OQ17: 9 | OT17: 10 | OW17: 11 | OZ17: 12 | PC17: 1 | PF17: 2 | PI17: 3
B18: 1 | R18: =IF(AND($U18="",$K18=""),"",IF($U18="",所得計算!$I6,$U18)) ->  | AE18: =IF(所得計算!AI$4="","",所得計算!AI$4) ->  | AR18: =IF($AE18="","",IF($AO18=1,ROUNDDOWN(SUM($AE18)*0.3,0),"")) ->  | BF18: =IF(所得計算!AI$23="","",所得計算!AI$23) ->  | DC18: =IF(R18="","",IF(AO18=1,SUM(AR18,BF18,BM18,CA18,CO18)-SUM(CV18),SUM(AE18,BF18,BM18,CA18,CO18)-SUM(CV18))) ->  | DQ18: =IF(AND(D18<>"",K18="",U18=""),"生年月日又は年齢",IF(AND(D18="",OR(K18<>"",U18<>"")),"氏名は必要","")) ->  | DY18: =IF(OR(AND(SUM($AL18)=1,SUM($X18)<=8500000),AND(SUM($AL18)=1,SUM($X18)>8500000,SUM($BF18)>0)),"所得金額調整控除１？",IF(OR(AND(SUM($AL18)=2,OR(SUM(所得計算!$BE$5:$BE$15)=0,SUM($BF18)=0)),AND(SUM($AL18)=2,OR(SUM($X18)>8500000,SUM($BF18)=0))),"所得金額調整控除２？",IF(AND(SUM($AL18)=3,OR(SUM($X18)<=8500000,SUM($BF18)=0)),"所得金額調整控除３？",IF(AND($AL18="",OR(SUM($X18)>8500000,AND(SUM(所得計算!$BE$5:$BE$15)>0,SUM($BF18)>0))),"所得金額調整控除サイン不要？","")))) ->  | EL18: =SUM(DC18,$AU$3,CH18,CV18)-SUM(所得計算!$AT$4) -> 0 | EO18: =IF(OR(SUM(AE18)>0,SUM(BF18)>0),1,"") ->  | ER18: 1 | GD18: =IF(D18="","",IF(COUNTIF(ET18:GC18,"○")=0,12,COUNTIF(ET18:GC18,"○"))) ->  | GH18: =IF(SUM(GD18:GG27)=0,"",IF(MAX(GD18:GG27)>=12,12,SUM(ET28:GC28))) ->  | GO18: =IF($GL18="","",IF(HLOOKUP($GL18,$GT$17:$IC$27,2,FALSE)>=65,"","65未到達")) ->  | GT18: =IF($R18="","",IF($U18="",IF(EOMONTH(VALUE("R"&基本項目!$B$3&"."&ET$17&".1"),0)<$K18,"",DATEDIF($K18-1,EOMONTH(VALUE("R"&基本項目!$B$3&"."&ET$17&".1")-1,1),"Y")),$U18)) ->  | GW18: =IF($R18="","",IF($U18="",IF(EOMONTH(VALUE("R"&基本項目!$B$3&"."&EW$17&".1"),0)<$K18,"",DATEDIF($K18-1,EOMONTH(VALUE("R"&基本項目!$B$3&"."&EW$17&".1")-1,1),"Y")),$U18)) ->  | GZ18: =IF($R18="","",IF($U18="",IF(EOMONTH(VALUE("R"&基本項目!$B$3&"."&EZ$17&".1"),0)<$K18,"",DATEDIF($K18-1,EOMONTH(VALUE("R"&基本項目!$B$3&"."&EZ$17&".1")-1,1),"Y")),$U18)) ->  | HC18: =IF($R18="","",IF($U18="",IF(EOMONTH(VALUE("R"&基本項目!$B$3&"."&FC$17&".1"),0)<$K18,"",DATEDIF($K18-1,EOMONTH(VALUE("R"&基本項目!$B$3&"."&FC$17&".1")-1,1),"Y")),$U18)) ->  | HF18: =IF($R18="","",IF($U18="",IF(EOMONTH(VALUE("R"&基本項目!$B$3&"."&FF$17&".1"),0)<$K18,"",DATEDIF($K18-1,EOMONTH(VALUE("R"&基本項目!$B$3&"."&FF$17&".1")-1,1),"Y")),$U18)) ->  | HI18: =IF($R18="","",IF($U18="",IF(EOMONTH(VALUE("R"&基本項目!$B$3&"."&FI$17&".1"),0)<$K18,"",DATEDIF($K18-1,EOMONTH(VALUE("R"&基本項目!$B$3&"."&FI$17&".1")-1,1),"Y")),$U18)) ->  | HL18: =IF($R18="","",IF($U18="",IF(EOMONTH(VALUE("R"&基本項目!$B$3&"."&FL$17&".1"),0)<$K18,"",DATEDIF($K18-1,EOMONTH(VALUE("R"&基本項目!$B$3&"."&FL$17&".1")-1,1),"Y")),$U18)) ->  | HO18: =IF($R18="","",IF($U18="",IF(EOMONTH(VALUE("R"&基本項目!$B$3&"."&FO$17&".1"),0)<$K18,"",DATEDIF($K18-1,EOMONTH(VALUE("R"&基本項目!$B$3&"."&FO$17&".1")-1,1),"Y")),$U18)) ->  | HR18: =IF($R18="","",IF($U18="",IF(EOMONTH(VALUE("R"&基本項目!$B$3&"."&FR$17&".1"),0)<$K18,"",DATEDIF($K18-1,EOMONTH(VALUE("R"&基本項目!$B$3&"."&FR$17&".1")-1,1),"Y")),$U18)) ->  | HU18: =IF($R18="","",IF($U18="",IF(EOMONTH(VALUE("R"&基本項目!$B$3+1&"."&FU$17&".1"),0)<$K18,"",DATEDIF($K18-1,EOMONTH(VALUE("R"&基本項目!$B$3+1&"."&FU$17&".1")-1,1),"Y")),$U18)) ->  | HX18: =IF($R18="","",IF($U18="",IF(EOMONTH(VALUE("R"&基本項目!$B$3+1&"."&FX$17&".1"),0)<$K18,"",DATEDIF($K18-1,EOMONTH(VALUE("R"&基本項目!$B$3+1&"."&FX$17&".1")-1,1),"Y")),$U18)) ->  | IA18: =IF($R18="","",IF($U18="",IF(EOMONTH(VALUE("R"&基本項目!$B$3+1&"."&GA$17&".1"),0)<$K18,"",DATEDIF($K18-1,EOMONTH(VALUE("R"&基本項目!$B$3+1&"."&GA$17&".1")-1,1),"Y")),$U18)) ->  | ID18: =IF($R18="","",SUMPRODUCT(($GT18:$IC18<65)*($GT18:$IC18>=40))) ->  | IH18: =IF($R18="","",COUNTIF($GT18:$IC18,"<75")) ->  | IN18: =IF($R18="","",IF($U18="",IF(EOMONTH(VALUE("R"&基本項目!$B$3&"."&ET$17&".1"),0)<$K18,"",DATEDIF($K18,EOMONTH(VALUE("R"&基本項目!$B$3&"."&ET$17&".1")-1,1),"Y")),$U18)) ->  | IQ18: =IF($R18="","",IF($U18="",IF(EOMONTH(VALUE("R"&基本項目!$B$3&"."&EW$17&".1"),0)<$K18,"",DATEDIF($K18,EOMONTH(VALUE("R"&基本項目!$B$3&"."&EW$17&".1")-1,1),"Y")),$U18)) ->  | IT18: =IF($R18="","",IF($U18="",IF(EOMONTH(VALUE("R"&基本項目!$B$3&"."&EZ$17&".1"),0)<$K18,"",DATEDIF($K18,EOMONTH(VALUE("R"&基本項目!$B$3&"."&EZ$17&".1")-1,1),"Y")),$U18)) ->  | IW18: =IF($R18="","",IF($U18="",IF(EOMONTH(VALUE("R"&基本項目!$B$3&"."&FC$17&".1"),0)<$K18,"",DATEDIF($K18,EOMONTH(VALUE("R"&基本項目!$B$3&"."&FC$17&".1")-1,1),"Y")),$U18)) ->  | IZ18: =IF($R18="","",IF($U18="",IF(EOMONTH(VALUE("R"&基本項目!$B$3&"."&FF$17&".1"),0)<$K18,"",DATEDIF($K18,EOMONTH(VALUE("R"&基本項目!$B$3&"."&FF$17&".1")-1,1),"Y")),$U18)) ->  | JC18: =IF($R18="","",IF($U18="",IF(EOMONTH(VALUE("R"&基本項目!$B$3&"."&FI$17&".1"),0)<$K18,"",DATEDIF($K18,EOMONTH(VALUE("R"&基本項目!$B$3&"."&FI$17&".1")-1,1),"Y")),$U18)) ->  | JF18: =IF($R18="","",IF($U18="",IF(EOMONTH(VALUE("R"&基本項目!$B$3&"."&FL$17&".1"),0)<$K18,"",DATEDIF($K18,EOMONTH(VALUE("R"&基本項目!$B$3&"."&FL$17&".1")-1,1),"Y")),$U18)) ->  | JI18: =IF($R18="","",IF($U18="",IF(EOMONTH(VALUE("R"&基本項目!$B$3&"."&FO$17&".1"),0)<$K18,"",DATEDIF($K18,EOMONTH(VALUE("R"&基本項目!$B$3&"."&FO$17&".1")-1,1),"Y")),$U18)) ->  | JL18: =IF($R18="","",IF($U18="",IF(EOMONTH(VALUE("R"&基本項目!$B$3&"."&FR$17&".1"),0)<$K18,"",DATEDIF($K18,EOMONTH(VALUE("R"&基本項目!$B$3&"."&FR$17&".1")-1,1),"Y")),$U18)) ->  | JO18: =IF($R18="","",IF($U18="",IF(EOMONTH(VALUE("R"&基本項目!$B$3+1&"."&FU$17&".1"),0)<$K18,"",DATEDIF($K18,EOMONTH(VALUE("R"&基本項目!$B$3+1&"."&FU$17&".1")-1,1),"Y")),$U18)) ->  | JR18: =IF($R18="","",IF($U18="",IF(EOMONTH(VALUE("R"&基本項目!$B$3+1&"."&FX$17&".1"),0)<$K18,"",DATEDIF($K18,EOMONTH(VALUE("R"&基本項目!$B$3+1&"."&FX$17&".1")-1,1),"Y")),$U18)) ->  | JU18: =IF($R18="","",IF($U18="",IF(EOMONTH(VALUE("R"&基本項目!$B$3+1&"."&GA$17&".1"),0)<$K18,"",DATEDIF($K18,EOMONTH(VALUE("R"&基本項目!$B$3+1&"."&GA$17&".1")-1,1),"Y")),$U18)) ->  | JX18: =IF($R18="","",COUNTIF($IN18:$JW18,">=75")) ->  | KB18: =IF($R18="","",COUNTIF($IN18:$JW18,"<75")) ->  | KH18: =IF(SUM($GD18)=12,GT18,IF(SUM($GD18)=0,"",IF(ET18="","",GT18))) ->  | KK18: =IF(SUM($GD18)=12,GW18,IF(SUM($GD18)=0,"",IF(EW18="","",GW18))) ->  | KN18: =IF(SUM($GD18)=12,GZ18,IF(SUM($GD18)=0,"",IF(EZ18="","",GZ18))) ->  | KQ18: =IF(SUM($GD18)=12,HC18,IF(SUM($GD18)=0,"",IF(FC18="","",HC18))) ->  | KT18: =IF(SUM($GD18)=12,HF18,IF(SUM($GD18)=0,"",IF(FF18="","",HF18))) ->  | KW18: =IF(SUM($GD18)=12,HI18,IF(SUM($GD18)=0,"",IF(FI18="","",HI18))) ->  | KZ18: =IF(SUM($GD18)=12,HL18,IF(SUM($GD18)=0,"",IF(FL18="","",HL18))) ->  | LC18: =IF(SUM($GD18)=12,HO18,IF(SUM($GD18)=0,"",IF(FO18="","",HO18))) ->  | LF18: =IF(SUM($GD18)=12,HR18,IF(SUM($GD18)=0,"",IF(FR18="","",HR18))) ->  | LI18: =IF(SUM($GD18)=12,HU18,IF(SUM($GD18)=0,"",IF(FU18="","",HU18))) ->  | LL18: =IF(SUM($GD18)=12,HX18,IF(SUM($GD18)=0,"",IF(FX18="","",HX18))) ->  | LO18: =IF(SUM($GD18)=12,IA18,IF(SUM($GD18)=0,"",IF(GA18="","",IA18))) ->  | LR18: =IF($R18="","",SUMPRODUCT(($KH18:$LQ18<65)*($KH18:$LQ18>=40))) ->  | LV18: =IF($R18="","",COUNTIF($KH18:$LQ18,"<75")) ->  | LZ18: =IF(GL18="","",IF(AND(GL18>=1,GL18<=3),GL18+12,GL18)) ->  | ME18: =IF(SUM($GD18)=12,IN18,IF(SUM($GD18)=0,"",IF(ET18="","",IN18))) ->  | MH18: =IF(SUM($GD18)=12,IQ18,IF(SUM($GD18)=0,"",IF(EW18="","",IQ18))) ->  | MK18: =IF(SUM($GD18)=12,IT18,IF(SUM($GD18)=0,"",IF(EZ18="","",IT18))) ->  | MN18: =IF(SUM($GD18)=12,IW18,IF(SUM($GD18)=0,"",IF(FC18="","",IW18))) ->  | MQ18: =IF(SUM($GD18)=12,IZ18,IF(SUM($GD18)=0,"",IF(FF18="","",IZ18))) ->  | MT18: =IF(SUM($GD18)=12,JC18,IF(SUM($GD18)=0,"",IF(FI18="","",JC18))) ->  | MW18: =IF(SUM($GD18)=12,JF18,IF(SUM($GD18)=0,"",IF(FL18="","",JF18))) ->  | MZ18: =IF(SUM($GD18)=12,JI18,IF(SUM($GD18)=0,"",IF(FO18="","",JI18))) ->  | NC18: =IF(SUM($GD18)=12,JL18,IF(SUM($GD18)=0,"",IF(FR18="","",JL18))) ->  | NF18: =IF(SUM($GD18)=12,JO18,IF(SUM($GD18)=0,"",IF(FU18="","",JO18))) ->  | NI18: =IF(SUM($GD18)=12,JR18,IF(SUM($GD18)=0,"",IF(FX18="","",JR18))) ->  | NL18: =IF(SUM($GD18)=12,JU18,IF(SUM($GD18)=0,"",IF(GA18="","",JU18))) ->  | NO18: =IF($R18="","",COUNTIF($ME18:$NN18,">=75")) ->  | NS18: =IF($R18="","",COUNTIF($ME18:$NN18,"<75")) ->  | NW18: =IF(GL18="","",IF(AND(GL18>=1,GL18<=3),GL18+12,GL18)) ->  | OB18: =IF(SUM($GD18)=12,SUM($EL18),"") ->  | OE18: =IF(EW18="○",SUM($EL18),"") ->  | OH18: =IF(EZ18="○",SUM($EL18),"") ->  | OK18: =IF(FC18="○",SUM($EL18),"") ->  | ON18: =IF(FF18="○",SUM($EL18),"") ->  | OQ18: =IF(FI18="○",SUM($EL18),"") ->  | OT18: =IF(FL18="○",SUM($EL18),"") ->  | OW18: =IF(FO18="○",SUM($EL18),"") ->  | OZ18: =IF(FR18="○",SUM($EL18),"") ->  | PC18: =IF(FU18="○",SUM($EL18),"") ->  | PF18: =IF(FX18="○",SUM($EL18),"") ->  | PI18: =IF(GA18="○",SUM($EL18),"") -> 
B19: 2 | R19: =IF(AND($U19="",$K19=""),"",IF($U19="",所得計算!$I7,$U19)) ->  | AE19: =IF(所得計算!AJ$4="","",所得計算!AJ$4) ->  | BF19: =IF(所得計算!AJ$23="","",所得計算!AJ$23) ->  | DY19: =IF(OR(AND(SUM($AL19)=1,SUM($X19)<=8500000),AND(SUM($AL19)=1,SUM($X19)>8500000,SUM($BF19)>0)),"所得金額調整控除１？",IF(OR(AND(SUM($AL19)=2,OR(SUM(所得計算!$BF$5:$BF$15)=0,SUM($BF19)=0)),AND(SUM($AL19)=2,OR(SUM($X19)>8500000,SUM($BF19)=0))),"所得金額調整控除２？",IF(AND(SUM($AL19)=3,OR(SUM($X19)<=8500000,SUM($BF19)=0)),"所得金額調整控除３？",IF(AND($AL19="",OR(SUM($X19)>8500000,AND(SUM(所得計算!$BF$5:$BF$15)>0,SUM($BF19)>0))),"所得金額調整控除サイン不要？","")))) ->  | EL19: =SUM(DC19,$AU$3,CH19,CV19)-SUM(所得計算!$AU$4) -> 0 | EO19: =IF(OR(SUM(AE19)>0,SUM(BF19)>0),1,"") ->  | ER19: 2 | GO19: =IF($GL19="","",IF(HLOOKUP($GL19,$GT$17:$IC$27,3,FALSE)>=65,"","65未到達")) ->  | GT19: =IF($R19="","",IF($U19="",IF(EOMONTH(VALUE("R"&基本項目!$B$3&"."&ET$17&".1"),0)<$K19,"",DATEDIF($K19-1,EOMONTH(VALUE("R"&基本項目!$B$3&"."&ET$17&".1")-1,1),"Y")),$U19)) ->  | GW19: =IF($R19="","",IF($U19="",IF(EOMONTH(VALUE("R"&基本項目!$B$3&"."&EW$17&".1"),0)<$K19,"",DATEDIF($K19-1,EOMONTH(VALUE("R"&基本項目!$B$3&"."&EW$17&".1")-1,1),"Y")),$U19)) ->  | GZ19: =IF($R19="","",IF($U19="",IF(EOMONTH(VALUE("R"&基本項目!$B$3&"."&EZ$17&".1"),0)<$K19,"",DATEDIF($K19-1,EOMONTH(VALUE("R"&基本項目!$B$3&"."&EZ$17&".1")-1,1),"Y")),$U19)) ->  | HC19: =IF($R19="","",IF($U19="",IF(EOMONTH(VALUE("R"&基本項目!$B$3&"."&FC$17&".1"),0)<$K19,"",DATEDIF($K19-1,EOMONTH(VALUE("R"&基本項目!$B$3&"."&FC$17&".1")-1,1),"Y")),$U19)) ->  | HF19: =IF($R19="","",IF($U19="",IF(EOMONTH(VALUE("R"&基本項目!$B$3&"."&FF$17&".1"),0)<$K19,"",DATEDIF($K19-1,EOMONTH(VALUE("R"&基本項目!$B$3&"."&FF$17&".1")-1,1),"Y")),$U19)) ->  | HI19: =IF($R19="","",IF($U19="",IF(EOMONTH(VALUE("R"&基本項目!$B$3&"."&FI$17&".1"),0)<$K19,"",DATEDIF($K19-1,EOMONTH(VALUE("R"&基本項目!$B$3&"."&FI$17&".1")-1,1),"Y")),$U19)) ->  | HL19: =IF($R19="","",IF($U19="",IF(EOMONTH(VALUE("R"&基本項目!$B$3&"."&FL$17&".1"),0)<$K19,"",DATEDIF($K19-1,EOMONTH(VALUE("R"&基本項目!$B$3&"."&FL$17&".1")-1,1),"Y")),$U19)) ->  | HO19: =IF($R19="","",IF($U19="",IF(EOMONTH(VALUE("R"&基本項目!$B$3&"."&FO$17&".1"),0)<$K19,"",DATEDIF($K19-1,EOMONTH(VALUE("R"&基本項目!$B$3&"."&FO$17&".1")-1,1),"Y")),$U19)) ->  | HR19: =IF($R19="","",IF($U19="",IF(EOMONTH(VALUE("R"&基本項目!$B$3&"."&FR$17&".1"),0)<$K19,"",DATEDIF($K19-1,EOMONTH(VALUE("R"&基本項目!$B$3&"."&FR$17&".1")-1,1),"Y")),$U19)) ->  | HU19: =IF($R19="","",IF($U19="",IF(EOMONTH(VALUE("R"&基本項目!$B$3+1&"."&FU$17&".1"),0)<$K19,"",DATEDIF($K19-1,EOMONTH(VALUE("R"&基本項目!$B$3+1&"."&FU$17&".1")-1,1),"Y")),$U19)) ->  | HX19: =IF($R19="","",IF($U19="",IF(EOMONTH(VALUE("R"&基本項目!$B$3+1&"."&FX$17&".1"),0)<$K19,"",DATEDIF($K19-1,EOMONTH(VALUE("R"&基本項目!$B$3+1&"."&FX$17&".1")-1,1),"Y")),$U19)) ->  | IA19: =IF($R19="","",IF($U19="",IF(EOMONTH(VALUE("R"&基本項目!$B$3+1&"."&GA$17&".1"),0)<$K19,"",DATEDIF($K19-1,EOMONTH(VALUE("R"&基本項目!$B$3+1&"."&GA$17&".1")-1,1),"Y")),$U19)) ->  | IN19: =IF($R19="","",IF($U19="",IF(EOMONTH(VALUE("R"&基本項目!$B$3&"."&ET$17&".1"),0)<$K19,"",DATEDIF($K19,EOMONTH(VALUE("R"&基本項目!$B$3&"."&ET$17&".1")-1,1),"Y")),$U19)) ->  | IQ19: =IF($R19="","",IF($U19="",IF(EOMONTH(VALUE("R"&基本項目!$B$3&"."&EW$17&".1"),0)<$K19,"",DATEDIF($K19,EOMONTH(VALUE("R"&基本項目!$B$3&"."&EW$17&".1")-1,1),"Y")),$U19)) ->  | IT19: =IF($R19="","",IF($U19="",IF(EOMONTH(VALUE("R"&基本項目!$B$3&"."&EZ$17&".1"),0)<$K19,"",DATEDIF($K19,EOMONTH(VALUE("R"&基本項目!$B$3&"."&EZ$17&".1")-1,1),"Y")),$U19)) ->  | IW19: =IF($R19="","",IF($U19="",IF(EOMONTH(VALUE("R"&基本項目!$B$3&"."&FC$17&".1"),0)<$K19,"",DATEDIF($K19,EOMONTH(VALUE("R"&基本項目!$B$3&"."&FC$17&".1")-1,1),"Y")),$U19)) ->  | IZ19: =IF($R19="","",IF($U19="",IF(EOMONTH(VALUE("R"&基本項目!$B$3&"."&FF$17&".1"),0)<$K19,"",DATEDIF($K19,EOMONTH(VALUE("R"&基本項目!$B$3&"."&FF$17&".1")-1,1),"Y")),$U19)) ->  | JC19: =IF($R19="","",IF($U19="",IF(EOMONTH(VALUE("R"&基本項目!$B$3&"."&FI$17&".1"),0)<$K19,"",DATEDIF($K19,EOMONTH(VALUE("R"&基本項目!$B$3&"."&FI$17&".1")-1,1),"Y")),$U19)) ->  | JF19: =IF($R19="","",IF($U19="",IF(EOMONTH(VALUE("R"&基本項目!$B$3&"."&FL$17&".1"),0)<$K19,"",DATEDIF($K19,EOMONTH(VALUE("R"&基本項目!$B$3&"."&FL$17&".1")-1,1),"Y")),$U19)) ->  | JI19: =IF($R19="","",IF($U19="",IF(EOMONTH(VALUE("R"&基本項目!$B$3&"."&FO$17&".1"),0)<$K19,"",DATEDIF($K19,EOMONTH(VALUE("R"&基本項目!$B$3&"."&FO$17&".1")-1,1),"Y")),$U19)) ->  | JL19: =IF($R19="","",IF($U19="",IF(EOMONTH(VALUE("R"&基本項目!$B$3&"."&FR$17&".1"),0)<$K19,"",DATEDIF($K19,EOMONTH(VALUE("R"&基本項目!$B$3&"."&FR$17&".1")-1,1),"Y")),$U19)) ->  | JO19: =IF($R19="","",IF($U19="",IF(EOMONTH(VALUE("R"&基本項目!$B$3+1&"."&FU$17&".1"),0)<$K19,"",DATEDIF($K19,EOMONTH(VALUE("R"&基本項目!$B$3+1&"."&FU$17&".1")-1,1),"Y")),$U19)) ->  | JR19: =IF($R19="","",IF($U19="",IF(EOMONTH(VALUE("R"&基本項目!$B$3+1&"."&FX$17&".1"),0)<$K19,"",DATEDIF($K19,EOMONTH(VALUE("R"&基本項目!$B$3+1&"."&FX$17&".1")-1,1),"Y")),$U19)) ->  | JU19: =IF($R19="","",IF($U19="",IF(EOMONTH(VALUE("R"&基本項目!$B$3+1&"."&GA$17&".1"),0)<$K19,"",DATEDIF($K19,EOMONTH(VALUE("R"&基本項目!$B$3+1&"."&GA$17&".1")-1,1),"Y")),$U19)) ->  | OB19: =IF(SUM($GD19)=12,SUM($EL19),"") ->  | OE19: =IF(EW19="○",SUM($EL19),"") -> 
B20: 3 | R20: =IF(AND($U20="",$K20=""),"",IF($U20="",所得計算!$I8,$U20)) ->  | AE20: =IF(所得計算!AK$4="","",所得計算!AK$4) ->  | BF20: =IF(所得計算!AK$23="","",所得計算!AK$23) ->  | DY20: =IF(OR(AND(SUM($AL20)=1,SUM($X20)<=8500000),AND(SUM($AL20)=1,SUM($X20)>8500000,SUM($BF20)>0)),"所得金額調整控除１？",IF(OR(AND(SUM($AL20)=2,OR(SUM(所得計算!$BG$5:$BG$15)=0,SUM($BF20)=0)),AND(SUM($AL20)=2,OR(SUM($X20)>8500000,SUM($BF20)=0))),"所得金額調整控除２？",IF(AND(SUM($AL20)=3,OR(SUM($X20)<=8500000,SUM($BF20)=0)),"所得金額調整控除３？",IF(AND($AL20="",OR(SUM($X20)>8500000,AND(SUM(所得計算!$BG$5:$BG$15)>0,SUM($BF20)>0))),"所得金額調整控除サイン不要？","")))) ->  | EL20: =SUM(DC20,$AU$3,CH20,CV20)-SUM(所得計算!$AV$4) -> 0 | ER20: 3 | GO20: =IF($GL20="","",IF(HLOOKUP($GL20,$GT$17:$IC$27,4,FALSE)>=65,"","65未到達")) ->  | GT20: =IF($R20="","",IF($U20="",IF(EOMONTH(VALUE("R"&基本項目!$B$3&"."&ET$17&".1"),0)<$K20,"",DATEDIF($K20-1,EOMONTH(VALUE("R"&基本項目!$B$3&"."&ET$17&".1")-1,1),"Y")),$U20)) ->  | GW20: =IF($R20="","",IF($U20="",IF(EOMONTH(VALUE("R"&基本項目!$B$3&"."&EW$17&".1"),0)<$K20,"",DATEDIF($K20-1,EOMONTH(VALUE("R"&基本項目!$B$3&"."&EW$17&".1")-1,1),"Y")),$U20)) ->  | GZ20: =IF($R20="","",IF($U20="",IF(EOMONTH(VALUE("R"&基本項目!$B$3&"."&EZ$17&".1"),0)<$K20,"",DATEDIF($K20-1,EOMONTH(VALUE("R"&基本項目!$B$3&"."&EZ$17&".1")-1,1),"Y")),$U20)) ->  | HC20: =IF($R20="","",IF($U20="",IF(EOMONTH(VALUE("R"&基本項目!$B$3&"."&FC$17&".1"),0)<$K20,"",DATEDIF($K20-1,EOMONTH(VALUE("R"&基本項目!$B$3&"."&FC$17&".1")-1,1),"Y")),$U20)) ->  | HF20: =IF($R20="","",IF($U20="",IF(EOMONTH(VALUE("R"&基本項目!$B$3&"."&FF$17&".1"),0)<$K20,"",DATEDIF($K20-1,EOMONTH(VALUE("R"&基本項目!$B$3&"."&FF$17&".1")-1,1),"Y")),$U20)) ->  | HI20: =IF($R20="","",IF($U20="",IF(EOMONTH(VALUE("R"&基本項目!$B$3&"."&FI$17&".1"),0)<$K20,"",DATEDIF($K20-1,EOMONTH(VALUE("R"&基本項目!$B$3&"."&FI$17&".1")-1,1),"Y")),$U20)) ->  | HL20: =IF($R20="","",IF($U20="",IF(EOMONTH(VALUE("R"&基本項目!$B$3&"."&FL$17&".1"),0)<$K20,"",DATEDIF($K20-1,EOMONTH(VALUE("R"&基本項目!$B$3&"."&FL$17&".1")-1,1),"Y")),$U20)) ->  | HO20: =IF($R20="","",IF($U20="",IF(EOMONTH(VALUE("R"&基本項目!$B$3&"."&FO$17&".1"),0)<$K20,"",DATEDIF($K20-1,EOMONTH(VALUE("R"&基本項目!$B$3&"."&FO$17&".1")-1,1),"Y")),$U20)) ->  | HR20: =IF($R20="","",IF($U20="",IF(EOMONTH(VALUE("R"&基本項目!$B$3&"."&FR$17&".1"),0)<$K20,"",DATEDIF($K20-1,EOMONTH(VALUE("R"&基本項目!$B$3&"."&FR$17&".1")-1,1),"Y")),$U20)) ->  | HU20: =IF($R20="","",IF($U20="",IF(EOMONTH(VALUE("R"&基本項目!$B$3+1&"."&FU$17&".1"),0)<$K20,"",DATEDIF($K20-1,EOMONTH(VALUE("R"&基本項目!$B$3+1&"."&FU$17&".1")-1,1),"Y")),$U20)) ->  | HX20: =IF($R20="","",IF($U20="",IF(EOMONTH(VALUE("R"&基本項目!$B$3+1&"."&FX$17&".1"),0)<$K20,"",DATEDIF($K20-1,EOMONTH(VALUE("R"&基本項目!$B$3+1&"."&FX$17&".1")-1,1),"Y")),$U20)) ->  | IA20: =IF($R20="","",IF($U20="",IF(EOMONTH(VALUE("R"&基本項目!$B$3+1&"."&GA$17&".1"),0)<$K20,"",DATEDIF($K20-1,EOMONTH(VALUE("R"&基本項目!$B$3+1&"."&GA$17&".1")-1,1),"Y")),$U20)) ->  | IN20: =IF($R20="","",IF($U20="",IF(EOMONTH(VALUE("R"&基本項目!$B$3&"."&ET$17&".1"),0)<$K20,"",DATEDIF($K20,EOMONTH(VALUE("R"&基本項目!$B$3&"."&ET$17&".1")-1,1),"Y")),$U20)) ->  | IQ20: =IF($R20="","",IF($U20="",IF(EOMONTH(VALUE("R"&基本項目!$B$3&"."&EW$17&".1"),0)<$K20,"",DATEDIF($K20,EOMONTH(VALUE("R"&基本項目!$B$3&"."&EW$17&".1")-1,1),"Y")),$U20)) ->  | IT20: =IF($R20="","",IF($U20="",IF(EOMONTH(VALUE("R"&基本項目!$B$3&"."&EZ$17&".1"),0)<$K20,"",DATEDIF($K20,EOMONTH(VALUE("R"&基本項目!$B$3&"."&EZ$17&".1")-1,1),"Y")),$U20)) ->  | IW20: =IF($R20="","",IF($U20="",IF(EOMONTH(VALUE("R"&基本項目!$B$3&"."&FC$17&".1"),0)<$K20,"",DATEDIF($K20,EOMONTH(VALUE("R"&基本項目!$B$3&"."&FC$17&".1")-1,1),"Y")),$U20)) ->  | IZ20: =IF($R20="","",IF($U20="",IF(EOMONTH(VALUE("R"&基本項目!$B$3&"."&FF$17&".1"),0)<$K20,"",DATEDIF($K20,EOMONTH(VALUE("R"&基本項目!$B$3&"."&FF$17&".1")-1,1),"Y")),$U20)) ->  | JC20: =IF($R20="","",IF($U20="",IF(EOMONTH(VALUE("R"&基本項目!$B$3&"."&FI$17&".1"),0)<$K20,"",DATEDIF($K20,EOMONTH(VALUE("R"&基本項目!$B$3&"."&FI$17&".1")-1,1),"Y")),$U20)) ->  | JF20: =IF($R20="","",IF($U20="",IF(EOMONTH(VALUE("R"&基本項目!$B$3&"."&FL$17&".1"),0)<$K20,"",DATEDIF($K20,EOMONTH(VALUE("R"&基本項目!$B$3&"."&FL$17&".1")-1,1),"Y")),$U20)) ->  | JI20: =IF($R20="","",IF($U20="",IF(EOMONTH(VALUE("R"&基本項目!$B$3&"."&FO$17&".1"),0)<$K20,"",DATEDIF($K20,EOMONTH(VALUE("R"&基本項目!$B$3&"."&FO$17&".1")-1,1),"Y")),$U20)) ->  | JL20: =IF($R20="","",IF($U20="",IF(EOMONTH(VALUE("R"&基本項目!$B$3&"."&FR$17&".1"),0)<$K20,"",DATEDIF($K20,EOMONTH(VALUE("R"&基本項目!$B$3&"."&FR$17&".1")-1,1),"Y")),$U20)) ->  | JO20: =IF($R20="","",IF($U20="",IF(EOMONTH(VALUE("R"&基本項目!$B$3+1&"."&FU$17&".1"),0)<$K20,"",DATEDIF($K20,EOMONTH(VALUE("R"&基本項目!$B$3+1&"."&FU$17&".1")-1,1),"Y")),$U20)) ->  | JR20: =IF($R20="","",IF($U20="",IF(EOMONTH(VALUE("R"&基本項目!$B$3+1&"."&FX$17&".1"),0)<$K20,"",DATEDIF($K20,EOMONTH(VALUE("R"&基本項目!$B$3+1&"."&FX$17&".1")-1,1),"Y")),$U20)) ->  | JU20: =IF($R20="","",IF($U20="",IF(EOMONTH(VALUE("R"&基本項目!$B$3+1&"."&GA$17&".1"),0)<$K20,"",DATEDIF($K20,EOMONTH(VALUE("R"&基本項目!$B$3+1&"."&GA$17&".1")-1,1),"Y")),$U20)) -> 
B21: 4 | R21: =IF(AND($U21="",$K21=""),"",IF($U21="",所得計算!$I9,$U21)) ->  | AE21: =IF(所得計算!AL$4="","",所得計算!AL$4) ->  | BF21: =IF(所得計算!AL$23="","",所得計算!AL$23) ->  | DY21: =IF(OR(AND(SUM($AL21)=1,SUM($X21)<=8500000),AND(SUM($AL21)=1,SUM($X21)>8500000,SUM($BF21)>0)),"所得金額調整控除１？",IF(OR(AND(SUM($AL21)=2,OR(SUM(所得計算!$BH$5:$BH$15)=0,SUM($BF21)=0)),AND(SUM($AL21)=2,OR(SUM($X21)>8500000,SUM($BF21)=0))),"所得金額調整控除２？",IF(AND(SUM($AL21)=3,OR(SUM($X21)<=8500000,SUM($BF21)=0)),"所得金額調整控除３？",IF(AND($AL21="",OR(SUM($X21)>8500000,AND(SUM(所得計算!$BH$5:$BH$15)>0,SUM($BF21)>0))),"所得金額調整控除サイン不要？","")))) ->  | EL21: =SUM(DC21,$AU$3,CH21,CV21)-SUM(所得計算!$AW$4) -> 0 | ER21: 4 | GO21: =IF($GL21="","",IF(HLOOKUP($GL21,$GT$17:$IC$27,5,FALSE)>=65,"","65未到達")) ->  | GT21: =IF($R21="","",IF($U21="",IF(EOMONTH(VALUE("R"&基本項目!$B$3&"."&ET$17&".1"),0)<$K21,"",DATEDIF($K21-1,EOMONTH(VALUE("R"&基本項目!$B$3&"."&ET$17&".1")-1,1),"Y")),$U21)) ->  | GW21: =IF($R21="","",IF($U21="",IF(EOMONTH(VALUE("R"&基本項目!$B$3&"."&EW$17&".1"),0)<$K21,"",DATEDIF($K21-1,EOMONTH(VALUE("R"&基本項目!$B$3&"."&EW$17&".1")-1,1),"Y")),$U21)) ->  | GZ21: =IF($R21="","",IF($U21="",IF(EOMONTH(VALUE("R"&基本項目!$B$3&"."&EZ$17&".1"),0)<$K21,"",DATEDIF($K21-1,EOMONTH(VALUE("R"&基本項目!$B$3&"."&EZ$17&".1")-1,1),"Y")),$U21)) ->  | HC21: =IF($R21="","",IF($U21="",IF(EOMONTH(VALUE("R"&基本項目!$B$3&"."&FC$17&".1"),0)<$K21,"",DATEDIF($K21-1,EOMONTH(VALUE("R"&基本項目!$B$3&"."&FC$17&".1")-1,1),"Y")),$U21)) ->  | HF21: =IF($R21="","",IF($U21="",IF(EOMONTH(VALUE("R"&基本項目!$B$3&"."&FF$17&".1"),0)<$K21,"",DATEDIF($K21-1,EOMONTH(VALUE("R"&基本項目!$B$3&"."&FF$17&".1")-1,1),"Y")),$U21)) ->  | HI21: =IF($R21="","",IF($U21="",IF(EOMONTH(VALUE("R"&基本項目!$B$3&"."&FI$17&".1"),0)<$K21,"",DATEDIF($K21-1,EOMONTH(VALUE("R"&基本項目!$B$3&"."&FI$17&".1")-1,1),"Y")),$U21)) ->  | HL21: =IF($R21="","",IF($U21="",IF(EOMONTH(VALUE("R"&基本項目!$B$3&"."&FL$17&".1"),0)<$K21,"",DATEDIF($K21-1,EOMONTH(VALUE("R"&基本項目!$B$3&"."&FL$17&".1")-1,1),"Y")),$U21)) ->  | HO21: =IF($R21="","",IF($U21="",IF(EOMONTH(VALUE("R"&基本項目!$B$3&"."&FO$17&".1"),0)<$K21,"",DATEDIF($K21-1,EOMONTH(VALUE("R"&基本項目!$B$3&"."&FO$17&".1")-1,1),"Y")),$U21)) ->  | HR21: =IF($R21="","",IF($U21="",IF(EOMONTH(VALUE("R"&基本項目!$B$3&"."&FR$17&".1"),0)<$K21,"",DATEDIF($K21-1,EOMONTH(VALUE("R"&基本項目!$B$3&"."&FR$17&".1")-1,1),"Y")),$U21)) ->  | HU21: =IF($R21="","",IF($U21="",IF(EOMONTH(VALUE("R"&基本項目!$B$3+1&"."&FU$17&".1"),0)<$K21,"",DATEDIF($K21-1,EOMONTH(VALUE("R"&基本項目!$B$3+1&"."&FU$17&".1")-1,1),"Y")),$U21)) ->  | HX21: =IF($R21="","",IF($U21="",IF(EOMONTH(VALUE("R"&基本項目!$B$3+1&"."&FX$17&".1"),0)<$K21,"",DATEDIF($K21-1,EOMONTH(VALUE("R"&基本項目!$B$3+1&"."&FX$17&".1")-1,1),"Y")),$U21)) ->  | IA21: =IF($R21="","",IF($U21="",IF(EOMONTH(VALUE("R"&基本項目!$B$3+1&"."&GA$17&".1"),0)<$K21,"",DATEDIF($K21-1,EOMONTH(VALUE("R"&基本項目!$B$3+1&"."&GA$17&".1")-1,1),"Y")),$U21)) ->  | IN21: =IF($R21="","",IF($U21="",IF(EOMONTH(VALUE("R"&基本項目!$B$3&"."&ET$17&".1"),0)<$K21,"",DATEDIF($K21,EOMONTH(VALUE("R"&基本項目!$B$3&"."&ET$17&".1")-1,1),"Y")),$U21)) ->  | IQ21: =IF($R21="","",IF($U21="",IF(EOMONTH(VALUE("R"&基本項目!$B$3&"."&EW$17&".1"),0)<$K21,"",DATEDIF($K21,EOMONTH(VALUE("R"&基本項目!$B$3&"."&EW$17&".1")-1,1),"Y")),$U21)) ->  | IT21: =IF($R21="","",IF($U21="",IF(EOMONTH(VALUE("R"&基本項目!$B$3&"."&EZ$17&".1"),0)<$K21,"",DATEDIF($K21,EOMONTH(VALUE("R"&基本項目!$B$3&"."&EZ$17&".1")-1,1),"Y")),$U21)) ->  | IW21: =IF($R21="","",IF($U21="",IF(EOMONTH(VALUE("R"&基本項目!$B$3&"."&FC$17&".1"),0)<$K21,"",DATEDIF($K21,EOMONTH(VALUE("R"&基本項目!$B$3&"."&FC$17&".1")-1,1),"Y")),$U21)) ->  | IZ21: =IF($R21="","",IF($U21="",IF(EOMONTH(VALUE("R"&基本項目!$B$3&"."&FF$17&".1"),0)<$K21,"",DATEDIF($K21,EOMONTH(VALUE("R"&基本項目!$B$3&"."&FF$17&".1")-1,1),"Y")),$U21)) ->  | JC21: =IF($R21="","",IF($U21="",IF(EOMONTH(VALUE("R"&基本項目!$B$3&"."&FI$17&".1"),0)<$K21,"",DATEDIF($K21,EOMONTH(VALUE("R"&基本項目!$B$3&"."&FI$17&".1")-1,1),"Y")),$U21)) ->  | JF21: =IF($R21="","",IF($U21="",IF(EOMONTH(VALUE("R"&基本項目!$B$3&"."&FL$17&".1"),0)<$K21,"",DATEDIF($K21,EOMONTH(VALUE("R"&基本項目!$B$3&"."&FL$17&".1")-1,1),"Y")),$U21)) ->  | JI21: =IF($R21="","",IF($U21="",IF(EOMONTH(VALUE("R"&基本項目!$B$3&"."&FO$17&".1"),0)<$K21,"",DATEDIF($K21,EOMONTH(VALUE("R"&基本項目!$B$3&"."&FO$17&".1")-1,1),"Y")),$U21)) ->  | JL21: =IF($R21="","",IF($U21="",IF(EOMONTH(VALUE("R"&基本項目!$B$3&"."&FR$17&".1"),0)<$K21,"",DATEDIF($K21,EOMONTH(VALUE("R"&基本項目!$B$3&"."&FR$17&".1")-1,1),"Y")),$U21)) ->  | JO21: =IF($R21="","",IF($U21="",IF(EOMONTH(VALUE("R"&基本項目!$B$3+1&"."&FU$17&".1"),0)<$K21,"",DATEDIF($K21,EOMONTH(VALUE("R"&基本項目!$B$3+1&"."&FU$17&".1")-1,1),"Y")),$U21)) ->  | JR21: =IF($R21="","",IF($U21="",IF(EOMONTH(VALUE("R"&基本項目!$B$3+1&"."&FX$17&".1"),0)<$K21,"",DATEDIF($K21,EOMONTH(VALUE("R"&基本項目!$B$3+1&"."&FX$17&".1")-1,1),"Y")),$U21)) ->  | JU21: =IF($R21="","",IF($U21="",IF(EOMONTH(VALUE("R"&基本項目!$B$3+1&"."&GA$17&".1"),0)<$K21,"",DATEDIF($K21,EOMONTH(VALUE("R"&基本項目!$B$3+1&"."&GA$17&".1")-1,1),"Y")),$U21)) -> 
B22: 5 | R22: =IF(AND($U22="",$K22=""),"",IF($U22="",所得計算!$I10,$U22)) ->  | AE22: =IF(所得計算!AM$4="","",所得計算!AM$4) ->  | BF22: =IF(所得計算!AM$23="","",所得計算!AM$23) ->  | DY22: =IF(OR(AND(SUM($AL22)=1,SUM($X22)<=8500000),AND(SUM($AL22)=1,SUM($X22)>8500000,SUM($BF22)>0)),"所得金額調整控除１？",IF(OR(AND(SUM($AL22)=2,OR(SUM(所得計算!$BI$5:$BI$15)=0,SUM($BF22)=0)),AND(SUM($AL22)=2,OR(SUM($X22)>8500000,SUM($BF22)=0))),"所得金額調整控除２？",IF(AND(SUM($AL22)=3,OR(SUM($X22)<=8500000,SUM($BF22)=0)),"所得金額調整控除３？",IF(AND($AL22="",OR(SUM($X22)>8500000,AND(SUM(所得計算!$BI$5:$BI$15)>0,SUM($BF22)>0))),"所得金額調整控除サイン不要？","")))) ->  | EL22: =SUM(DC22,$AU$3,CH22,CV22)-SUM(所得計算!$AX$4) -> 0 | ER22: 5 | GO22: =IF($GL22="","",IF(HLOOKUP($GL22,$GT$17:$IC$27,6,FALSE)>=65,"","65未到達")) ->  | GT22: =IF($R22="","",IF($U22="",IF(EOMONTH(VALUE("R"&基本項目!$B$3&"."&ET$17&".1"),0)<$K22,"",DATEDIF($K22-1,EOMONTH(VALUE("R"&基本項目!$B$3&"."&ET$17&".1")-1,1),"Y")),$U22)) ->  | GW22: =IF($R22="","",IF($U22="",IF(EOMONTH(VALUE("R"&基本項目!$B$3&"."&EW$17&".1"),0)<$K22,"",DATEDIF($K22-1,EOMONTH(VALUE("R"&基本項目!$B$3&"."&EW$17&".1")-1,1),"Y")),$U22)) ->  | GZ22: =IF($R22="","",IF($U22="",IF(EOMONTH(VALUE("R"&基本項目!$B$3&"."&EZ$17&".1"),0)<$K22,"",DATEDIF($K22-1,EOMONTH(VALUE("R"&基本項目!$B$3&"."&EZ$17&".1")-1,1),"Y")),$U22)) ->  | HC22: =IF($R22="","",IF($U22="",IF(EOMONTH(VALUE("R"&基本項目!$B$3&"."&FC$17&".1"),0)<$K22,"",DATEDIF($K22-1,EOMONTH(VALUE("R"&基本項目!$B$3&"."&FC$17&".1")-1,1),"Y")),$U22)) ->  | HF22: =IF($R22="","",IF($U22="",IF(EOMONTH(VALUE("R"&基本項目!$B$3&"."&FF$17&".1"),0)<$K22,"",DATEDIF($K22-1,EOMONTH(VALUE("R"&基本項目!$B$3&"."&FF$17&".1")-1,1),"Y")),$U22)) ->  | HI22: =IF($R22="","",IF($U22="",IF(EOMONTH(VALUE("R"&基本項目!$B$3&"."&FI$17&".1"),0)<$K22,"",DATEDIF($K22-1,EOMONTH(VALUE("R"&基本項目!$B$3&"."&FI$17&".1")-1,1),"Y")),$U22)) ->  | HL22: =IF($R22="","",IF($U22="",IF(EOMONTH(VALUE("R"&基本項目!$B$3&"."&FL$17&".1"),0)<$K22,"",DATEDIF($K22-1,EOMONTH(VALUE("R"&基本項目!$B$3&"."&FL$17&".1")-1,1),"Y")),$U22)) ->  | HO22: =IF($R22="","",IF($U22="",IF(EOMONTH(VALUE("R"&基本項目!$B$3&"."&FO$17&".1"),0)<$K22,"",DATEDIF($K22-1,EOMONTH(VALUE("R"&基本項目!$B$3&"."&FO$17&".1")-1,1),"Y")),$U22)) ->  | HR22: =IF($R22="","",IF($U22="",IF(EOMONTH(VALUE("R"&基本項目!$B$3&"."&FR$17&".1"),0)<$K22,"",DATEDIF($K22-1,EOMONTH(VALUE("R"&基本項目!$B$3&"."&FR$17&".1")-1,1),"Y")),$U22)) ->  | HU22: =IF($R22="","",IF($U22="",IF(EOMONTH(VALUE("R"&基本項目!$B$3+1&"."&FU$17&".1"),0)<$K22,"",DATEDIF($K22-1,EOMONTH(VALUE("R"&基本項目!$B$3+1&"."&FU$17&".1")-1,1),"Y")),$U22)) ->  | HX22: =IF($R22="","",IF($U22="",IF(EOMONTH(VALUE("R"&基本項目!$B$3+1&"."&FX$17&".1"),0)<$K22,"",DATEDIF($K22-1,EOMONTH(VALUE("R"&基本項目!$B$3+1&"."&FX$17&".1")-1,1),"Y")),$U22)) ->  | IA22: =IF($R22="","",IF($U22="",IF(EOMONTH(VALUE("R"&基本項目!$B$3+1&"."&GA$17&".1"),0)<$K22,"",DATEDIF($K22-1,EOMONTH(VALUE("R"&基本項目!$B$3+1&"."&GA$17&".1")-1,1),"Y")),$U22)) ->  | IN22: =IF($R22="","",IF($U22="",IF(EOMONTH(VALUE("R"&基本項目!$B$3&"."&ET$17&".1"),0)<$K22,"",DATEDIF($K22,EOMONTH(VALUE("R"&基本項目!$B$3&"."&ET$17&".1")-1,1),"Y")),$U22)) ->  | IQ22: =IF($R22="","",IF($U22="",IF(EOMONTH(VALUE("R"&基本項目!$B$3&"."&EW$17&".1"),0)<$K22,"",DATEDIF($K22,EOMONTH(VALUE("R"&基本項目!$B$3&"."&EW$17&".1")-1,1),"Y")),$U22)) ->  | IT22: =IF($R22="","",IF($U22="",IF(EOMONTH(VALUE("R"&基本項目!$B$3&"."&EZ$17&".1"),0)<$K22,"",DATEDIF($K22,EOMONTH(VALUE("R"&基本項目!$B$3&"."&EZ$17&".1")-1,1),"Y")),$U22)) ->  | IW22: =IF($R22="","",IF($U22="",IF(EOMONTH(VALUE("R"&基本項目!$B$3&"."&FC$17&".1"),0)<$K22,"",DATEDIF($K22,EOMONTH(VALUE("R"&基本項目!$B$3&"."&FC$17&".1")-1,1),"Y")),$U22)) ->  | IZ22: =IF($R22="","",IF($U22="",IF(EOMONTH(VALUE("R"&基本項目!$B$3&"."&FF$17&".1"),0)<$K22,"",DATEDIF($K22,EOMONTH(VALUE("R"&基本項目!$B$3&"."&FF$17&".1")-1,1),"Y")),$U22)) ->  | JC22: =IF($R22="","",IF($U22="",IF(EOMONTH(VALUE("R"&基本項目!$B$3&"."&FI$17&".1"),0)<$K22,"",DATEDIF($K22,EOMONTH(VALUE("R"&基本項目!$B$3&"."&FI$17&".1")-1,1),"Y")),$U22)) ->  | JF22: =IF($R22="","",IF($U22="",IF(EOMONTH(VALUE("R"&基本項目!$B$3&"."&FL$17&".1"),0)<$K22,"",DATEDIF($K22,EOMONTH(VALUE("R"&基本項目!$B$3&"."&FL$17&".1")-1,1),"Y")),$U22)) ->  | JI22: =IF($R22="","",IF($U22="",IF(EOMONTH(VALUE("R"&基本項目!$B$3&"."&FO$17&".1"),0)<$K22,"",DATEDIF($K22,EOMONTH(VALUE("R"&基本項目!$B$3&"."&FO$17&".1")-1,1),"Y")),$U22)) ->  | JL22: =IF($R22="","",IF($U22="",IF(EOMONTH(VALUE("R"&基本項目!$B$3&"."&FR$17&".1"),0)<$K22,"",DATEDIF($K22,EOMONTH(VALUE("R"&基本項目!$B$3&"."&FR$17&".1")-1,1),"Y")),$U22)) ->  | JO22: =IF($R22="","",IF($U22="",IF(EOMONTH(VALUE("R"&基本項目!$B$3+1&"."&FU$17&".1"),0)<$K22,"",DATEDIF($K22,EOMONTH(VALUE("R"&基本項目!$B$3+1&"."&FU$17&".1")-1,1),"Y")),$U22)) ->  | JR22: =IF($R22="","",IF($U22="",IF(EOMONTH(VALUE("R"&基本項目!$B$3+1&"."&FX$17&".1"),0)<$K22,"",DATEDIF($K22,EOMONTH(VALUE("R"&基本項目!$B$3+1&"."&FX$17&".1")-1,1),"Y")),$U22)) ->  | JU22: =IF($R22="","",IF($U22="",IF(EOMONTH(VALUE("R"&基本項目!$B$3+1&"."&GA$17&".1"),0)<$K22,"",DATEDIF($K22,EOMONTH(VALUE("R"&基本項目!$B$3+1&"."&GA$17&".1")-1,1),"Y")),$U22)) -> 
B23: 6 | R23: =IF(AND($U23="",$K23=""),"",IF($U23="",所得計算!$I11,$U23)) ->  | AE23: =IF(所得計算!AN$4="","",所得計算!AN$4) ->  | BF23: =IF(所得計算!AN$23="","",所得計算!AN$23) ->  | DY23: =IF(OR(AND(SUM($AL23)=1,SUM($X23)<=8500000),AND(SUM($AL23)=1,SUM($X23)>8500000,SUM($BF23)>0)),"所得金額調整控除１？",IF(OR(AND(SUM($AL23)=2,OR(SUM(所得計算!$BJ$5:$BJ$15)=0,SUM($BF23)=0)),AND(SUM($AL23)=2,OR(SUM($X23)>8500000,SUM($BF23)=0))),"所得金額調整控除２？",IF(AND(SUM($AL23)=3,OR(SUM($X23)<=8500000,SUM($BF23)=0)),"所得金額調整控除３？",IF(AND($AL23="",OR(SUM($X23)>8500000,AND(SUM(所得計算!$BJ$5:$BJ$15)>0,SUM($BF23)>0))),"所得金額調整控除サイン不要？","")))) ->  | EL23: =SUM(DC23,$AU$3,CH23,CV23)-SUM(所得計算!$AY$4) -> 0 | ER23: 6 | GO23: =IF($GL23="","",IF(HLOOKUP($GL23,$GT$17:$IC$27,7,FALSE)>=65,"","65未到達")) ->  | GT23: =IF($R23="","",IF($U23="",IF(EOMONTH(VALUE("R"&基本項目!$B$3&"."&ET$17&".1"),0)<$K23,"",DATEDIF($K23-1,EOMONTH(VALUE("R"&基本項目!$B$3&"."&ET$17&".1")-1,1),"Y")),$U23)) ->  | GW23: =IF($R23="","",IF($U23="",IF(EOMONTH(VALUE("R"&基本項目!$B$3&"."&EW$17&".1"),0)<$K23,"",DATEDIF($K23-1,EOMONTH(VALUE("R"&基本項目!$B$3&"."&EW$17&".1")-1,1),"Y")),$U23)) ->  | GZ23: =IF($R23="","",IF($U23="",IF(EOMONTH(VALUE("R"&基本項目!$B$3&"."&EZ$17&".1"),0)<$K23,"",DATEDIF($K23-1,EOMONTH(VALUE("R"&基本項目!$B$3&"."&EZ$17&".1")-1,1),"Y")),$U23)) ->  | HC23: =IF($R23="","",IF($U23="",IF(EOMONTH(VALUE("R"&基本項目!$B$3&"."&FC$17&".1"),0)<$K23,"",DATEDIF($K23-1,EOMONTH(VALUE("R"&基本項目!$B$3&"."&FC$17&".1")-1,1),"Y")),$U23)) ->  | HF23: =IF($R23="","",IF($U23="",IF(EOMONTH(VALUE("R"&基本項目!$B$3&"."&FF$17&".1"),0)<$K23,"",DATEDIF($K23-1,EOMONTH(VALUE("R"&基本項目!$B$3&"."&FF$17&".1")-1,1),"Y")),$U23)) ->  | HI23: =IF($R23="","",IF($U23="",IF(EOMONTH(VALUE("R"&基本項目!$B$3&"."&FI$17&".1"),0)<$K23,"",DATEDIF($K23-1,EOMONTH(VALUE("R"&基本項目!$B$3&"."&FI$17&".1")-1,1),"Y")),$U23)) ->  | HL23: =IF($R23="","",IF($U23="",IF(EOMONTH(VALUE("R"&基本項目!$B$3&"."&FL$17&".1"),0)<$K23,"",DATEDIF($K23-1,EOMONTH(VALUE("R"&基本項目!$B$3&"."&FL$17&".1")-1,1),"Y")),$U23)) ->  | HO23: =IF($R23="","",IF($U23="",IF(EOMONTH(VALUE("R"&基本項目!$B$3&"."&FO$17&".1"),0)<$K23,"",DATEDIF($K23-1,EOMONTH(VALUE("R"&基本項目!$B$3&"."&FO$17&".1")-1,1),"Y")),$U23)) ->  | HR23: =IF($R23="","",IF($U23="",IF(EOMONTH(VALUE("R"&基本項目!$B$3&"."&FR$17&".1"),0)<$K23,"",DATEDIF($K23-1,EOMONTH(VALUE("R"&基本項目!$B$3&"."&FR$17&".1")-1,1),"Y")),$U23)) ->  | HU23: =IF($R23="","",IF($U23="",IF(EOMONTH(VALUE("R"&基本項目!$B$3+1&"."&FU$17&".1"),0)<$K23,"",DATEDIF($K23-1,EOMONTH(VALUE("R"&基本項目!$B$3+1&"."&FU$17&".1")-1,1),"Y")),$U23)) ->  | HX23: =IF($R23="","",IF($U23="",IF(EOMONTH(VALUE("R"&基本項目!$B$3+1&"."&FX$17&".1"),0)<$K23,"",DATEDIF($K23-1,EOMONTH(VALUE("R"&基本項目!$B$3+1&"."&FX$17&".1")-1,1),"Y")),$U23)) ->  | IA23: =IF($R23="","",IF($U23="",IF(EOMONTH(VALUE("R"&基本項目!$B$3+1&"."&GA$17&".1"),0)<$K23,"",DATEDIF($K23-1,EOMONTH(VALUE("R"&基本項目!$B$3+1&"."&GA$17&".1")-1,1),"Y")),$U23)) ->  | IN23: =IF($R23="","",IF($U23="",IF(EOMONTH(VALUE("R"&基本項目!$B$3&"."&ET$17&".1"),0)<$K23,"",DATEDIF($K23,EOMONTH(VALUE("R"&基本項目!$B$3&"."&ET$17&".1")-1,1),"Y")),$U23)) ->  | IQ23: =IF($R23="","",IF($U23="",IF(EOMONTH(VALUE("R"&基本項目!$B$3&"."&EW$17&".1"),0)<$K23,"",DATEDIF($K23,EOMONTH(VALUE("R"&基本項目!$B$3&"."&EW$17&".1")-1,1),"Y")),$U23)) ->  | IT23: =IF($R23="","",IF($U23="",IF(EOMONTH(VALUE("R"&基本項目!$B$3&"."&EZ$17&".1"),0)<$K23,"",DATEDIF($K23,EOMONTH(VALUE("R"&基本項目!$B$3&"."&EZ$17&".1")-1,1),"Y")),$U23)) ->  | IW23: =IF($R23="","",IF($U23="",IF(EOMONTH(VALUE("R"&基本項目!$B$3&"."&FC$17&".1"),0)<$K23,"",DATEDIF($K23,EOMONTH(VALUE("R"&基本項目!$B$3&"."&FC$17&".1")-1,1),"Y")),$U23)) ->  | IZ23: =IF($R23="","",IF($U23="",IF(EOMONTH(VALUE("R"&基本項目!$B$3&"."&FF$17&".1"),0)<$K23,"",DATEDIF($K23,EOMONTH(VALUE("R"&基本項目!$B$3&"."&FF$17&".1")-1,1),"Y")),$U23)) ->  | JC23: =IF($R23="","",IF($U23="",IF(EOMONTH(VALUE("R"&基本項目!$B$3&"."&FI$17&".1"),0)<$K23,"",DATEDIF($K23,EOMONTH(VALUE("R"&基本項目!$B$3&"."&FI$17&".1")-1,1),"Y")),$U23)) ->  | JF23: =IF($R23="","",IF($U23="",IF(EOMONTH(VALUE("R"&基本項目!$B$3&"."&FL$17&".1"),0)<$K23,"",DATEDIF($K23,EOMONTH(VALUE("R"&基本項目!$B$3&"."&FL$17&".1")-1,1),"Y")),$U23)) ->  | JI23: =IF($R23="","",IF($U23="",IF(EOMONTH(VALUE("R"&基本項目!$B$3&"."&FO$17&".1"),0)<$K23,"",DATEDIF($K23,EOMONTH(VALUE("R"&基本項目!$B$3&"."&FO$17&".1")-1,1),"Y")),$U23)) ->  | JL23: =IF($R23="","",IF($U23="",IF(EOMONTH(VALUE("R"&基本項目!$B$3&"."&FR$17&".1"),0)<$K23,"",DATEDIF($K23,EOMONTH(VALUE("R"&基本項目!$B$3&"."&FR$17&".1")-1,1),"Y")),$U23)) ->  | JO23: =IF($R23="","",IF($U23="",IF(EOMONTH(VALUE("R"&基本項目!$B$3+1&"."&FU$17&".1"),0)<$K23,"",DATEDIF($K23,EOMONTH(VALUE("R"&基本項目!$B$3+1&"."&FU$17&".1")-1,1),"Y")),$U23)) ->  | JR23: =IF($R23="","",IF($U23="",IF(EOMONTH(VALUE("R"&基本項目!$B$3+1&"."&FX$17&".1"),0)<$K23,"",DATEDIF($K23,EOMONTH(VALUE("R"&基本項目!$B$3+1&"."&FX$17&".1")-1,1),"Y")),$U23)) ->  | JU23: =IF($R23="","",IF($U23="",IF(EOMONTH(VALUE("R"&基本項目!$B$3+1&"."&GA$17&".1"),0)<$K23,"",DATEDIF($K23,EOMONTH(VALUE("R"&基本項目!$B$3+1&"."&GA$17&".1")-1,1),"Y")),$U23)) -> 
B24: 7 | R24: =IF(AND($U24="",$K24=""),"",IF($U24="",所得計算!$I12,$U24)) ->  | AE24: =IF(所得計算!AO$4="","",所得計算!AO$4) ->  | BF24: =IF(所得計算!AO$23="","",所得計算!AO$23) ->  | DY24: =IF(OR(AND(SUM($AL24)=1,SUM($X24)<=8500000),AND(SUM($AL24)=1,SUM($X24)>8500000,SUM($BF24)>0)),"所得金額調整控除１？",IF(OR(AND(SUM($AL24)=2,OR(SUM(所得計算!$BK$5:$BK$15)=0,SUM($BF24)=0)),AND(SUM($AL24)=2,OR(SUM($X24)>8500000,SUM($BF24)=0))),"所得金額調整控除２？",IF(AND(SUM($AL24)=3,OR(SUM($X24)<=8500000,SUM($BF24)=0)),"所得金額調整控除３？",IF(AND($AL24="",OR(SUM($X24)>8500000,AND(SUM(所得計算!$BK$5:$BK$15)>0,SUM($BF24)>0))),"所得金額調整控除サイン不要？","")))) ->  | EL24: =SUM(DC24,$AU$3,CH24,CV24)-SUM(所得計算!$AZ$4) -> 0 | ER24: 7 | GO24: =IF($GL24="","",IF(HLOOKUP($GL24,$GT$17:$IC$27,8,FALSE)>=65,"","65未到達")) ->  | GT24: =IF($R24="","",IF($U24="",IF(EOMONTH(VALUE("R"&基本項目!$B$3&"."&ET$17&".1"),0)<$K24,"",DATEDIF($K24-1,EOMONTH(VALUE("R"&基本項目!$B$3&"."&ET$17&".1")-1,1),"Y")),$U24)) ->  | GW24: =IF($R24="","",IF($U24="",IF(EOMONTH(VALUE("R"&基本項目!$B$3&"."&EW$17&".1"),0)<$K24,"",DATEDIF($K24-1,EOMONTH(VALUE("R"&基本項目!$B$3&"."&EW$17&".1")-1,1),"Y")),$U24)) ->  | GZ24: =IF($R24="","",IF($U24="",IF(EOMONTH(VALUE("R"&基本項目!$B$3&"."&EZ$17&".1"),0)<$K24,"",DATEDIF($K24-1,EOMONTH(VALUE("R"&基本項目!$B$3&"."&EZ$17&".1")-1,1),"Y")),$U24)) ->  | HC24: =IF($R24="","",IF($U24="",IF(EOMONTH(VALUE("R"&基本項目!$B$3&"."&FC$17&".1"),0)<$K24,"",DATEDIF($K24-1,EOMONTH(VALUE("R"&基本項目!$B$3&"."&FC$17&".1")-1,1),"Y")),$U24)) ->  | HF24: =IF($R24="","",IF($U24="",IF(EOMONTH(VALUE("R"&基本項目!$B$3&"."&FF$17&".1"),0)<$K24,"",DATEDIF($K24-1,EOMONTH(VALUE("R"&基本項目!$B$3&"."&FF$17&".1")-1,1),"Y")),$U24)) ->  | HI24: =IF($R24="","",IF($U24="",IF(EOMONTH(VALUE("R"&基本項目!$B$3&"."&FI$17&".1"),0)<$K24,"",DATEDIF($K24-1,EOMONTH(VALUE("R"&基本項目!$B$3&"."&FI$17&".1")-1,1),"Y")),$U24)) ->  | HL24: =IF($R24="","",IF($U24="",IF(EOMONTH(VALUE("R"&基本項目!$B$3&"."&FL$17&".1"),0)<$K24,"",DATEDIF($K24-1,EOMONTH(VALUE("R"&基本項目!$B$3&"."&FL$17&".1")-1,1),"Y")),$U24)) ->  | HO24: =IF($R24="","",IF($U24="",IF(EOMONTH(VALUE("R"&基本項目!$B$3&"."&FO$17&".1"),0)<$K24,"",DATEDIF($K24-1,EOMONTH(VALUE("R"&基本項目!$B$3&"."&FO$17&".1")-1,1),"Y")),$U24)) ->  | HR24: =IF($R24="","",IF($U24="",IF(EOMONTH(VALUE("R"&基本項目!$B$3&"."&FR$17&".1"),0)<$K24,"",DATEDIF($K24-1,EOMONTH(VALUE("R"&基本項目!$B$3&"."&FR$17&".1")-1,1),"Y")),$U24)) ->  | HU24: =IF($R24="","",IF($U24="",IF(EOMONTH(VALUE("R"&基本項目!$B$3+1&"."&FU$17&".1"),0)<$K24,"",DATEDIF($K24-1,EOMONTH(VALUE("R"&基本項目!$B$3+1&"."&FU$17&".1")-1,1),"Y")),$U24)) ->  | HX24: =IF($R24="","",IF($U24="",IF(EOMONTH(VALUE("R"&基本項目!$B$3+1&"."&FX$17&".1"),0)<$K24,"",DATEDIF($K24-1,EOMONTH(VALUE("R"&基本項目!$B$3+1&"."&FX$17&".1")-1,1),"Y")),$U24)) ->  | IA24: =IF($R24="","",IF($U24="",IF(EOMONTH(VALUE("R"&基本項目!$B$3+1&"."&GA$17&".1"),0)<$K24,"",DATEDIF($K24-1,EOMONTH(VALUE("R"&基本項目!$B$3+1&"."&GA$17&".1")-1,1),"Y")),$U24)) ->  | IN24: =IF($R24="","",IF($U24="",IF(EOMONTH(VALUE("R"&基本項目!$B$3&"."&ET$17&".1"),0)<$K24,"",DATEDIF($K24,EOMONTH(VALUE("R"&基本項目!$B$3&"."&ET$17&".1")-1,1),"Y")),$U24)) ->  | IQ24: =IF($R24="","",IF($U24="",IF(EOMONTH(VALUE("R"&基本項目!$B$3&"."&EW$17&".1"),0)<$K24,"",DATEDIF($K24,EOMONTH(VALUE("R"&基本項目!$B$3&"."&EW$17&".1")-1,1),"Y")),$U24)) ->  | IT24: =IF($R24="","",IF($U24="",IF(EOMONTH(VALUE("R"&基本項目!$B$3&"."&EZ$17&".1"),0)<$K24,"",DATEDIF($K24,EOMONTH(VALUE("R"&基本項目!$B$3&"."&EZ$17&".1")-1,1),"Y")),$U24)) ->  | IW24: =IF($R24="","",IF($U24="",IF(EOMONTH(VALUE("R"&基本項目!$B$3&"."&FC$17&".1"),0)<$K24,"",DATEDIF($K24,EOMONTH(VALUE("R"&基本項目!$B$3&"."&FC$17&".1")-1,1),"Y")),$U24)) ->  | IZ24: =IF($R24="","",IF($U24="",IF(EOMONTH(VALUE("R"&基本項目!$B$3&"."&FF$17&".1"),0)<$K24,"",DATEDIF($K24,EOMONTH(VALUE("R"&基本項目!$B$3&"."&FF$17&".1")-1,1),"Y")),$U24)) ->  | JC24: =IF($R24="","",IF($U24="",IF(EOMONTH(VALUE("R"&基本項目!$B$3&"."&FI$17&".1"),0)<$K24,"",DATEDIF($K24,EOMONTH(VALUE("R"&基本項目!$B$3&"."&FI$17&".1")-1,1),"Y")),$U24)) ->  | JF24: =IF($R24="","",IF($U24="",IF(EOMONTH(VALUE("R"&基本項目!$B$3&"."&FL$17&".1"),0)<$K24,"",DATEDIF($K24,EOMONTH(VALUE("R"&基本項目!$B$3&"."&FL$17&".1")-1,1),"Y")),$U24)) ->  | JI24: =IF($R24="","",IF($U24="",IF(EOMONTH(VALUE("R"&基本項目!$B$3&"."&FO$17&".1"),0)<$K24,"",DATEDIF($K24,EOMONTH(VALUE("R"&基本項目!$B$3&"."&FO$17&".1")-1,1),"Y")),$U24)) ->  | JL24: =IF($R24="","",IF($U24="",IF(EOMONTH(VALUE("R"&基本項目!$B$3&"."&FR$17&".1"),0)<$K24,"",DATEDIF($K24,EOMONTH(VALUE("R"&基本項目!$B$3&"."&FR$17&".1")-1,1),"Y")),$U24)) ->  | JO24: =IF($R24="","",IF($U24="",IF(EOMONTH(VALUE("R"&基本項目!$B$3+1&"."&FU$17&".1"),0)<$K24,"",DATEDIF($K24,EOMONTH(VALUE("R"&基本項目!$B$3+1&"."&FU$17&".1")-1,1),"Y")),$U24)) ->  | JR24: =IF($R24="","",IF($U24="",IF(EOMONTH(VALUE("R"&基本項目!$B$3+1&"."&FX$17&".1"),0)<$K24,"",DATEDIF($K24,EOMONTH(VALUE("R"&基本項目!$B$3+1&"."&FX$17&".1")-1,1),"Y")),$U24)) ->  | JU24: =IF($R24="","",IF($U24="",IF(EOMONTH(VALUE("R"&基本項目!$B$3+1&"."&GA$17&".1"),0)<$K24,"",DATEDIF($K24,EOMONTH(VALUE("R"&基本項目!$B$3+1&"."&GA$17&".1")-1,1),"Y")),$U24)) -> 
B25: 8 | R25: =IF(AND($U25="",$K25=""),"",IF($U25="",所得計算!$I13,$U25)) ->  | AE25: =IF(所得計算!AP$4="","",所得計算!AP$4) ->  | BF25: =IF(所得計算!AP$23="","",所得計算!AP$23) ->  | DY25: =IF(OR(AND(SUM($AL25)=1,SUM($X25)<=8500000),AND(SUM($AL25)=1,SUM($X25)>8500000,SUM($BF25)>0)),"所得金額調整控除１？",IF(OR(AND(SUM($AL25)=2,OR(SUM(所得計算!$BL$5:$BL$15)=0,SUM($BF25)=0)),AND(SUM($AL25)=2,OR(SUM($X25)>8500000,SUM($BF25)=0))),"所得金額調整控除２？",IF(AND(SUM($AL25)=3,OR(SUM($X25)<=8500000,SUM($BF25)=0)),"所得金額調整控除３？",IF(AND($AL25="",OR(SUM($X25)>8500000,AND(SUM(所得計算!$BL$5:$BL$15)>0,SUM($BF25)>0))),"所得金額調整控除サイン不要？","")))) ->  | EL25: =SUM(DC25,$AU$3,CH25,CV25)-SUM(所得計算!$BA$4) -> 0 | ER25: 8 | GO25: =IF($GL25="","",IF(HLOOKUP($GL25,$GT$17:$IC$27,9,FALSE)>=65,"","65未到達")) ->  | GT25: =IF($R25="","",IF($U25="",IF(EOMONTH(VALUE("R"&基本項目!$B$3&"."&ET$17&".1"),0)<$K25,"",DATEDIF($K25-1,EOMONTH(VALUE("R"&基本項目!$B$3&"."&ET$17&".1")-1,1),"Y")),$U25)) ->  | GW25: =IF($R25="","",IF($U25="",IF(EOMONTH(VALUE("R"&基本項目!$B$3&"."&EW$17&".1"),0)<$K25,"",DATEDIF($K25-1,EOMONTH(VALUE("R"&基本項目!$B$3&"."&EW$17&".1")-1,1),"Y")),$U25)) ->  | GZ25: =IF($R25="","",IF($U25="",IF(EOMONTH(VALUE("R"&基本項目!$B$3&"."&EZ$17&".1"),0)<$K25,"",DATEDIF($K25-1,EOMONTH(VALUE("R"&基本項目!$B$3&"."&EZ$17&".1")-1,1),"Y")),$U25)) ->  | HC25: =IF($R25="","",IF($U25="",IF(EOMONTH(VALUE("R"&基本項目!$B$3&"."&FC$17&".1"),0)<$K25,"",DATEDIF($K25-1,EOMONTH(VALUE("R"&基本項目!$B$3&"."&FC$17&".1")-1,1),"Y")),$U25)) ->  | HF25: =IF($R25="","",IF($U25="",IF(EOMONTH(VALUE("R"&基本項目!$B$3&"."&FF$17&".1"),0)<$K25,"",DATEDIF($K25-1,EOMONTH(VALUE("R"&基本項目!$B$3&"."&FF$17&".1")-1,1),"Y")),$U25)) ->  | HI25: =IF($R25="","",IF($U25="",IF(EOMONTH(VALUE("R"&基本項目!$B$3&"."&FI$17&".1"),0)<$K25,"",DATEDIF($K25-1,EOMONTH(VALUE("R"&基本項目!$B$3&"."&FI$17&".1")-1,1),"Y")),$U25)) ->  | HL25: =IF($R25="","",IF($U25="",IF(EOMONTH(VALUE("R"&基本項目!$B$3&"."&FL$17&".1"),0)<$K25,"",DATEDIF($K25-1,EOMONTH(VALUE("R"&基本項目!$B$3&"."&FL$17&".1")-1,1),"Y")),$U25)) ->  | HO25: =IF($R25="","",IF($U25="",IF(EOMONTH(VALUE("R"&基本項目!$B$3&"."&FO$17&".1"),0)<$K25,"",DATEDIF($K25-1,EOMONTH(VALUE("R"&基本項目!$B$3&"."&FO$17&".1")-1,1),"Y")),$U25)) ->  | HR25: =IF($R25="","",IF($U25="",IF(EOMONTH(VALUE("R"&基本項目!$B$3&"."&FR$17&".1"),0)<$K25,"",DATEDIF($K25-1,EOMONTH(VALUE("R"&基本項目!$B$3&"."&FR$17&".1")-1,1),"Y")),$U25)) ->  | HU25: =IF($R25="","",IF($U25="",IF(EOMONTH(VALUE("R"&基本項目!$B$3+1&"."&FU$17&".1"),0)<$K25,"",DATEDIF($K25-1,EOMONTH(VALUE("R"&基本項目!$B$3+1&"."&FU$17&".1")-1,1),"Y")),$U25)) ->  | HX25: =IF($R25="","",IF($U25="",IF(EOMONTH(VALUE("R"&基本項目!$B$3+1&"."&FX$17&".1"),0)<$K25,"",DATEDIF($K25-1,EOMONTH(VALUE("R"&基本項目!$B$3+1&"."&FX$17&".1")-1,1),"Y")),$U25)) ->  | IA25: =IF($R25="","",IF($U25="",IF(EOMONTH(VALUE("R"&基本項目!$B$3+1&"."&GA$17&".1"),0)<$K25,"",DATEDIF($K25-1,EOMONTH(VALUE("R"&基本項目!$B$3+1&"."&GA$17&".1")-1,1),"Y")),$U25)) ->  | IN25: =IF($R25="","",IF($U25="",IF(EOMONTH(VALUE("R"&基本項目!$B$3&"."&ET$17&".1"),0)<$K25,"",DATEDIF($K25,EOMONTH(VALUE("R"&基本項目!$B$3&"."&ET$17&".1")-1,1),"Y")),$U25)) ->  | IQ25: =IF($R25="","",IF($U25="",IF(EOMONTH(VALUE("R"&基本項目!$B$3&"."&EW$17&".1"),0)<$K25,"",DATEDIF($K25,EOMONTH(VALUE("R"&基本項目!$B$3&"."&EW$17&".1")-1,1),"Y")),$U25)) ->  | IT25: =IF($R25="","",IF($U25="",IF(EOMONTH(VALUE("R"&基本項目!$B$3&"."&EZ$17&".1"),0)<$K25,"",DATEDIF($K25,EOMONTH(VALUE("R"&基本項目!$B$3&"."&EZ$17&".1")-1,1),"Y")),$U25)) ->  | IW25: =IF($R25="","",IF($U25="",IF(EOMONTH(VALUE("R"&基本項目!$B$3&"."&FC$17&".1"),0)<$K25,"",DATEDIF($K25,EOMONTH(VALUE("R"&基本項目!$B$3&"."&FC$17&".1")-1,1),"Y")),$U25)) ->  | IZ25: =IF($R25="","",IF($U25="",IF(EOMONTH(VALUE("R"&基本項目!$B$3&"."&FF$17&".1"),0)<$K25,"",DATEDIF($K25,EOMONTH(VALUE("R"&基本項目!$B$3&"."&FF$17&".1")-1,1),"Y")),$U25)) ->  | JC25: =IF($R25="","",IF($U25="",IF(EOMONTH(VALUE("R"&基本項目!$B$3&"."&FI$17&".1"),0)<$K25,"",DATEDIF($K25,EOMONTH(VALUE("R"&基本項目!$B$3&"."&FI$17&".1")-1,1),"Y")),$U25)) ->  | JF25: =IF($R25="","",IF($U25="",IF(EOMONTH(VALUE("R"&基本項目!$B$3&"."&FL$17&".1"),0)<$K25,"",DATEDIF($K25,EOMONTH(VALUE("R"&基本項目!$B$3&"."&FL$17&".1")-1,1),"Y")),$U25)) ->  | JI25: =IF($R25="","",IF($U25="",IF(EOMONTH(VALUE("R"&基本項目!$B$3&"."&FO$17&".1"),0)<$K25,"",DATEDIF($K25,EOMONTH(VALUE("R"&基本項目!$B$3&"."&FO$17&".1")-1,1),"Y")),$U25)) ->  | JL25: =IF($R25="","",IF($U25="",IF(EOMONTH(VALUE("R"&基本項目!$B$3&"."&FR$17&".1"),0)<$K25,"",DATEDIF($K25,EOMONTH(VALUE("R"&基本項目!$B$3&"."&FR$17&".1")-1,1),"Y")),$U25)) ->  | JO25: =IF($R25="","",IF($U25="",IF(EOMONTH(VALUE("R"&基本項目!$B$3+1&"."&FU$17&".1"),0)<$K25,"",DATEDIF($K25,EOMONTH(VALUE("R"&基本項目!$B$3+1&"."&FU$17&".1")-1,1),"Y")),$U25)) ->  | JR25: =IF($R25="","",IF($U25="",IF(EOMONTH(VALUE("R"&基本項目!$B$3+1&"."&FX$17&".1"),0)<$K25,"",DATEDIF($K25,EOMONTH(VALUE("R"&基本項目!$B$3+1&"."&FX$17&".1")-1,1),"Y")),$U25)) ->  | JU25: =IF($R25="","",IF($U25="",IF(EOMONTH(VALUE("R"&基本項目!$B$3+1&"."&GA$17&".1"),0)<$K25,"",DATEDIF($K25,EOMONTH(VALUE("R"&基本項目!$B$3+1&"."&GA$17&".1")-1,1),"Y")),$U25)) -> 
B26: 9 | R26: =IF(AND($U26="",$K26=""),"",IF($U26="",所得計算!$I14,$U26)) ->  | AE26: =IF(所得計算!AQ$4="","",所得計算!AQ$4) ->  | BF26: =IF(所得計算!AQ$23="","",所得計算!AQ$23) ->  | DY26: =IF(OR(AND(SUM($AL26)=1,SUM($X26)<=8500000),AND(SUM($AL26)=1,SUM($X26)>8500000,SUM($BF26)>0)),"所得金額調整控除１？",IF(OR(AND(SUM($AL26)=2,OR(SUM(所得計算!$BM$5:$BM$15)=0,SUM($BF26)=0)),AND(SUM($AL26)=2,OR(SUM($X26)>8500000,SUM($BF26)=0))),"所得金額調整控除２？",IF(AND(SUM($AL26)=3,OR(SUM($X26)<=8500000,SUM($BF26)=0)),"所得金額調整控除３？",IF(AND($AL26="",OR(SUM($X26)>8500000,AND(SUM(所得計算!$BM$5:$BM$15)>0,SUM($BF26)>0))),"所得金額調整控除サイン不要？","")))) ->  | EL26: =SUM(DC26,$AU$3,CH26,CV26)-SUM(所得計算!$BB$4) -> 0 | ER26: 9 | GO26: =IF($GL26="","",IF(HLOOKUP($GL26,$GT$17:$IC$27,10,FALSE)>=65,"","65未到達")) ->  | GT26: =IF($R26="","",IF($U26="",IF(EOMONTH(VALUE("R"&基本項目!$B$3&"."&ET$17&".1"),0)<$K26,"",DATEDIF($K26-1,EOMONTH(VALUE("R"&基本項目!$B$3&"."&ET$17&".1")-1,1),"Y")),$U26)) ->  | GW26: =IF($R26="","",IF($U26="",IF(EOMONTH(VALUE("R"&基本項目!$B$3&"."&EW$17&".1"),0)<$K26,"",DATEDIF($K26-1,EOMONTH(VALUE("R"&基本項目!$B$3&"."&EW$17&".1")-1,1),"Y")),$U26)) ->  | GZ26: =IF($R26="","",IF($U26="",IF(EOMONTH(VALUE("R"&基本項目!$B$3&"."&EZ$17&".1"),0)<$K26,"",DATEDIF($K26-1,EOMONTH(VALUE("R"&基本項目!$B$3&"."&EZ$17&".1")-1,1),"Y")),$U26)) ->  | HC26: =IF($R26="","",IF($U26="",IF(EOMONTH(VALUE("R"&基本項目!$B$3&"."&FC$17&".1"),0)<$K26,"",DATEDIF($K26-1,EOMONTH(VALUE("R"&基本項目!$B$3&"."&FC$17&".1")-1,1),"Y")),$U26)) ->  | HF26: =IF($R26="","",IF($U26="",IF(EOMONTH(VALUE("R"&基本項目!$B$3&"."&FF$17&".1"),0)<$K26,"",DATEDIF($K26-1,EOMONTH(VALUE("R"&基本項目!$B$3&"."&FF$17&".1")-1,1),"Y")),$U26)) ->  | HI26: =IF($R26="","",IF($U26="",IF(EOMONTH(VALUE("R"&基本項目!$B$3&"."&FI$17&".1"),0)<$K26,"",DATEDIF($K26-1,EOMONTH(VALUE("R"&基本項目!$B$3&"."&FI$17&".1")-1,1),"Y")),$U26)) ->  | HL26: =IF($R26="","",IF($U26="",IF(EOMONTH(VALUE("R"&基本項目!$B$3&"."&FL$17&".1"),0)<$K26,"",DATEDIF($K26-1,EOMONTH(VALUE("R"&基本項目!$B$3&"."&FL$17&".1")-1,1),"Y")),$U26)) ->  | HO26: =IF($R26="","",IF($U26="",IF(EOMONTH(VALUE("R"&基本項目!$B$3&"."&FO$17&".1"),0)<$K26,"",DATEDIF($K26-1,EOMONTH(VALUE("R"&基本項目!$B$3&"."&FO$17&".1")-1,1),"Y")),$U26)) ->  | HR26: =IF($R26="","",IF($U26="",IF(EOMONTH(VALUE("R"&基本項目!$B$3&"."&FR$17&".1"),0)<$K26,"",DATEDIF($K26-1,EOMONTH(VALUE("R"&基本項目!$B$3&"."&FR$17&".1")-1,1),"Y")),$U26)) ->  | HU26: =IF($R26="","",IF($U26="",IF(EOMONTH(VALUE("R"&基本項目!$B$3+1&"."&FU$17&".1"),0)<$K26,"",DATEDIF($K26-1,EOMONTH(VALUE("R"&基本項目!$B$3+1&"."&FU$17&".1")-1,1),"Y")),$U26)) ->  | HX26: =IF($R26="","",IF($U26="",IF(EOMONTH(VALUE("R"&基本項目!$B$3+1&"."&FX$17&".1"),0)<$K26,"",DATEDIF($K26-1,EOMONTH(VALUE("R"&基本項目!$B$3+1&"."&FX$17&".1")-1,1),"Y")),$U26)) ->  | IA26: =IF($R26="","",IF($U26="",IF(EOMONTH(VALUE("R"&基本項目!$B$3+1&"."&GA$17&".1"),0)<$K26,"",DATEDIF($K26-1,EOMONTH(VALUE("R"&基本項目!$B$3+1&"."&GA$17&".1")-1,1),"Y")),$U26)) ->  | IN26: =IF($R26="","",IF($U26="",IF(EOMONTH(VALUE("R"&基本項目!$B$3&"."&ET$17&".1"),0)<$K26,"",DATEDIF($K26,EOMONTH(VALUE("R"&基本項目!$B$3&"."&ET$17&".1")-1,1),"Y")),$U26)) ->  | IQ26: =IF($R26="","",IF($U26="",IF(EOMONTH(VALUE("R"&基本項目!$B$3&"."&EW$17&".1"),0)<$K26,"",DATEDIF($K26,EOMONTH(VALUE("R"&基本項目!$B$3&"."&EW$17&".1")-1,1),"Y")),$U26)) ->  | IT26: =IF($R26="","",IF($U26="",IF(EOMONTH(VALUE("R"&基本項目!$B$3&"."&EZ$17&".1"),0)<$K26,"",DATEDIF($K26,EOMONTH(VALUE("R"&基本項目!$B$3&"."&EZ$17&".1")-1,1),"Y")),$U26)) ->  | IW26: =IF($R26="","",IF($U26="",IF(EOMONTH(VALUE("R"&基本項目!$B$3&"."&FC$17&".1"),0)<$K26,"",DATEDIF($K26,EOMONTH(VALUE("R"&基本項目!$B$3&"."&FC$17&".1")-1,1),"Y")),$U26)) ->  | IZ26: =IF($R26="","",IF($U26="",IF(EOMONTH(VALUE("R"&基本項目!$B$3&"."&FF$17&".1"),0)<$K26,"",DATEDIF($K26,EOMONTH(VALUE("R"&基本項目!$B$3&"."&FF$17&".1")-1,1),"Y")),$U26)) ->  | JC26: =IF($R26="","",IF($U26="",IF(EOMONTH(VALUE("R"&基本項目!$B$3&"."&FI$17&".1"),0)<$K26,"",DATEDIF($K26,EOMONTH(VALUE("R"&基本項目!$B$3&"."&FI$17&".1")-1,1),"Y")),$U26)) ->  | JF26: =IF($R26="","",IF($U26="",IF(EOMONTH(VALUE("R"&基本項目!$B$3&"."&FL$17&".1"),0)<$K26,"",DATEDIF($K26,EOMONTH(VALUE("R"&基本項目!$B$3&"."&FL$17&".1")-1,1),"Y")),$U26)) ->  | JI26: =IF($R26="","",IF($U26="",IF(EOMONTH(VALUE("R"&基本項目!$B$3&"."&FO$17&".1"),0)<$K26,"",DATEDIF($K26,EOMONTH(VALUE("R"&基本項目!$B$3&"."&FO$17&".1")-1,1),"Y")),$U26)) ->  | JL26: =IF($R26="","",IF($U26="",IF(EOMONTH(VALUE("R"&基本項目!$B$3&"."&FR$17&".1"),0)<$K26,"",DATEDIF($K26,EOMONTH(VALUE("R"&基本項目!$B$3&"."&FR$17&".1")-1,1),"Y")),$U26)) ->  | JO26: =IF($R26="","",IF($U26="",IF(EOMONTH(VALUE("R"&基本項目!$B$3+1&"."&FU$17&".1"),0)<$K26,"",DATEDIF($K26,EOMONTH(VALUE("R"&基本項目!$B$3+1&"."&FU$17&".1")-1,1),"Y")),$U26)) ->  | JR26: =IF($R26="","",IF($U26="",IF(EOMONTH(VALUE("R"&基本項目!$B$3+1&"."&FX$17&".1"),0)<$K26,"",DATEDIF($K26,EOMONTH(VALUE("R"&基本項目!$B$3+1&"."&FX$17&".1")-1,1),"Y")),$U26)) ->  | JU26: =IF($R26="","",IF($U26="",IF(EOMONTH(VALUE("R"&基本項目!$B$3+1&"."&GA$17&".1"),0)<$K26,"",DATEDIF($K26,EOMONTH(VALUE("R"&基本項目!$B$3+1&"."&GA$17&".1")-1,1),"Y")),$U26)) -> 
B27: 10 | R27: =IF(AND($U27="",$K27=""),"",IF($U27="",所得計算!$I15,$U27)) ->  | AE27: =IF(所得計算!AR$4="","",所得計算!AR$4) ->  | BF27: =IF(所得計算!AR$23="","",所得計算!AR$23) ->  | DY27: =IF(OR(AND(SUM($AL27)=1,SUM($X27)<=8500000),AND(SUM($AL27)=1,SUM($X27)>8500000,SUM($BF27)>0)),"所得金額調整控除１？",IF(OR(AND(SUM($AL27)=2,OR(SUM(所得計算!$BN$5:$BN$15)=0,SUM($BF27)=0)),AND(SUM($AL27)=2,OR(SUM($X27)>8500000,SUM($BF27)=0))),"所得金額調整控除２？",IF(AND(SUM($AL27)=3,OR(SUM($X27)<=8500000,SUM($BF27)=0)),"所得金額調整控除３？",IF(AND($AL27="",OR(SUM($X27)>8500000,AND(SUM(所得計算!$BN$5:$BN$15)>0,SUM($BF27)>0))),"所得金額調整控除サイン不要？","")))) ->  | EL27: =SUM(DC27,$AU$3,CH27,CV27)-SUM(所得計算!$BC$4) -> 0 | ER27: 10 | GO27: =IF($GL27="","",IF(HLOOKUP($GL27,$GT$17:$IC$27,11,FALSE)>=65,"","65未到達")) ->  | GT27: =IF($R27="","",IF($U27="",IF(EOMONTH(VALUE("R"&基本項目!$B$3&"."&ET$17&".1"),0)<$K27,"",DATEDIF($K27-1,EOMONTH(VALUE("R"&基本項目!$B$3&"."&ET$17&".1")-1,1),"Y")),$U27)) ->  | GW27: =IF($R27="","",IF($U27="",IF(EOMONTH(VALUE("R"&基本項目!$B$3&"."&EW$17&".1"),0)<$K27,"",DATEDIF($K27-1,EOMONTH(VALUE("R"&基本項目!$B$3&"."&EW$17&".1")-1,1),"Y")),$U27)) ->  | GZ27: =IF($R27="","",IF($U27="",IF(EOMONTH(VALUE("R"&基本項目!$B$3&"."&EZ$17&".1"),0)<$K27,"",DATEDIF($K27-1,EOMONTH(VALUE("R"&基本項目!$B$3&"."&EZ$17&".1")-1,1),"Y")),$U27)) ->  | HC27: =IF($R27="","",IF($U27="",IF(EOMONTH(VALUE("R"&基本項目!$B$3&"."&FC$17&".1"),0)<$K27,"",DATEDIF($K27-1,EOMONTH(VALUE("R"&基本項目!$B$3&"."&FC$17&".1")-1,1),"Y")),$U27)) ->  | HF27: =IF($R27="","",IF($U27="",IF(EOMONTH(VALUE("R"&基本項目!$B$3&"."&FF$17&".1"),0)<$K27,"",DATEDIF($K27-1,EOMONTH(VALUE("R"&基本項目!$B$3&"."&FF$17&".1")-1,1),"Y")),$U27)) ->  | HI27: =IF($R27="","",IF($U27="",IF(EOMONTH(VALUE("R"&基本項目!$B$3&"."&FI$17&".1"),0)<$K27,"",DATEDIF($K27-1,EOMONTH(VALUE("R"&基本項目!$B$3&"."&FI$17&".1")-1,1),"Y")),$U27)) ->  | HL27: =IF($R27="","",IF($U27="",IF(EOMONTH(VALUE("R"&基本項目!$B$3&"."&FL$17&".1"),0)<$K27,"",DATEDIF($K27-1,EOMONTH(VALUE("R"&基本項目!$B$3&"."&FL$17&".1")-1,1),"Y")),$U27)) ->  | HO27: =IF($R27="","",IF($U27="",IF(EOMONTH(VALUE("R"&基本項目!$B$3&"."&FO$17&".1"),0)<$K27,"",DATEDIF($K27-1,EOMONTH(VALUE("R"&基本項目!$B$3&"."&FO$17&".1")-1,1),"Y")),$U27)) ->  | HR27: =IF($R27="","",IF($U27="",IF(EOMONTH(VALUE("R"&基本項目!$B$3&"."&FR$17&".1"),0)<$K27,"",DATEDIF($K27-1,EOMONTH(VALUE("R"&基本項目!$B$3&"."&FR$17&".1")-1,1),"Y")),$U27)) ->  | HU27: =IF($R27="","",IF($U27="",IF(EOMONTH(VALUE("R"&基本項目!$B$3+1&"."&FU$17&".1"),0)<$K27,"",DATEDIF($K27-1,EOMONTH(VALUE("R"&基本項目!$B$3+1&"."&FU$17&".1")-1,1),"Y")),$U27)) ->  | HX27: =IF($R27="","",IF($U27="",IF(EOMONTH(VALUE("R"&基本項目!$B$3+1&"."&FX$17&".1"),0)<$K27,"",DATEDIF($K27-1,EOMONTH(VALUE("R"&基本項目!$B$3+1&"."&FX$17&".1")-1,1),"Y")),$U27)) ->  | IA27: =IF($R27="","",IF($U27="",IF(EOMONTH(VALUE("R"&基本項目!$B$3+1&"."&GA$17&".1"),0)<$K27,"",DATEDIF($K27-1,EOMONTH(VALUE("R"&基本項目!$B$3+1&"."&GA$17&".1")-1,1),"Y")),$U27)) ->  | IN27: =IF($R27="","",IF($U27="",IF(EOMONTH(VALUE("R"&基本項目!$B$3&"."&ET$17&".1"),0)<$K27,"",DATEDIF($K27,EOMONTH(VALUE("R"&基本項目!$B$3&"."&ET$17&".1")-1,1),"Y")),$U27)) ->  | IQ27: =IF($R27="","",IF($U27="",IF(EOMONTH(VALUE("R"&基本項目!$B$3&"."&EW$17&".1"),0)<$K27,"",DATEDIF($K27,EOMONTH(VALUE("R"&基本項目!$B$3&"."&EW$17&".1")-1,1),"Y")),$U27)) ->  | IT27: =IF($R27="","",IF($U27="",IF(EOMONTH(VALUE("R"&基本項目!$B$3&"."&EZ$17&".1"),0)<$K27,"",DATEDIF($K27,EOMONTH(VALUE("R"&基本項目!$B$3&"."&EZ$17&".1")-1,1),"Y")),$U27)) ->  | IW27: =IF($R27="","",IF($U27="",IF(EOMONTH(VALUE("R"&基本項目!$B$3&"."&FC$17&".1"),0)<$K27,"",DATEDIF($K27,EOMONTH(VALUE("R"&基本項目!$B$3&"."&FC$17&".1")-1,1),"Y")),$U27)) ->  | IZ27: =IF($R27="","",IF($U27="",IF(EOMONTH(VALUE("R"&基本項目!$B$3&"."&FF$17&".1"),0)<$K27,"",DATEDIF($K27,EOMONTH(VALUE("R"&基本項目!$B$3&"."&FF$17&".1")-1,1),"Y")),$U27)) ->  | JC27: =IF($R27="","",IF($U27="",IF(EOMONTH(VALUE("R"&基本項目!$B$3&"."&FI$17&".1"),0)<$K27,"",DATEDIF($K27,EOMONTH(VALUE("R"&基本項目!$B$3&"."&FI$17&".1")-1,1),"Y")),$U27)) ->  | JF27: =IF($R27="","",IF($U27="",IF(EOMONTH(VALUE("R"&基本項目!$B$3&"."&FL$17&".1"),0)<$K27,"",DATEDIF($K27,EOMONTH(VALUE("R"&基本項目!$B$3&"."&FL$17&".1")-1,1),"Y")),$U27)) ->  | JI27: =IF($R27="","",IF($U27="",IF(EOMONTH(VALUE("R"&基本項目!$B$3&"."&FO$17&".1"),0)<$K27,"",DATEDIF($K27,EOMONTH(VALUE("R"&基本項目!$B$3&"."&FO$17&".1")-1,1),"Y")),$U27)) ->  | JL27: =IF($R27="","",IF($U27="",IF(EOMONTH(VALUE("R"&基本項目!$B$3&"."&FR$17&".1"),0)<$K27,"",DATEDIF($K27,EOMONTH(VALUE("R"&基本項目!$B$3&"."&FR$17&".1")-1,1),"Y")),$U27)) ->  | JO27: =IF($R27="","",IF($U27="",IF(EOMONTH(VALUE("R"&基本項目!$B$3+1&"."&FU$17&".1"),0)<$K27,"",DATEDIF($K27,EOMONTH(VALUE("R"&基本項目!$B$3+1&"."&FU$17&".1")-1,1),"Y")),$U27)) ->  | JR27: =IF($R27="","",IF($U27="",IF(EOMONTH(VALUE("R"&基本項目!$B$3+1&"."&FX$17&".1"),0)<$K27,"",DATEDIF($K27,EOMONTH(VALUE("R"&基本項目!$B$3+1&"."&FX$17&".1")-1,1),"Y")),$U27)) ->  | JU27: =IF($R27="","",IF($U27="",IF(EOMONTH(VALUE("R"&基本項目!$B$3+1&"."&GA$17&".1"),0)<$K27,"",DATEDIF($K27,EOMONTH(VALUE("R"&基本項目!$B$3+1&"."&GA$17&".1")-1,1),"Y")),$U27)) -> 
ET28: =IF(SUM($GD18)=12,1,IF(ET18="○",1,0))+IF(SUM($GD19)=12,1,IF(ET19="○",1,0))+IF(SUM($GD20)=12,1,IF(ET20="○",1,0))+IF(SUM($GD21)=12,1,IF(ET21="○",1,0))+IF(SUM($GD22)=12,1,IF(ET22="○",1,0))+IF(SUM($GD23)=12,1,IF(ET23="○",1,0))+IF(SUM($GD24)=12,1,IF(ET24="○",1,0))+IF(SUM($GD25)=12,1,IF(ET25="○",1,0))+IF(SUM($GD26)=12,1,IF(ET26="○",1,0))+IF(SUM($GD27)=12,1,IF(ET27="○",1,0)) -> 0 | EW28: =IF(SUM($GD18)=12,1,IF(EW18="○",1,0))+IF(SUM($GD19)=12,1,IF(EW19="○",1,0))+IF(SUM($GD20)=12,1,IF(EW20="○",1,0))+IF(SUM($GD21)=12,1,IF(EW21="○",1,0))+IF(SUM($GD22)=12,1,IF(EW22="○",1,0))+IF(SUM($GD23)=12,1,IF(EW23="○",1,0))+IF(SUM($GD24)=12,1,IF(EW24="○",1,0))+IF(SUM($GD25)=12,1,IF(EW25="○",1,0))+IF(SUM($GD26)=12,1,IF(EW26="○",1,0))+IF(SUM($GD27)=12,1,IF(EW27="○",1,0)) -> 0 | EZ28: =IF(SUM($GD18)=12,1,IF(EZ18="○",1,0))+IF(SUM($GD19)=12,1,IF(EZ19="○",1,0))+IF(SUM($GD20)=12,1,IF(EZ20="○",1,0))+IF(SUM($GD21)=12,1,IF(EZ21="○",1,0))+IF(SUM($GD22)=12,1,IF(EZ22="○",1,0))+IF(SUM($GD23)=12,1,IF(EZ23="○",1,0))+IF(SUM($GD24)=12,1,IF(EZ24="○",1,0))+IF(SUM($GD25)=12,1,IF(EZ25="○",1,0))+IF(SUM($GD26)=12,1,IF(EZ26="○",1,0))+IF(SUM($GD27)=12,1,IF(EZ27="○",1,0)) -> 0 | FC28: =IF(SUM($GD18)=12,1,IF(FC18="○",1,0))+IF(SUM($GD19)=12,1,IF(FC19="○",1,0))+IF(SUM($GD20)=12,1,IF(FC20="○",1,0))+IF(SUM($GD21)=12,1,IF(FC21="○",1,0))+IF(SUM($GD22)=12,1,IF(FC22="○",1,0))+IF(SUM($GD23)=12,1,IF(FC23="○",1,0))+IF(SUM($GD24)=12,1,IF(FC24="○",1,0))+IF(SUM($GD25)=12,1,IF(FC25="○",1,0))+IF(SUM($GD26)=12,1,IF(FC26="○",1,0))+IF(SUM($GD27)=12,1,IF(FC27="○",1,0)) -> 0 | FF28: =IF(SUM($GD18)=12,1,IF(FF18="○",1,0))+IF(SUM($GD19)=12,1,IF(FF19="○",1,0))+IF(SUM($GD20)=12,1,IF(FF20="○",1,0))+IF(SUM($GD21)=12,1,IF(FF21="○",1,0))+IF(SUM($GD22)=12,1,IF(FF22="○",1,0))+IF(SUM($GD23)=12,1,IF(FF23="○",1,0))+IF(SUM($GD24)=12,1,IF(FF24="○",1,0))+IF(SUM($GD25)=12,1,IF(FF25="○",1,0))+IF(SUM($GD26)=12,1,IF(FF26="○",1,0))+IF(SUM($GD27)=12,1,IF(FF27="○",1,0)) -> 0 | FI28: =IF(SUM($GD18)=12,1,IF(FI18="○",1,0))+IF(SUM($GD19)=12,1,IF(FI19="○",1,0))+IF(SUM($GD20)=12,1,IF(FI20="○",1,0))+IF(SUM($GD21)=12,1,IF(FI21="○",1,0))+IF(SUM($GD22)=12,1,IF(FI22="○",1,0))+IF(SUM($GD23)=12,1,IF(FI23="○",1,0))+IF(SUM($GD24)=12,1,IF(FI24="○",1,0))+IF(SUM($GD25)=12,1,IF(FI25="○",1,0))+IF(SUM($GD26)=12,1,IF(FI26="○",1,0))+IF(SUM($GD27)=12,1,IF(FI27="○",1,0)) -> 0 | FL28: =IF(SUM($GD18)=12,1,IF(FL18="○",1,0))+IF(SUM($GD19)=12,1,IF(FL19="○",1,0))+IF(SUM($GD20)=12,1,IF(FL20="○",1,0))+IF(SUM($GD21)=12,1,IF(FL21="○",1,0))+IF(SUM($GD22)=12,1,IF(FL22="○",1,0))+IF(SUM($GD23)=12,1,IF(FL23="○",1,0))+IF(SUM($GD24)=12,1,IF(FL24="○",1,0))+IF(SUM($GD25)=12,1,IF(FL25="○",1,0))+IF(SUM($GD26)=12,1,IF(FL26="○",1,0))+IF(SUM($GD27)=12,1,IF(FL27="○",1,0)) -> 0 | FO28: =IF(SUM($GD18)=12,1,IF(FO18="○",1,0))+IF(SUM($GD19)=12,1,IF(FO19="○",1,0))+IF(SUM($GD20)=12,1,IF(FO20="○",1,0))+IF(SUM($GD21)=12,1,IF(FO21="○",1,0))+IF(SUM($GD22)=12,1,IF(FO22="○",1,0))+IF(SUM($GD23)=12,1,IF(FO23="○",1,0))+IF(SUM($GD24)=12,1,IF(FO24="○",1,0))+IF(SUM($GD25)=12,1,IF(FO25="○",1,0))+IF(SUM($GD26)=12,1,IF(FO26="○",1,0))+IF(SUM($GD27)=12,1,IF(FO27="○",1,0)) -> 0 | FR28: =IF(SUM($GD18)=12,1,IF(FR18="○",1,0))+IF(SUM($GD19)=12,1,IF(FR19="○",1,0))+IF(SUM($GD20)=12,1,IF(FR20="○",1,0))+IF(SUM($GD21)=12,1,IF(FR21="○",1,0))+IF(SUM($GD22)=12,1,IF(FR22="○",1,0))+IF(SUM($GD23)=12,1,IF(FR23="○",1,0))+IF(SUM($GD24)=12,1,IF(FR24="○",1,0))+IF(SUM($GD25)=12,1,IF(FR25="○",1,0))+IF(SUM($GD26)=12,1,IF(FR26="○",1,0))+IF(SUM($GD27)=12,1,IF(FR27="○",1,0)) -> 0 | FU28: =IF(SUM($GD18)=12,1,IF(FU18="○",1,0))+IF(SUM($GD19)=12,1,IF(FU19="○",1,0))+IF(SUM($GD20)=12,1,IF(FU20="○",1,0))+IF(SUM($GD21)=12,1,IF(FU21="○",1,0))+IF(SUM($GD22)=12,1,IF(FU22="○",1,0))+IF(SUM($GD23)=12,1,IF(FU23="○",1,0))+IF(SUM($GD24)=12,1,IF(FU24="○",1,0))+IF(SUM($GD25)=12,1,IF(FU25="○",1,0))+IF(SUM($GD26)=12,1,IF(FU26="○",1,0))+IF(SUM($GD27)=12,1,IF(FU27="○",1,0)) -> 0 | FX28: =IF(SUM($GD18)=12,1,IF(FX18="○",1,0))+IF(SUM($GD19)=12,1,IF(FX19="○",1,0))+IF(SUM($GD20)=12,1,IF(FX20="○",1,0))+IF(SUM($GD21)=12,1,IF(FX21="○",1,0))+IF(SUM($GD22)=12,1,IF(FX22="○",1,0))+IF(SUM($GD23)=12,1,IF(FX23="○",1,0))+IF(SUM($GD24)=12,1,IF(FX24="○",1,0))+IF(SUM($GD25)=12,1,IF(FX25="○",1,0))+IF(SUM($GD26)=12,1,IF(FX26="○",1,0))+IF(SUM($GD27)=12,1,IF(FX27="○",1,0)) -> 0 | GA28: =IF(SUM($GD18)=12,1,IF(GA18="○",1,0))+IF(SUM($GD19)=12,1,IF(GA19="○",1,0))+IF(SUM($GD20)=12,1,IF(GA20="○",1,0))+IF(SUM($GD21)=12,1,IF(GA21="○",1,0))+IF(SUM($GD22)=12,1,IF(GA22="○",1,0))+IF(SUM($GD23)=12,1,IF(GA23="○",1,0))+IF(SUM($GD24)=12,1,IF(GA24="○",1,0))+IF(SUM($GD25)=12,1,IF(GA25="○",1,0))+IF(SUM($GD26)=12,1,IF(GA26="○",1,0))+IF(SUM($GD27)=12,1,IF(GA27="○",1,0)) -> 0 | GD28: =COUNT(GD18:GG27) -> 0 | ME28: =IF(AND(COUNT(ME18:MG27)>1,COUNTIF(ME18:MG27,"<75")=1),1,"") ->  | MH28: =IF(SUM($ME28)>=1,1,IF(AND(COUNT(MH18:MJ27)>1,COUNTIF(MH18:MJ27,"<75")=1),1,"")) ->  | MK28: =IF(SUM($ME28:MJ28)>=1,1,IF(AND(COUNT(MK18:MM27)>1,COUNTIF(MK18:MM27,"<75")=1),1,"")) ->  | MN28: =IF(SUM($ME28:MM28)>=1,1,IF(AND(COUNT(MN18:MP27)>1,COUNTIF(MN18:MP27,"<75")=1),1,"")) ->  | MQ28: =IF(SUM($ME28:MP28)>=1,1,IF(AND(COUNT(MQ18:MS27)>1,COUNTIF(MQ18:MS27,"<75")=1),1,"")) ->  | MT28: =IF(SUM($ME28:MS28)>=1,1,IF(AND(COUNT(MT18:MV27)>1,COUNTIF(MT18:MV27,"<75")=1),1,"")) ->  | MW28: =IF(SUM($ME28:MV28)>=1,1,IF(AND(COUNT(MW18:MY27)>1,COUNTIF(MW18:MY27,"<75")=1),1,"")) ->  | MZ28: =IF(SUM($ME28:MY28)>=1,1,IF(AND(COUNT(MZ18:NB27)>1,COUNTIF(MZ18:NB27,"<75")=1),1,"")) ->  | NC28: =IF(SUM($ME28:NB28)>=1,1,IF(AND(COUNT(NC18:NE27)>1,COUNTIF(NC18:NE27,"<75")=1),1,"")) ->  | NF28: =IF(SUM($ME28:NE28)>=1,1,IF(AND(COUNT(NF18:NH27)>1,COUNTIF(NF18:NH27,"<75")=1),1,"")) ->  | NI28: =IF(SUM($ME28:NH28)>=1,1,IF(AND(COUNT(NI18:NK27)>1,COUNTIF(NI18:NK27,"<75")=1),1,"")) ->  | NL28: =IF(SUM($ME28:NK28)>=1,1,IF(AND(COUNT(NL18:NN27)>1,COUNTIF(NL18:NN27,"<75")=1),1,"")) ->  | NO28: =SUM(ME28:NN28) -> 0 | NS28: ←平等割額の軽減特例措置判定用
ET29: =IF(COUNTIF(GD18:GG27,12)>0,ET17,IF(ET28>0,ET17,"")) ->  | EW29: =IF(SUM($ET29:ET29)=0,IF(EW28>0,EW17,""),"") ->  | EZ29: =IF(SUM($ET29:EW29)=0,IF(EZ28>0,EZ17,""),"") ->  | FC29: =IF(SUM($ET29:EZ29)=0,IF(FC28>0,FC17,""),"") ->  | FF29: =IF(SUM($ET29:FC29)=0,IF(FF28>0,FF17,""),"") ->  | FI29: =IF(SUM($ET29:FF29)=0,IF(FI28>0,FI17,""),"") ->  | FL29: =IF(SUM($ET29:FI29)=0,IF(FL28>0,FL17,""),"") ->  | FO29: =IF(SUM($ET29:FL29)=0,IF(FO28>0,FO17,""),"") ->  | FR29: =IF(SUM($ET29:FO29)=0,IF(FR28>0,FR17,""),"") ->  | FU29: =IF(SUM($ET29:FR29)=0,IF(FU28>0,FU17,""),"") ->  | FX29: =IF(SUM($ET29:FU29)=0,IF(FX28>0,FX17,""),"") ->  | GA29: =IF(SUM($ET29:FX29)=0,IF(GA28>0,GA17,""),"") ->  | GD29: =SUM(ET29:GC29) -> 0 | GG29: ←世帯ができた月
B30: 医療 保険分 | K30: 所得割 | P30: 率 | U30: 6.21 | AA30: ="（前年の総所得金額－基礎控除額）×"&IF(U30="","",U30)&"％" -> （前年の総所得金額－基礎控除額）×6.21％ | ET30: =IF(AND(SUM(ET29)=4,COUNTIF(ET18:EV27,"○")=0),SUMPRODUCT((GD18:GD27=12)*1,$EO$18:$EO$27),IF(SUM(ET29)=0,"",IF(SUM(ET28)=0,"",SUMPRODUCT((ET18:EV27="○")*1,$EO$18:$EQ$27)))) ->  | EW30: =IF(SUM(EW29)=0,"",IF(SUM(EW28)=0,"",SUMPRODUCT((EW18:EY27="○")*1,$EO$18:$EQ$27))) ->  | EZ30: =IF(SUM(EZ29)=0,"",IF(SUM(EZ28)=0,"",SUMPRODUCT((EZ18:FB27="○")*1,$EO$18:$EQ$27))) ->  | FC30: =IF(SUM(FC29)=0,"",IF(SUM(FC28)=0,"",SUMPRODUCT((FC18:FE27="○")*1,$EO$18:$EQ$27))) ->  | FF30: =IF(SUM(FF29)=0,"",IF(SUM(FF28)=0,"",SUMPRODUCT((FF18:FH27="○")*1,$EO$18:$EQ$27))) ->  | FI30: =IF(SUM(FI29)=0,"",IF(SUM(FI28)=0,"",SUMPRODUCT((FI18:FK27="○")*1,$EO$18:$EQ$27))) ->  | FL30: =IF(SUM(FL29)=0,"",IF(SUM(FL28)=0,"",SUMPRODUCT((FL18:FN27="○")*1,$EO$18:$EQ$27))) ->  | FO30: =IF(SUM(FO29)=0,"",IF(SUM(FO28)=0,"",SUMPRODUCT((FO18:FQ27="○")*1,$EO$18:$EQ$27))) ->  | FR30: =IF(SUM(FR29)=0,"",IF(SUM(FR28)=0,"",SUMPRODUCT((FR18:FT27="○")*1,$EO$18:$EQ$27))) ->  | FU30: =IF(SUM(FU29)=0,"",IF(SUM(FU28)=0,"",SUMPRODUCT((FU18:FW27="○")*1,$EO$18:$EQ$27))) ->  | FX30: =IF(SUM(FX29)=0,"",IF(SUM(FX28)=0,"",SUMPRODUCT((FX18:FZ27="○")*1,$EO$18:$EQ$27))) ->  | GA30: =IF(SUM(GA29)=0,"",IF(SUM(GA28)=0,"",SUMPRODUCT((GA18:GC27="○")*1,$EO$18:$EQ$27))) ->  | GD30: =SUM(ET30:GC30) -> 0 | GG30: ←給与・年金所得あり人数（＋10万円×（給与所得者※-1）の判定用）
P31: 控除額 | U31: 基礎控除 | ET31: =IF(ET$29="","",SUM(OB18:OD27)) ->  | EW31: =IF(EW$29="","",SUM(OE18:OG27)) ->  | EZ31: =IF(EZ$29="","",SUM(OH18:OJ27)) ->  | FC31: =IF(FC$29="","",SUM(OK18:OM27)) ->  | FF31: =IF(FF$29="","",SUM(ON18:OP27)) ->  | FI31: =IF(FI$29="","",SUM(OQ18:OS27)) ->  | FL31: =IF(FL$29="","",SUM(OT18:OV27)) ->  | FO31: =IF(FO$29="","",SUM(OW18:OY27)) ->  | FR31: =IF(FR$29="","",SUM(OZ18:PB27)) ->  | FU31: =IF(FU$29="","",SUM(PC18:PE27)) ->  | FX31: =IF(FX$29="","",SUM(PF18:PH27)) ->  | GA31: =IF(GA$29="","",SUM(PI18:PK27)) ->  | GD31: =SUM(ET31:GC31) -> 0 | GG31: ←軽減判定用所得（特定同一世帯所属者を除く）
K32: 均等割 | U32: 17400 | AA32: ←１人当たり | ET32: =IF(SUM(ET29)=0,"",SUM(ET28)) ->  | EW32: =IF(SUM(EW29)=0,"",SUM(EW28)) ->  | EZ32: =IF(SUM(EZ29)=0,"",SUM(EZ28)) ->  | FC32: =IF(SUM(FC29)=0,"",SUM(FC28)) ->  | FF32: =IF(SUM(FF29)=0,"",SUM(FF28)) ->  | FI32: =IF(SUM(FI29)=0,"",SUM(FI28)) ->  | FL32: =IF(SUM(FL29)=0,"",SUM(FL28)) ->  | FO32: =IF(SUM(FO29)=0,"",SUM(FO28)) ->  | FR32: =IF(SUM(FR29)=0,"",SUM(FR28)) ->  | FU32: =IF(SUM(FU29)=0,"",SUM(FU28)) ->  | FX32: =IF(SUM(FX29)=0,"",SUM(FX28)) ->  | GA32: =IF(SUM(GA29)=0,"",SUM(GA28)) ->  | GD32: =SUM(ET32:GC32) -> 0 | GG32: ←軽減判定用人数
K33: 平等割 | U33: 21000 | AA33: ←１世帯当たり
K34: 限度額 | U34: 650000 | CM34: =IF(SUM(GD50)<>0,"平等割額の軽減特例措置該当↓","") ->  | DH34: =IF(SUM($GD50)=0,""," ("&TEXT(BK39,"#,##0")&"－"&IF(SUM(BY39)=0,0,TEXT(BY39,"#,##0"))&")×1/2×"&TEXT(GD50,"#,##0")&"/12＝"&TEXT(DA35,"#,##0")&" ← "&TEXT(BK39,"#,##0")&"－"&IF(SUM(BY39)=0,0,TEXT(BY39,"#,##0"))&"－"&TEXT(DA35,"#,##0")&"＝"&TEXT(DA39,"#,##0")) -> 
BR35: =IF($AU$6="","",$AU$6) ->  | CM35: =IF(CM34="","","Ｃからこの金額を引く→") ->  | DA35: =IF(SUM($GD50)=0,"",IF(SUM(GD18:GG27)=SUM(GD39:GG48),"",ROUNDDOWN(((SUM($BK39)-SUM($BY39)))/2*SUM($GD50)/12,0))) -> 
D36: 該当者 | U36: 課税総所得金額 | AP36: 算出額（全体） | BR36: 軽減額(2･5･7割額) | CF36: 軽減後(2･5･7割後) | DH36: 月数 | DP36: 月割後
D37: 氏 名 | K37: 生年月日 | R37: 年齢 | U37: ① | AB37: ② | AI37: ③（①－②） | AP37: ="④(③×"&DBCS(U30)&"%)" -> ④(③×６．２１%) | AW37: ⑤ | BD37: ④＋⑤ | BK37: ⑥ | BR37: ⑦ | BY37: ⑧ | CF37: Ａ＝④ | CM37: Ｂ＝⑤－⑦ | CT37: Ａ＋Ｂ | DA37: Ｃ＝⑥－⑧ | DH37: 該当 月数 | DL37: 世帯 月数 | DP37: 所得割 | DW37: 均等割 | ED37: 平等割
U38: 総所得金額 | AB38: 控除額 | AI38: 課税所得 | AP38: 所得割 | AW38: 均等割 | BD38: 合 計 | BK38: 平等割 | BR38: 均等割 | BY38: 平等割 | CF38: 所得割 | CM38: 均等割 | CT38: 合 計 | DA38: 平等割 | ET38: 4 | EW38: 5 | EZ38: 6 | FC38: 7 | FF38: 8 | FI38: 9 | FL38: 10 | FO38: 11 | FR38: 12 | FU38: 1 | FX38: 2 | GA38: 3 | GD38: 月数計 | GH38: 備考 | HI38: 4 | HL38: 5 | HO38: 6 | HR38: 7 | HU38: 8 | HX38: 9 | IA38: 10 | ID38: 11 | IG38: 12 | IJ38: 13 | IM38: 14 | IP38: 15
B39: 1 | D39: =IF($DH39="","",$D18) ->  | K39: =IF($DH39="","",IF($K18="","",SUM($K18))) ->  | R39: =IF($DH39="","",IF($R18="","",SUM($R18))) ->  | U39: =IF($DH39="","",IF($DC18="","",SUM($DC18))) ->  | AB39: =IF($DH39="","",IF($U39="","",基礎控除!H3)) ->  | AI39: =IF($DH39="","",IF($U39="","",IF(SUM($U39)>SUM($AB39),SUM($U39)-SUM($AB39),0))) ->  | AP39: =IF($DH39="","",ROUNDDOWN(SUM(AI39)*SUM($U$30)/100,0)) ->  | AW39: =IF($DH39="","",SUM($U$32)) ->  | BD39: =IF(SUM(AP39:BC39)=0,"",SUM(AP39:BC39)) ->  | BK39: =IF($DL39="","",SUM($U$33)) ->  | BR39: =IF($AU$6="","",IF($DH39="","",ROUNDDOWN(SUM($U$32)*SUM(IF($AU$6="２割軽減世帯",2,IF($AU$6="５割軽減世帯",5,IF($AU$6="７割軽減世帯",7,""))))/10,0))) ->  | BY39: =IF($AU$6="","",IF($DL39="","",ROUNDDOWN(SUM($U$33)*SUM(IF($AU$6="２割軽減世帯",2,IF($AU$6="５割軽減世帯",5,IF($AU$6="７割軽減世帯",7,""))))/10,0))) ->  | CF39: =IF($DH39="","",SUM($AP39)) ->  | CM39: =IF($DH39="","",SUM($AW39)-SUM($BR39)) ->  | CT39: =IF(SUM(CF39:CS39)=0,"",SUM(CF39:CS39)) ->  | DA39: =IF($DL39="","",SUM($BK39)-SUM($BY39)-SUM(DA35)) ->  | DH39: =IF(GD39="","",SUM(GD39)) ->  | DL39: =IF($GH$18="","",SUM(GD51)) ->  | DP39: =IF($DH39="","",ROUNDDOWN(SUM($CF39)*SUM($DH39)/12,0)) ->  | DW39: =IF($DH39="","",IF(未就学児!F6="",ROUNDDOWN(SUM($CM39)*SUM($DH39)/12,0),(ROUNDDOWN(SUM($CM39)*SUM($DH39)/12,0))*0.5)) ->  | ED39: =IF($DL39="","",ROUNDDOWN(SUM($DA39)*SUM($DL39)/12,0)) ->  | EK39: =IF(未就学児!$F6=1,"←未就学児","") ->  | ET39: =IF(ME18="","",IF(ME18<75,IF(HI39="○","○",""),"")) ->  | EW39: =IF(MH18="","",IF(MH18<75,IF(HL39="○","○",""),"")) ->  | EZ39: =IF(MK18="","",IF(MK18<75,IF(HO39="○","○",""),"")) ->  | FC39: =IF(MN18="","",IF(MN18<75,IF(HR39="○","○",""),"")) ->  | FF39: =IF(MQ18="","",IF(MQ18<75,IF(HU39="○","○",""),"")) ->  | FI39: =IF(MT18="","",IF(MT18<75,IF(HX39="○","○",""),"")) ->  | FL39: =IF(MW18="","",IF(MW18<75,IF(IA39="○","○",""),"")) ->  | FO39: =IF(MZ18="","",IF(MZ18<75,IF(ID39="○","○",""),"")) ->  | FR39: =IF(NC18="","",IF(NC18<75,IF(IG39="○","○",""),"")) ->  | FU39: =IF(NF18="","",IF(NF18<75,IF(IJ39="○","○",""),"")) ->  | FX39: =IF(NI18="","",IF(NI18<75,IF(IM39="○","○",""),"")) ->  | GA39: =IF(NL18="","",IF(NL18<75,IF(IP39="○","○",""),"")) ->  | GD39: =IF(COUNTIF(ET39:GC39,"○")=0,"",COUNTIF(ET39:GC39,"○")) ->  | GH39: =IF(SUM(NO18)=12,"国保に該当しない。",IF(OR(SUM(GD18)=SUM(NS18),SUM(NO18)=0),"","年度途中から後期高齢者医療制度移行あり。")) ->  | HI39: =IF(ME18="","",IF($NW18>HI$38,"○","")) ->  | HL39: =IF(MH18="","",IF($NW18>HL$38,"○","")) ->  | HO39: =IF(MK18="","",IF($NW18>HO$38,"○","")) ->  | HR39: =IF(MN18="","",IF($NW18>HR$38,"○","")) ->  | HU39: =IF(MQ18="","",IF($NW18>HU$38,"○","")) ->  | HX39: =IF(MT18="","",IF($NW18>HX$38,"○","")) ->  | IA39: =IF(MW18="","",IF($NW18>IA$38,"○","")) ->  | ID39: =IF(MZ18="","",IF($NW18>ID$38,"○","")) ->  | IG39: =IF(NC18="","",IF($NW18>IG$38,"○","")) ->  | IJ39: =IF(NF18="","",IF($NW18>IJ$38,"○","")) ->  | IM39: =IF(NI18="","",IF($NW18>IM$38,"○","")) ->  | IP39: =IF(NL18="","",IF($NW18>IP$38,"○","")) -> 
B40: 2 | AB40: =IF($DH40="","",IF($U40="","",基礎控除!H4)) ->  | BR40: =IF($AU$6="","",IF($DH40="","",ROUNDDOWN(SUM($U$32)*SUM(IF($AU$6="２割軽減世帯",2,IF($AU$6="５割軽減世帯",5,IF($AU$6="７割軽減世帯",7,""))))/10,0))) ->  | DH40: =IF(GD40="","",SUM(GD40)) ->  | DW40: =IF($DH40="","",IF(未就学児!F7="",ROUNDDOWN(SUM($CM40)*SUM($DH40)/12,0),(ROUNDDOWN(SUM($CM40)*SUM($DH40)/12,0))*0.5)) ->  | EK40: =IF(未就学児!$F7=1,"←未就学児","") ->  | ET40: =IF(ME19="","",IF(ME19<75,IF(HI40="○","○",""),"")) ->  | EW40: =IF(MH19="","",IF(MH19<75,IF(HL40="○","○",""),"")) ->  | EZ40: =IF(MK19="","",IF(MK19<75,IF(HO40="○","○",""),"")) ->  | FC40: =IF(MN19="","",IF(MN19<75,IF(HR40="○","○",""),"")) ->  | FF40: =IF(MQ19="","",IF(MQ19<75,IF(HU40="○","○",""),"")) ->  | FI40: =IF(MT19="","",IF(MT19<75,IF(HX40="○","○",""),"")) ->  | FL40: =IF(MW19="","",IF(MW19<75,IF(IA40="○","○",""),"")) ->  | FO40: =IF(MZ19="","",IF(MZ19<75,IF(ID40="○","○",""),"")) ->  | FR40: =IF(NC19="","",IF(NC19<75,IF(IG40="○","○",""),"")) ->  | FU40: =IF(NF19="","",IF(NF19<75,IF(IJ40="○","○",""),"")) ->  | FX40: =IF(NI19="","",IF(NI19<75,IF(IM40="○","○",""),"")) ->  | GA40: =IF(NL19="","",IF(NL19<75,IF(IP40="○","○",""),"")) ->  | GD40: =IF(COUNTIF(ET40:GC40,"○")=0,"",COUNTIF(ET40:GC40,"○")) ->  | HI40: =IF(ME19="","",IF($NW19>HI$38,"○","")) ->  | HL40: =IF(MH19="","",IF($NW19>HL$38,"○","")) ->  | HO40: =IF(MK19="","",IF($NW19>HO$38,"○","")) ->  | HR40: =IF(MN19="","",IF($NW19>HR$38,"○","")) ->  | HU40: =IF(MQ19="","",IF($NW19>HU$38,"○","")) ->  | HX40: =IF(MT19="","",IF($NW19>HX$38,"○","")) ->  | IA40: =IF(MW19="","",IF($NW19>IA$38,"○","")) ->  | ID40: =IF(MZ19="","",IF($NW19>ID$38,"○","")) ->  | IG40: =IF(NC19="","",IF($NW19>IG$38,"○","")) ->  | IJ40: =IF(NF19="","",IF($NW19>IJ$38,"○","")) ->  | IM40: =IF(NI19="","",IF($NW19>IM$38,"○","")) ->  | IP40: =IF(NL19="","",IF($NW19>IP$38,"○","")) -> 
B41: 3 | AB41: =IF($DH41="","",IF($U41="","",基礎控除!H5)) ->  | BR41: =IF($AU$6="","",IF($DH41="","",ROUNDDOWN(SUM($U$32)*SUM(IF($AU$6="２割軽減世帯",2,IF($AU$6="５割軽減世帯",5,IF($AU$6="７割軽減世帯",7,""))))/10,0))) ->  | DH41: =IF(GD41="","",SUM(GD41)) ->  | DW41: =IF($DH41="","",IF(未就学児!F8="",ROUNDDOWN(SUM($CM41)*SUM($DH41)/12,0),(ROUNDDOWN(SUM($CM41)*SUM($DH41)/12,0))*0.5)) ->  | EK41: =IF(未就学児!$F8=1,"←未就学児","") ->  | ET41: =IF(ME20="","",IF(ME20<75,IF(HI41="○","○",""),"")) ->  | EW41: =IF(MH20="","",IF(MH20<75,IF(HL41="○","○",""),"")) ->  | EZ41: =IF(MK20="","",IF(MK20<75,IF(HO41="○","○",""),"")) ->  | FC41: =IF(MN20="","",IF(MN20<75,IF(HR41="○","○",""),"")) ->  | FF41: =IF(MQ20="","",IF(MQ20<75,IF(HU41="○","○",""),"")) ->  | FI41: =IF(MT20="","",IF(MT20<75,IF(HX41="○","○",""),"")) ->  | FL41: =IF(MW20="","",IF(MW20<75,IF(IA41="○","○",""),"")) ->  | FO41: =IF(MZ20="","",IF(MZ20<75,IF(ID41="○","○",""),"")) ->  | FR41: =IF(NC20="","",IF(NC20<75,IF(IG41="○","○",""),"")) ->  | FU41: =IF(NF20="","",IF(NF20<75,IF(IJ41="○","○",""),"")) ->  | FX41: =IF(NI20="","",IF(NI20<75,IF(IM41="○","○",""),"")) ->  | GA41: =IF(NL20="","",IF(NL20<75,IF(IP41="○","○",""),"")) ->  | GD41: =IF(COUNTIF(ET41:GC41,"○")=0,"",COUNTIF(ET41:GC41,"○")) ->  | HI41: =IF(ME20="","",IF($NW20>HI$38,"○","")) ->  | HL41: =IF(MH20="","",IF($NW20>HL$38,"○","")) ->  | HO41: =IF(MK20="","",IF($NW20>HO$38,"○","")) ->  | HR41: =IF(MN20="","",IF($NW20>HR$38,"○","")) ->  | HU41: =IF(MQ20="","",IF($NW20>HU$38,"○","")) ->  | HX41: =IF(MT20="","",IF($NW20>HX$38,"○","")) ->  | IA41: =IF(MW20="","",IF($NW20>IA$38,"○","")) ->  | ID41: =IF(MZ20="","",IF($NW20>ID$38,"○","")) ->  | IG41: =IF(NC20="","",IF($NW20>IG$38,"○","")) ->  | IJ41: =IF(NF20="","",IF($NW20>IJ$38,"○","")) ->  | IM41: =IF(NI20="","",IF($NW20>IM$38,"○","")) ->  | IP41: =IF(NL20="","",IF($NW20>IP$38,"○","")) -> 
B42: 4 | AB42: =IF($DH42="","",IF($U42="","",基礎控除!H6)) ->  | BR42: =IF($AU$6="","",IF($DH42="","",ROUNDDOWN(SUM($U$32)*SUM(IF($AU$6="２割軽減世帯",2,IF($AU$6="５割軽減世帯",5,IF($AU$6="７割軽減世帯",7,""))))/10,0))) ->  | DW42: =IF($DH42="","",IF(未就学児!F9="",ROUNDDOWN(SUM($CM42)*SUM($DH42)/12,0),(ROUNDDOWN(SUM($CM42)*SUM($DH42)/12,0))*0.5)) ->  | EK42: =IF(未就学児!$F9=1,"←未就学児","") -> 
B43: 5 | AB43: =IF($DH43="","",IF($U43="","",基礎控除!H7)) ->  | BR43: =IF($AU$6="","",IF($DH43="","",ROUNDDOWN(SUM($U$32)*SUM(IF($AU$6="２割軽減世帯",2,IF($AU$6="５割軽減世帯",5,IF($AU$6="７割軽減世帯",7,""))))/10,0))) ->  | DW43: =IF($DH43="","",IF(未就学児!F10="",ROUNDDOWN(SUM($CM43)*SUM($DH43)/12,0),(ROUNDDOWN(SUM($CM43)*SUM($DH43)/12,0))*0.5)) ->  | EK43: =IF(未就学児!$F10=1,"←未就学児","") -> 
B44: 6 | AB44: =IF($DH44="","",IF($U44="","",基礎控除!H8)) ->  | BR44: =IF($AU$6="","",IF($DH44="","",ROUNDDOWN(SUM($U$32)*SUM(IF($AU$6="２割軽減世帯",2,IF($AU$6="５割軽減世帯",5,IF($AU$6="７割軽減世帯",7,""))))/10,0))) ->  | DW44: =IF($DH44="","",IF(未就学児!F11="",ROUNDDOWN(SUM($CM44)*SUM($DH44)/12,0),(ROUNDDOWN(SUM($CM44)*SUM($DH44)/12,0))*0.5)) ->  | EK44: =IF(未就学児!$F11=1,"←未就学児","") -> 
B45: 7 | AB45: =IF($DH45="","",IF($U45="","",基礎控除!H9)) ->  | BR45: =IF($AU$6="","",IF($DH45="","",ROUNDDOWN(SUM($U$32)*SUM(IF($AU$6="２割軽減世帯",2,IF($AU$6="５割軽減世帯",5,IF($AU$6="７割軽減世帯",7,""))))/10,0))) ->  | DW45: =IF($DH45="","",IF(未就学児!F12="",ROUNDDOWN(SUM($CM45)*SUM($DH45)/12,0),(ROUNDDOWN(SUM($CM45)*SUM($DH45)/12,0))*0.5)) ->  | EK45: =IF(未就学児!$F12=1,"←未就学児","") -> 
B46: 8 | AB46: =IF($DH46="","",IF($U46="","",基礎控除!H10)) ->  | BR46: =IF($AU$6="","",IF($DH46="","",ROUNDDOWN(SUM($U$32)*SUM(IF($AU$6="２割軽減世帯",2,IF($AU$6="５割軽減世帯",5,IF($AU$6="７割軽減世帯",7,""))))/10,0))) ->  | DW46: =IF($DH46="","",IF(未就学児!F13="",ROUNDDOWN(SUM($CM46)*SUM($DH46)/12,0),(ROUNDDOWN(SUM($CM46)*SUM($DH46)/12,0))*0.5)) ->  | EK46: =IF(未就学児!$F13=1,"←未就学児","") -> 
B47: 9 | AB47: =IF($DH47="","",IF($U47="","",基礎控除!H11)) ->  | BR47: =IF($AU$6="","",IF($DH47="","",ROUNDDOWN(SUM($U$32)*SUM(IF($AU$6="２割軽減世帯",2,IF($AU$6="５割軽減世帯",5,IF($AU$6="７割軽減世帯",7,""))))/10,0))) ->  | DW47: =IF($DH47="","",IF(未就学児!F14="",ROUNDDOWN(SUM($CM47)*SUM($DH47)/12,0),(ROUNDDOWN(SUM($CM47)*SUM($DH47)/12,0))*0.5)) ->  | EK47: =IF(未就学児!$F14=1,"←未就学児","") -> 
B48: 10 | AB48: =IF($DH48="","",IF($U48="","",基礎控除!H12)) ->  | BR48: =IF($AU$6="","",IF($DH48="","",ROUNDDOWN(SUM($U$32)*SUM(IF($AU$6="２割軽減世帯",2,IF($AU$6="５割軽減世帯",5,IF($AU$6="７割軽減世帯",7,""))))/10,0))) ->  | DW48: =IF($DH48="","",IF(未就学児!F15="",ROUNDDOWN(SUM($CM48)*SUM($DH48)/12,0),(ROUNDDOWN(SUM($CM48)*SUM($DH48)/12,0))*0.5)) ->  | EK48: =IF(未就学児!$F15=1,"←未就学児","") -> 
D49: 合計 | U49: =SUM(U39:AA48) -> 0 | AB49: ********* | AI49: =SUM(AI39:AO48) -> 0 | AP49: =SUM(AP39:AV48) -> 0 | AW49: =SUM(AW39:BC48) -> 0 | BD49: =SUM(BD39:BJ48) -> 0 | BK49: =SUM(BK39:BQ48) -> 0 | BR49: =SUM(BR39:BX48) -> 0 | BY49: =SUM(BY39:CE48) -> 0 | CF49: =SUM(CF39:CL48) -> 0 | CM49: =SUM(CM39:CS48) -> 0 | CT49: =SUM(CT39:CZ48) -> 0 | DA49: =SUM(DA39:DG48) -> 0 | DP49: =SUM(DP39:DV48) -> 0 | DW49: =SUM(DW39:EC48) -> 0 | ED49: =SUM(ED39:EJ48) -> 0 | ET49: =SUMPRODUCT((ET39:EV48="○")*1) -> 0 | EW49: =SUMPRODUCT((EW39:EY48="○")*1) -> 0 | EZ49: =SUMPRODUCT((EZ39:FB48="○")*1) -> 0 | FC49: =SUMPRODUCT((FC39:FE48="○")*1) -> 0 | FF49: =SUMPRODUCT((FF39:FH48="○")*1) -> 0 | FI49: =SUMPRODUCT((FI39:FK48="○")*1) -> 0 | FL49: =SUMPRODUCT((FL39:FN48="○")*1) -> 0 | FO49: =SUMPRODUCT((FO39:FQ48="○")*1) -> 0 | FR49: =SUMPRODUCT((FR39:FT48="○")*1) -> 0 | FU49: =SUMPRODUCT((FU39:FW48="○")*1) -> 0 | FX49: =SUMPRODUCT((FX39:FZ48="○")*1) -> 0 | GA49: =SUMPRODUCT((GA39:GC48="○")*1) -> 0 | GD49: ***
BK50: =IF(ROUNDDOWN(SUM(BD49:BQ49),-2)>SUM($U$34),SUM($U$34),ROUNDDOWN(SUM(BD49:BQ49),-2)) -> 0 | BR50: ※特例措置の軽減含む↑ | CZ50: 合計（Ａ＋Ｂ＋Ｃ）→ | DA50: =SUM(CT49:DG49) -> 0 | EC50: 合計（Ａ＋Ｂ＋Ｃ）→ | ED50: =SUM(DP49:EJ49) -> 0 | ET50: =SUM(ME28) -> 0 | EW50: =SUM(MH28) -> 0 | EZ50: =SUM(MK28) -> 0 | FC50: =SUM(MN28) -> 0 | FF50: =SUM(MQ28) -> 0 | FI50: =SUM(MT28) -> 0 | FL50: =SUM(MW28) -> 0 | FO50: =SUM(MZ28) -> 0 | FR50: =SUM(NC28) -> 0 | FU50: =SUM(NF28) -> 0 | FX50: =SUM(NI28) -> 0 | GA50: =SUM(NL28) -> 0 | GD50: =IF(SUM(GD28)=1,"",SUM(ET50:GC50)) -> 0
CZ51: Ｄ 限度額以下（百円未満切捨て）→ | DA51: =IF(ROUNDDOWN(SUM(DA50),-2)>SUM($U$34),SUM($U$34),ROUNDDOWN(SUM(DA50),-2)) -> 0 | EC51: Ｄ 限度額以下（百円未満切捨て）→ | ED51: =IF(ROUNDDOWN(SUM(ED50),-2)>SUM($U$34),SUM($U$34),ROUNDDOWN(SUM(ED50),-2)) -> 0 | ET51: =IF(SUMPRODUCT((ET39:EV48="○")*1)>0,1,"") ->  | EW51: =IF(SUMPRODUCT((EW39:EY48="○")*1)>0,1,"") ->  | EZ51: =IF(SUMPRODUCT((EZ39:FB48="○")*1)>0,1,"") ->  | FC51: =IF(SUMPRODUCT((FC39:FE48="○")*1)>0,1,"") ->  | FF51: =IF(SUMPRODUCT((FF39:FH48="○")*1)>0,1,"") ->  | FI51: =IF(SUMPRODUCT((FI39:FK48="○")*1)>0,1,"") ->  | FL51: =IF(SUMPRODUCT((FL39:FN48="○")*1)>0,1,"") ->  | FO51: =IF(SUMPRODUCT((FO39:FQ48="○")*1)>0,1,"") ->  | FR51: =IF(SUMPRODUCT((FR39:FT48="○")*1)>0,1,"") ->  | FU51: =IF(SUMPRODUCT((FU39:FW48="○")*1)>0,1,"") ->  | FX51: =IF(SUMPRODUCT((FX39:FZ48="○")*1)>0,1,"") ->  | GA51: =IF(SUMPRODUCT((GA39:GC48="○")*1)>0,1,"") ->  | GD51: =SUM(ET51:GC51) -> 0
CZ52: 限度超過額→ | DA52: =IF(ROUNDDOWN(SUM(DA50),-2)>SUM(DA51),SUM(DA50)-SUM(DA51),0) -> 0 | EC52: 限度超過額→ | ED52: =IF(ROUNDDOWN(SUM(ED50),-2)>SUM(ED51),SUM(ED50)-SUM(ED51),0) -> 0
B54: 後期高齢者 支援金分 | K54: 所得割 | P54: 率 | U54: 2.41 | AA54: ="（前年の総所得金額－基礎控除額）×"&IF(U54="","",U54)&"％" -> （前年の総所得金額－基礎控除額）×2.41％
P55: 控除額 | U55: 基礎控除
K56: 均等割 | U56: 13200 | AA56: ←１人当たり
K57: 限度額 | U57: 220000
BR58: =IF($AU$6="","",$AU$6) -> 
D59: 該当者 | U59: 課税総所得金額 | AP59: 算出額（全体） | BR59: 軽減額(2･5･7割額) | CF59: 軽減後(2･5･7割後) | DH59: 月数 | DP59: 月割後
D60: 氏 名 | K60: 生年月日 | R60: 年齢 | U60: ① | AB60: ② | AI60: ③（①－②） | AP60: ="④(③×"&DBCS(U54)&"%)" -> ④(③×２．４１%) | AW60: ⑤ | BD60: ④＋⑤ | BR60: ⑦ | CF60: Ａ＝④ | CM60: Ｂ＝⑤－⑦ | CT60: Ａ＋Ｂ | DH60: 該当 月数 | DL60: 世帯 月数 | DP60: 所得割 | DW60: 均等割
U61: 総所得金額 | AB61: 控除額 | AI61: 課税所得 | AP61: 所得割 | AW61: 均等割 | BD61: 合 計 | BR61: 均等割 | CF61: 所得割 | CM61: 均等割 | CT61: 合 計 | ET61: 4 | EW61: 5 | EZ61: 6 | FC61: 7 | FF61: 8 | FI61: 9 | FL61: 10 | FO61: 11 | FR61: 12 | FU61: 1 | FX61: 2 | GA61: 3 | GD61: 月数計 | GH61: 備考
B62: 1 | D62: =IF($DH62="","",$D18) ->  | K62: =IF($DH62="","",IF($K18="","",SUM($K18))) ->  | R62: =IF($DH62="","",IF($R18="","",SUM($R18))) ->  | U62: =IF($DH62="","",IF($DC18="","",SUM($DC18))) ->  | AB62: =IF($DH62="","",IF($U62="","",基礎控除!H3)) ->  | AI62: =IF($DH62="","",IF($U62="","",IF(SUM($U62)>SUM($AB62),SUM($U62)-SUM($AB62),0))) ->  | AP62: =IF($DH62="","",ROUNDDOWN(SUM(AI62)*SUM($U$54)/100,0)) ->  | AW62: =IF($DH62="","",SUM($U$56)) ->  | BD62: =IF(SUM(AP62:BC62)=0,"",SUM(AP62:BC62)) ->  | BR62: =IF($AU$6="","",IF($DH62="","",ROUNDDOWN(SUM($U$56)*SUM(IF($AU$6="２割軽減世帯",2,IF($AU$6="５割軽減世帯",5,IF($AU$6="７割軽減世帯",7,""))))/10,0))) ->  | CF62: =IF($DH62="","",SUM($AP62)) ->  | CM62: =IF($DH62="","",SUM($AW62)-SUM($BR62)) ->  | CT62: =IF(SUM(CF62:CS62)=0,"",SUM(CF62:CS62)) ->  | DH62: =IF(GD62="","",SUM(GD62)) ->  | DP62: =IF($DH62="","",ROUNDDOWN(SUM($CF62)*SUM($DH62)/12,0)) ->  | DW62: =IF($DH62="","",IF(未就学児!F6="",ROUNDDOWN(SUM($CM62)*SUM($DH62)/12,0),ROUNDDOWN(SUM($CM62)*SUM($DH62)/12,0)*0.5)) ->  | EK62: =IF(未就学児!$F6=1,"←未就学児","") ->  | ET62: =IF(ME18="","",IF(ME18<75,IF(HI39="○","○",""),"")) ->  | EW62: =IF(MH18="","",IF(MH18<75,IF(HL39="○","○",""),"")) ->  | EZ62: =IF(MK18="","",IF(MK18<75,IF(HO39="○","○",""),"")) ->  | FC62: =IF(MN18="","",IF(MN18<75,IF(HR39="○","○",""),"")) ->  | FF62: =IF(MQ18="","",IF(MQ18<75,IF(HU39="○","○",""),"")) ->  | FI62: =IF(MT18="","",IF(MT18<75,IF(HX39="○","○",""),"")) ->  | FL62: =IF(MW18="","",IF(MW18<75,IF(IA39="○","○",""),"")) ->  | FO62: =IF(MZ18="","",IF(MZ18<75,IF(ID39="○","○",""),"")) ->  | FR62: =IF(NC18="","",IF(NC18<75,IF(IG39="○","○",""),"")) ->  | FU62: =IF(NF18="","",IF(NF18<75,IF(IJ39="○","○",""),"")) ->  | FX62: =IF(NI18="","",IF(NI18<75,IF(IM39="○","○",""),"")) ->  | GA62: =IF(NL18="","",IF(NL18<75,IF(IP39="○","○",""),"")) ->  | GD62: =IF(COUNTIF(ET62:GC62,"○")=0,"",COUNTIF(ET62:GC62,"○")) ->  | GH62: =IF(SUM(NO18)=12,"国保に該当しない。",IF(OR(SUM(GD18)=SUM(NS18),SUM(NO18)=0),"","年度途中から後期高齢者医療制度移行あり。")) -> 
B63: 2 | AB63: =IF($DH63="","",IF($U63="","",基礎控除!H4)) ->  | BR63: =IF($AU$6="","",IF($DH63="","",ROUNDDOWN(SUM($U$56)*SUM(IF($AU$6="２割軽減世帯",2,IF($AU$6="５割軽減世帯",5,IF($AU$6="７割軽減世帯",7,""))))/10,0))) ->  | DH63: =IF(GD63="","",SUM(GD63)) ->  | DW63: =IF($DH63="","",IF(未就学児!F7="",ROUNDDOWN(SUM($CM63)*SUM($DH63)/12,0),ROUNDDOWN(SUM($CM63)*SUM($DH63)/12,0)*0.5)) ->  | EK63: =IF(未就学児!$F7=1,"←未就学児","") ->  | ET63: =IF(ME19="","",IF(ME19<75,IF(HI40="○","○",""),"")) ->  | EW63: =IF(MH19="","",IF(MH19<75,IF(HL40="○","○",""),"")) ->  | EZ63: =IF(MK19="","",IF(MK19<75,IF(HO40="○","○",""),"")) ->  | FC63: =IF(MN19="","",IF(MN19<75,IF(HR40="○","○",""),"")) ->  | FF63: =IF(MQ19="","",IF(MQ19<75,IF(HU40="○","○",""),"")) ->  | FI63: =IF(MT19="","",IF(MT19<75,IF(HX40="○","○",""),"")) ->  | FL63: =IF(MW19="","",IF(MW19<75,IF(IA40="○","○",""),"")) ->  | FO63: =IF(MZ19="","",IF(MZ19<75,IF(ID40="○","○",""),"")) ->  | FR63: =IF(NC19="","",IF(NC19<75,IF(IG40="○","○",""),"")) ->  | FU63: =IF(NF19="","",IF(NF19<75,IF(IJ40="○","○",""),"")) ->  | FX63: =IF(NI19="","",IF(NI19<75,IF(IM40="○","○",""),"")) ->  | GA63: =IF(NL19="","",IF(NL19<75,IF(IP40="○","○",""),"")) ->  | GD63: =IF(COUNTIF(ET63:GC63,"○")=0,"",COUNTIF(ET63:GC63,"○")) -> 
B64: 3 | AB64: =IF($DH64="","",IF($U64="","",基礎控除!H5)) ->  | BR64: =IF($AU$6="","",IF($DH64="","",ROUNDDOWN(SUM($U$56)*SUM(IF($AU$6="２割軽減世帯",2,IF($AU$6="５割軽減世帯",5,IF($AU$6="７割軽減世帯",7,""))))/10,0))) ->  | DH64: =IF(GD64="","",SUM(GD64)) ->  | DW64: =IF($DH64="","",IF(未就学児!F8="",ROUNDDOWN(SUM($CM64)*SUM($DH64)/12,0),ROUNDDOWN(SUM($CM64)*SUM($DH64)/12,0)*0.5)) ->  | EK64: =IF(未就学児!$F8=1,"←未就学児","") ->  | ET64: =IF(ME20="","",IF(ME20<75,IF(HI41="○","○",""),"")) ->  | EW64: =IF(MH20="","",IF(MH20<75,IF(HL41="○","○",""),"")) ->  | EZ64: =IF(MK20="","",IF(MK20<75,IF(HO41="○","○",""),"")) ->  | FC64: =IF(MN20="","",IF(MN20<75,IF(HR41="○","○",""),"")) ->  | FF64: =IF(MQ20="","",IF(MQ20<75,IF(HU41="○","○",""),"")) ->  | FI64: =IF(MT20="","",IF(MT20<75,IF(HX41="○","○",""),"")) ->  | FL64: =IF(MW20="","",IF(MW20<75,IF(IA41="○","○",""),"")) ->  | FO64: =IF(MZ20="","",IF(MZ20<75,IF(ID41="○","○",""),"")) ->  | FR64: =IF(NC20="","",IF(NC20<75,IF(IG41="○","○",""),"")) ->  | FU64: =IF(NF20="","",IF(NF20<75,IF(IJ41="○","○",""),"")) ->  | FX64: =IF(NI20="","",IF(NI20<75,IF(IM41="○","○",""),"")) ->  | GA64: =IF(NL20="","",IF(NL20<75,IF(IP41="○","○",""),"")) ->  | GD64: =IF(COUNTIF(ET64:GC64,"○")=0,"",COUNTIF(ET64:GC64,"○")) -> 
B65: 4 | AB65: =IF($DH65="","",IF($U65="","",基礎控除!H6)) ->  | BR65: =IF($AU$6="","",IF($DH65="","",ROUNDDOWN(SUM($U$56)*SUM(IF($AU$6="２割軽減世帯",2,IF($AU$6="５割軽減世帯",5,IF($AU$6="７割軽減世帯",7,""))))/10,0))) ->  | DW65: =IF($DH65="","",IF(未就学児!F9="",ROUNDDOWN(SUM($CM65)*SUM($DH65)/12,0),ROUNDDOWN(SUM($CM65)*SUM($DH65)/12,0)*0.5)) ->  | EK65: =IF(未就学児!$F9=1,"←未就学児","") -> 
B66: 5 | AB66: =IF($DH66="","",IF($U66="","",基礎控除!H7)) ->  | BR66: =IF($AU$6="","",IF($DH66="","",ROUNDDOWN(SUM($U$56)*SUM(IF($AU$6="２割軽減世帯",2,IF($AU$6="５割軽減世帯",5,IF($AU$6="７割軽減世帯",7,""))))/10,0))) ->  | DW66: =IF($DH66="","",IF(未就学児!F10="",ROUNDDOWN(SUM($CM66)*SUM($DH66)/12,0),ROUNDDOWN(SUM($CM66)*SUM($DH66)/12,0)*0.5)) ->  | EK66: =IF(未就学児!$F10=1,"←未就学児","") -> 
B67: 6 | AB67: =IF($DH67="","",IF($U67="","",基礎控除!H8)) ->  | BR67: =IF($AU$6="","",IF($DH67="","",ROUNDDOWN(SUM($U$56)*SUM(IF($AU$6="２割軽減世帯",2,IF($AU$6="５割軽減世帯",5,IF($AU$6="７割軽減世帯",7,""))))/10,0))) ->  | DW67: =IF($DH67="","",IF(未就学児!F11="",ROUNDDOWN(SUM($CM67)*SUM($DH67)/12,0),ROUNDDOWN(SUM($CM67)*SUM($DH67)/12,0)*0.5)) ->  | EK67: =IF(未就学児!$F11=1,"←未就学児","") -> 
B68: 7 | AB68: =IF($DH68="","",IF($U68="","",基礎控除!H9)) ->  | BR68: =IF($AU$6="","",IF($DH68="","",ROUNDDOWN(SUM($U$56)*SUM(IF($AU$6="２割軽減世帯",2,IF($AU$6="５割軽減世帯",5,IF($AU$6="７割軽減世帯",7,""))))/10,0))) ->  | DW68: =IF($DH68="","",IF(未就学児!F12="",ROUNDDOWN(SUM($CM68)*SUM($DH68)/12,0),ROUNDDOWN(SUM($CM68)*SUM($DH68)/12,0)*0.5)) ->  | EK68: =IF(未就学児!$F12=1,"←未就学児","") -> 
B69: 8 | AB69: =IF($DH69="","",IF($U69="","",基礎控除!H10)) ->  | BR69: =IF($AU$6="","",IF($DH69="","",ROUNDDOWN(SUM($U$56)*SUM(IF($AU$6="２割軽減世帯",2,IF($AU$6="５割軽減世帯",5,IF($AU$6="７割軽減世帯",7,""))))/10,0))) ->  | DW69: =IF($DH69="","",IF(未就学児!F13="",ROUNDDOWN(SUM($CM69)*SUM($DH69)/12,0),ROUNDDOWN(SUM($CM69)*SUM($DH69)/12,0)*0.5)) ->  | EK69: =IF(未就学児!$F13=1,"←未就学児","") -> 
B70: 9 | AB70: =IF($DH70="","",IF($U70="","",基礎控除!H11)) ->  | BR70: =IF($AU$6="","",IF($DH70="","",ROUNDDOWN(SUM($U$56)*SUM(IF($AU$6="２割軽減世帯",2,IF($AU$6="５割軽減世帯",5,IF($AU$6="７割軽減世帯",7,""))))/10,0))) ->  | DW70: =IF($DH70="","",IF(未就学児!F14="",ROUNDDOWN(SUM($CM70)*SUM($DH70)/12,0),ROUNDDOWN(SUM($CM70)*SUM($DH70)/12,0)*0.5)) ->  | EK70: =IF(未就学児!$F14=1,"←未就学児","") -> 
B71: 10 | AB71: =IF($DH71="","",IF($U71="","",基礎控除!H12)) ->  | BR71: =IF($AU$6="","",IF($DH71="","",ROUNDDOWN(SUM($U$56)*SUM(IF($AU$6="２割軽減世帯",2,IF($AU$6="５割軽減世帯",5,IF($AU$6="７割軽減世帯",7,""))))/10,0))) ->  | DW71: =IF($DH71="","",IF(未就学児!F15="",ROUNDDOWN(SUM($CM71)*SUM($DH71)/12,0),ROUNDDOWN(SUM($CM71)*SUM($DH71)/12,0)*0.5)) ->  | EK71: =IF(未就学児!$F15=1,"←未就学児","") -> 
D72: 合計 | U72: =SUM(U62:AA71) -> 0 | AB72: ********* | AI72: =SUM(AI62:AO71) -> 0 | AP72: =SUM(AP62:AV71) -> 0 | AW72: =SUM(AW62:BC71) -> 0 | BD72: =SUM(BD62:BJ71) -> 0 | BR72: =SUM(BR62:BX71) -> 0 | CF72: =SUM(CF62:CL71) -> 0 | CM72: =SUM(CM62:CS71) -> 0 | CT72: =SUM(CT62:CZ71) -> 0 | DP72: =SUM(DP62:DV71) -> 0 | DW72: =SUM(DW62:EC71) -> 0 | ET72: =SUMPRODUCT((ET62:ET71="○")*1) -> 0 | EW72: =SUMPRODUCT((EW62:EW71="○")*1) -> 0 | EZ72: =SUMPRODUCT((EZ62:EZ71="○")*1) -> 0 | FC72: =SUMPRODUCT((FC62:FC71="○")*1) -> 0 | FF72: =SUMPRODUCT((FF62:FF71="○")*1) -> 0 | FI72: =SUMPRODUCT((FI62:FI71="○")*1) -> 0 | FL72: =SUMPRODUCT((FL62:FL71="○")*1) -> 0 | FO72: =SUMPRODUCT((FO62:FO71="○")*1) -> 0 | FR72: =SUMPRODUCT((FR62:FR71="○")*1) -> 0 | FU72: =SUMPRODUCT((FU62:FU71="○")*1) -> 0 | FX72: =SUMPRODUCT((FX62:FX71="○")*1) -> 0 | GA72: =SUMPRODUCT((GA62:GA71="○")*1) -> 0 | GD72: ***
BK73: =IF(ROUNDDOWN(SUM(BD72:BQ72),-2)>SUM($U$57),SUM($U$57),ROUNDDOWN(SUM(BD72:BQ72),-2)) -> 0 | CZ73: 合計（Ａ＋Ｂ＋Ｃ）→ | DA73: =SUM(CT72:DG72) -> 0 | EC73: 合計（Ａ＋Ｂ＋Ｃ）→ | ED73: =SUM(DP72:EJ72) -> 0
CZ74: Ｄ 限度額以下（百円未満切捨て）→ | DA74: =IF(ROUNDDOWN(SUM(DA73),-2)>SUM($U$57),SUM($U$57),ROUNDDOWN(SUM(DA73),-2)) -> 0 | EC74: Ｄ 限度額以下（百円未満切捨て）→ | ED74: =IF(ROUNDDOWN(SUM(ED73),-2)>SUM($U$57),SUM($U$57),ROUNDDOWN(SUM(ED73),-2)) -> 0
CZ75: 限度超過額→ | DA75: =IF(ROUNDDOWN(SUM(DA73),-2)>SUM(DA74),SUM(DA73)-SUM(DA74),0) -> 0 | EC75: 限度超過額→ | ED75: =IF(ROUNDDOWN(SUM(ED73),-2)>SUM(ED74),SUM(ED73)-SUM(ED74),0) -> 0
B77: 介護保険分 | K77: 所得割 | P77: 率 | U77: 1.83 | AA77: ="（前年の総所得金額－基礎控除額）×"&IF(U77="","",U77)&"％" -> （前年の総所得金額－基礎控除額）×1.83％
P78: 控除額 | U78: 基礎控除
K79: 均等割 | U79: 13800 | AA79: ←１人当たり
K80: 限度額 | U80: 170000
BR81: =IF($AU$6="","",$AU$6) -> 
D82: 該当者 | U82: 課税総所得金額 | AP82: 算出額（全体） | BR82: 軽減額(2･5･7割額) | CF82: 軽減後(2･5･7割後) | DH82: 月数 | DP82: 月割後
D83: 氏 名 | K83: 生年月日 | R83: 年齢 | U83: ① | AB83: ② | AI83: ③（①－②） | AP83: ="④(③×"&DBCS(U77)&"%)" -> ④(③×１．８３%) | AW83: ⑤ | BD83: ④＋⑤ | BR83: ⑦ | CF83: Ａ＝④ | CM83: Ｂ＝⑤－⑦ | CT83: Ａ＋Ｂ | DH83: 該当 月数 | DL83: 世帯 月数 | DP83: 所得割 | DW83: 均等割
U84: 総所得金額 | AB84: 控除額 | AI84: 課税所得 | AP84: 所得割 | AW84: 均等割 | BD84: 合 計 | BR84: 均等割 | CF84: 所得割 | CM84: 均等割 | CT84: 合 計 | ET84: 4 | EW84: 5 | EZ84: 6 | FC84: 7 | FF84: 8 | FI84: 9 | FL84: 10 | FO84: 11 | FR84: 12 | FU84: 1 | FX84: 2 | GA84: 3 | GD84: 月数計 | GH84: 備考
B85: 1 | D85: =IF($DH85="","",$D18) ->  | K85: =IF($DH85="","",IF($K18="","",SUM($K18))) ->  | R85: =IF($DH85="","",IF($R18="","",SUM($R18))) ->  | U85: =IF($DH85="","",IF($DC18="","",SUM($DC18))) ->  | AB85: =IF($DH85="","",IF($U85="","",基礎控除!H3)) ->  | AI85: =IF($DH85="","",IF($U85="","",IF(SUM($U85)>SUM($AB85),SUM($U85)-SUM($AB85),0))) ->  | AP85: =IF($DH85="","",ROUNDDOWN(SUM(AI85)*SUM($U$77)/100,0)) ->  | AW85: =IF($DH85="","",SUM($U$79)) ->  | BD85: =IF(SUM(AP85:BC85)=0,"",SUM(AP85:BC85)) ->  | BR85: =IF($AU$6="","",IF($DH85="","",ROUNDDOWN(SUM($U$79)*SUM(IF($AU$6="２割軽減世帯",2,IF($AU$6="５割軽減世帯",5,IF($AU$6="７割軽減世帯",7,""))))/10,0))) ->  | CF85: =IF($DH85="","",SUM($AP85)) ->  | CM85: =IF($DH85="","",SUM($AW85)-SUM($BR85)) ->  | CT85: =IF(SUM(CF85:CS85)=0,"",SUM(CF85:CS85)) ->  | DH85: =IF(GD85="","",SUM(GD85)) ->  | DP85: =IF($DH85="","",ROUNDDOWN(SUM($CF85)*SUM($DH85)/12,0)) ->  | DW85: =IF($DH85="","",ROUNDDOWN(SUM($CM85)*SUM($DH85)/12,0)) ->  | ET85: =IF(KH18="","",IF(AND(KH18>=40,KH18<65),IF(HI39="○","○",""),"")) ->  | EW85: =IF(KK18="","",IF(AND(KK18>=40,KK18<65),IF(HL39="○","○",""),"")) ->  | EZ85: =IF(KN18="","",IF(AND(KN18>=40,KN18<65),IF(HO39="○","○",""),"")) ->  | FC85: =IF(KQ18="","",IF(AND(KQ18>=40,KQ18<65),IF(HR39="○","○",""),"")) ->  | FF85: =IF(KT18="","",IF(AND(KT18>=40,KT18<65),IF(HU39="○","○",""),"")) ->  | FI85: =IF(KW18="","",IF(AND(KW18>=40,KW18<65),IF(HX39="○","○",""),"")) ->  | FL85: =IF(KZ18="","",IF(AND(KZ18>=40,KZ18<65),IF(IA39="○","○",""),"")) ->  | FO85: =IF(LC18="","",IF(AND(LC18>=40,LC18<65),IF(ID39="○","○",""),"")) ->  | FR85: =IF(LF18="","",IF(AND(LF18>=40,LF18<65),IF(IG39="○","○",""),"")) ->  | FU85: =IF(LI18="","",IF(AND(LI18>=40,LI18<65),IF(IJ39="○","○",""),"")) ->  | FX85: =IF(LL18="","",IF(AND(LL18>=40,LL18<65),IF(IM39="○","○",""),"")) ->  | GA85: =IF(LO18="","",IF(AND(LO18>=40,LO18<65),IF(IP39="○","○",""),"")) ->  | GD85: =IF(COUNTIF(ET85:GC85,"○")=0,"",COUNTIF(ET85:GC85,"○")) ->  | GH85: =IF(AND(SUM(GD18)<>0,SUM(GD85)=0),"介護該当なし。",IF(AND(COUNTIF(KH18:LQ18,">=40")>0,COUNTIF(KH18:LQ18,">=40")<12),"年度途中から介護保険料該当。",IF(SUM(GD18)=SUM(GD85),"","年度途中から介護保険料は別に納める。"))) -> 
B86: 2 | AB86: =IF($DH86="","",IF($U86="","",基礎控除!H4)) ->  | BR86: =IF($AU$6="","",IF($DH86="","",ROUNDDOWN(SUM($U$79)*SUM(IF($AU$6="２割軽減世帯",2,IF($AU$6="５割軽減世帯",5,IF($AU$6="７割軽減世帯",7,""))))/10,0))) ->  | DH86: =IF(GD86="","",SUM(GD86)) ->  | ET86: =IF(KH19="","",IF(AND(KH19>=40,KH19<65),IF(HI40="○","○",""),"")) ->  | EW86: =IF(KK19="","",IF(AND(KK19>=40,KK19<65),IF(HL40="○","○",""),"")) ->  | EZ86: =IF(KN19="","",IF(AND(KN19>=40,KN19<65),IF(HO40="○","○",""),"")) ->  | FC86: =IF(KQ19="","",IF(AND(KQ19>=40,KQ19<65),IF(HR40="○","○",""),"")) ->  | FF86: =IF(KT19="","",IF(AND(KT19>=40,KT19<65),IF(HU40="○","○",""),"")) ->  | FI86: =IF(KW19="","",IF(AND(KW19>=40,KW19<65),IF(HX40="○","○",""),"")) ->  | FL86: =IF(KZ19="","",IF(AND(KZ19>=40,KZ19<65),IF(IA40="○","○",""),"")) ->  | FO86: =IF(LC19="","",IF(AND(LC19>=40,LC19<65),IF(ID40="○","○",""),"")) ->  | FR86: =IF(LF19="","",IF(AND(LF19>=40,LF19<65),IF(IG40="○","○",""),"")) ->  | FU86: =IF(LI19="","",IF(AND(LI19>=40,LI19<65),IF(IJ40="○","○",""),"")) ->  | FX86: =IF(LL19="","",IF(AND(LL19>=40,LL19<65),IF(IM40="○","○",""),"")) ->  | GA86: =IF(LO19="","",IF(AND(LO19>=40,LO19<65),IF(IP40="○","○",""),"")) ->  | GD86: =IF(COUNTIF(ET86:GC86,"○")=0,"",COUNTIF(ET86:GC86,"○")) -> 
B87: 3 | AB87: =IF($DH87="","",IF($U87="","",基礎控除!H5)) ->  | BR87: =IF($AU$6="","",IF($DH87="","",ROUNDDOWN(SUM($U$79)*SUM(IF($AU$6="２割軽減世帯",2,IF($AU$6="５割軽減世帯",5,IF($AU$6="７割軽減世帯",7,""))))/10,0))) ->  | DH87: =IF(GD87="","",SUM(GD87)) ->  | ET87: =IF(KH20="","",IF(AND(KH20>=40,KH20<65),IF(HI41="○","○",""),"")) ->  | EW87: =IF(KK20="","",IF(AND(KK20>=40,KK20<65),IF(HL41="○","○",""),"")) ->  | EZ87: =IF(KN20="","",IF(AND(KN20>=40,KN20<65),IF(HO41="○","○",""),"")) ->  | FC87: =IF(KQ20="","",IF(AND(KQ20>=40,KQ20<65),IF(HR41="○","○",""),"")) ->  | FF87: =IF(KT20="","",IF(AND(KT20>=40,KT20<65),IF(HU41="○","○",""),"")) ->  | FI87: =IF(KW20="","",IF(AND(KW20>=40,KW20<65),IF(HX41="○","○",""),"")) ->  | FL87: =IF(KZ20="","",IF(AND(KZ20>=40,KZ20<65),IF(IA41="○","○",""),"")) ->  | FO87: =IF(LC20="","",IF(AND(LC20>=40,LC20<65),IF(ID41="○","○",""),"")) ->  | FR87: =IF(LF20="","",IF(AND(LF20>=40,LF20<65),IF(IG41="○","○",""),"")) ->  | FU87: =IF(LI20="","",IF(AND(LI20>=40,LI20<65),IF(IJ41="○","○",""),"")) ->  | FX87: =IF(LL20="","",IF(AND(LL20>=40,LL20<65),IF(IM41="○","○",""),"")) ->  | GA87: =IF(LO20="","",IF(AND(LO20>=40,LO20<65),IF(IP41="○","○",""),"")) ->  | GD87: =IF(COUNTIF(ET87:GC87,"○")=0,"",COUNTIF(ET87:GC87,"○")) -> 
B88: 4 | AB88: =IF($DH88="","",IF($U88="","",基礎控除!H6)) ->  | BR88: =IF($AU$6="","",IF($DH88="","",ROUNDDOWN(SUM($U$79)*SUM(IF($AU$6="２割軽減世帯",2,IF($AU$6="５割軽減世帯",5,IF($AU$6="７割軽減世帯",7,""))))/10,0))) -> 
B89: 5 | AB89: =IF($DH89="","",IF($U89="","",基礎控除!H7)) ->  | BR89: =IF($AU$6="","",IF($DH89="","",ROUNDDOWN(SUM($U$79)*SUM(IF($AU$6="２割軽減世帯",2,IF($AU$6="５割軽減世帯",5,IF($AU$6="７割軽減世帯",7,""))))/10,0))) -> 
B90: 6 | AB90: =IF($DH90="","",IF($U90="","",基礎控除!H8)) ->  | BR90: =IF($AU$6="","",IF($DH90="","",ROUNDDOWN(SUM($U$79)*SUM(IF($AU$6="２割軽減世帯",2,IF($AU$6="５割軽減世帯",5,IF($AU$6="７割軽減世帯",7,""))))/10,0))) -> 
B91: 7 | AB91: =IF($DH91="","",IF($U91="","",基礎控除!H9)) ->  | BR91: =IF($AU$6="","",IF($DH91="","",ROUNDDOWN(SUM($U$79)*SUM(IF($AU$6="２割軽減世帯",2,IF($AU$6="５割軽減世帯",5,IF($AU$6="７割軽減世帯",7,""))))/10,0))) -> 
B92: 8 | AB92: =IF($DH92="","",IF($U92="","",基礎控除!H10)) ->  | BR92: =IF($AU$6="","",IF($DH92="","",ROUNDDOWN(SUM($U$79)*SUM(IF($AU$6="２割軽減世帯",2,IF($AU$6="５割軽減世帯",5,IF($AU$6="７割軽減世帯",7,""))))/10,0))) -> 
B93: 9 | AB93: =IF($DH93="","",IF($U93="","",基礎控除!H11)) ->  | BR93: =IF($AU$6="","",IF($DH93="","",ROUNDDOWN(SUM($U$79)*SUM(IF($AU$6="２割軽減世帯",2,IF($AU$6="５割軽減世帯",5,IF($AU$6="７割軽減世帯",7,""))))/10,0))) -> 
B94: 10 | AB94: =IF($DH94="","",IF($U94="","",基礎控除!H12)) ->  | BR94: =IF($AU$6="","",IF($DH94="","",ROUNDDOWN(SUM($U$79)*SUM(IF($AU$6="２割軽減世帯",2,IF($AU$6="５割軽減世帯",5,IF($AU$6="７割軽減世帯",7,""))))/10,0))) -> 
D95: 合計 | U95: =SUM(U85:AA94) -> 0 | AB95: ********* | AI95: =SUM(AI85:AO94) -> 0 | AP95: =SUM(AP85:AV94) -> 0 | AW95: =SUM(AW85:BC94) -> 0 | BD95: =SUM(BD85:BJ94) -> 0 | BR95: =SUM(BR85:BX94) -> 0 | CF95: =SUM(CF85:CL94) -> 0 | CM95: =SUM(CM85:CS94) -> 0 | CT95: =SUM(CT85:CZ94) -> 0 | DP95: =SUM(DP85:DV94) -> 0 | DW95: =SUM(DW85:EC94) -> 0 | ET95: =SUMPRODUCT((ET85:ET94="○")*1) -> 0 | EW95: =SUMPRODUCT((EW85:EW94="○")*1) -> 0 | EZ95: =SUMPRODUCT((EZ85:EZ94="○")*1) -> 0 | FC95: =SUMPRODUCT((FC85:FC94="○")*1) -> 0 | FF95: =SUMPRODUCT((FF85:FF94="○")*1) -> 0 | FI95: =SUMPRODUCT((FI85:FI94="○")*1) -> 0 | FL95: =SUMPRODUCT((FL85:FL94="○")*1) -> 0 | FO95: =SUMPRODUCT((FO85:FO94="○")*1) -> 0 | FR95: =SUMPRODUCT((FR85:FR94="○")*1) -> 0 | FU95: =SUMPRODUCT((FU85:FU94="○")*1) -> 0 | FX95: =SUMPRODUCT((FX85:FX94="○")*1) -> 0 | GA95: =SUMPRODUCT((GA85:GA94="○")*1) -> 0 | GD95: ***
BK96: =IF(ROUNDDOWN(SUM(BD95:BQ95),-2)>SUM($U$80),SUM($U$80),ROUNDDOWN(SUM(BD95:BQ95),-2)) -> 0 | CZ96: 合計（Ａ＋Ｂ＋Ｃ）→ | DA96: =SUM(CT95:DG95) -> 0 | EC96: 合計（Ａ＋Ｂ＋Ｃ）→ | ED96: =SUM(DP95:EJ95) -> 0
CZ97: Ｄ 限度額以下（百円未満切捨て）→ | DA97: =IF(ROUNDDOWN(SUM(DA96),-2)>SUM($U$80),SUM($U$80),ROUNDDOWN(SUM(DA96),-2)) -> 0 | EC97: Ｄ 限度額以下（百円未満切捨て）→ | ED97: =IF(ROUNDDOWN(SUM(ED96),-2)>SUM($U$80),SUM($U$80),ROUNDDOWN(SUM(ED96),-2)) -> 0
CZ98: 限度超過額→ | DA98: =IF(ROUNDDOWN(SUM(DA96),-2)>SUM(DA97),SUM(DA96)-SUM(DA97),0) -> 0 | EC98: 限度超過額→ | ED98: =IF(ROUNDDOWN(SUM(ED96),-2)>SUM(ED97),SUM(ED96)-SUM(ED97),0) -> 0
D100: ="令和"&DBCS(基本項目!$B$3)&"年度 国民健康保険税 簡易計算（概算）" -> 令和５年度 国民健康保険税 簡易計算（概算）
D102: 医療 保険分 | Z102: 後期高齢者 支援金分 | AV102: 介護保険分 | BR102: 合計 | CP102: 試算した結果は、実際の保険料額を保証するものではございません。 参考としてご利用ください。
D106: =SUM(入力!ED51) -> 0 | Z106: =SUM(入力!ED74) -> 0 | AV106: =SUM(入力!ED97) -> 0 | BR106: =SUM(D106:BQ107) -> 0
D109: 納期 | P109: 保険税 | AB109: 納期限 | AV109: 納期 | BH109: 保険税 | BT109: 納期限
D111: 第１期 | P111: =IF(印刷用【簡易版】!BC4="","",印刷用【簡易版】!BC4) ->  | AB111: =IF(印刷用【簡易版】!BK4="","",印刷用【簡易版】!BK4) ->  | AV111: 第６期 | BH111: =IF(印刷用【簡易版】!CD4="","",印刷用【簡易版】!CD4) -> 0 | BT111: =IF(印刷用【簡易版】!CL4="","",印刷用【簡易版】!CL4) -> 2023-12-25
D113: 第２期 | P113: =IF(印刷用【簡易版】!BC5="","",印刷用【簡易版】!BC5) ->  | AB113: =IF(印刷用【簡易版】!BK5="","",印刷用【簡易版】!BK5) ->  | AV113: 第７期 | BH113: =IF(印刷用【簡易版】!CD5="","",印刷用【簡易版】!CD5) -> 0 | BT113: =IF(印刷用【簡易版】!CL5="","",印刷用【簡易版】!CL5) -> 2024-01-31
D115: 第３期 | P115: =IF(印刷用【簡易版】!BC6="","",印刷用【簡易版】!BC6) ->  | AB115: =IF(印刷用【簡易版】!BK6="","",印刷用【簡易版】!BK6) ->  | AV115: 第８期 | BH115: =IF(印刷用【簡易版】!CD6="","",印刷用【簡易版】!CD6) -> 0 | BT115: =IF(印刷用【簡易版】!CL6="","",印刷用【簡易版】!CL6) -> 2024-02-28
D117: 第４期 | P117: =IF(印刷用【簡易版】!BC7="","",印刷用【簡易版】!BC7) -> 0 | AB117: =IF(印刷用【簡易版】!BK7="","",印刷用【簡易版】!BK7) -> 2023-10-31 | AV117: 随時期 | BH117: =IF(印刷用【簡易版】!CD7="","",印刷用【簡易版】!CD7) ->  | BT117: =IF(印刷用【簡易版】!CL7="","",印刷用【簡易版】!CL7) -> 
D119: 第５期 | P119: =IF(印刷用【簡易版】!BC8="","",印刷用【簡易版】!BC8) -> 0 | AB119: =IF(印刷用【簡易版】!BK8="","",印刷用【簡易版】!BK8) -> 2023-11-30 | AV119: 合 計 | BH119: =IF(AND(COUNT(P111:AA120,BH111:BS118)=0,SUM(P111:AA120,BH111:BS118)=0),"",SUM(P111:AA120,BH111:BS118)) -> 0

Sheet 印刷用【簡易版】 (hidden)
B1: ="令和"&DBCS(基本項目!$B$3)&"年度 国民健康保険税 簡易計算（概算）" -> 令和５年度 国民健康保険税 簡易計算（概算）
C2: 《税率等》
D3: 区分 | Z3: 医療保険分 | AG3: 後期高齢者 支援金分 | AN3: 医療保険分 | AV3: 納期 | BC3: 保険税 | BK3: 納期限 | BW3: 納期 | CD3: 保険税 | CL3: 納期限
D4: 所得割(％) ※（前年の総所得金額－基礎控除額）×率 | Z4: =IF(入力!U30="","",入力!U30) -> 6.21 | AG4: =IF(入力!U54="","",入力!U54) -> 2.41 | AN4: =IF(入力!U77="","",入力!U77) -> 1.83 | AV4: 第１期 | BC4: =IF(基本項目!$M3="","",SUM(基本項目!$M3)) ->  | BK4: =IF($BC4="","",IF(基本項目!$H3="","",基本項目!$H3)) ->  | BW4: 第６期 | CD4: =IF(基本項目!$M8="","",SUM(基本項目!$M8)) -> 0 | CL4: =IF($CD4="","",IF(基本項目!$H8="","",基本項目!$H8)) -> 2023-12-25
D5: 均等割(円) ※１人当たり | Z5: =IF(入力!U32="","",入力!U32) -> 17400 | AG5: =IF(入力!U56="","",入力!U56) -> 13200 | AN5: =IF(入力!U79="","",入力!U79) -> 13800 | AV5: 第２期 | BC5: =IF(基本項目!$M4="","",SUM(基本項目!$M4)) ->  | BK5: =IF($BC5="","",IF(基本項目!$H4="","",基本項目!$H4)) ->  | BW5: 第７期 | CD5: =IF(基本項目!$M9="","",SUM(基本項目!$M9)) -> 0 | CL5: =IF($CD5="","",IF(基本項目!$H9="","",基本項目!$H9)) -> 2024-01-31
D6: 平等割(円) ※１世帯当たり | Z6: =IF(入力!U33="","",入力!U33) -> 21000 | AV6: 第３期 | BC6: =IF(基本項目!$M5="","",SUM(基本項目!$M5)) ->  | BK6: =IF($BC6="","",IF(基本項目!$H5="","",基本項目!$H5)) ->  | BW6: 第８期 | CD6: =IF(基本項目!$M10="","",SUM(基本項目!$M10)) -> 0 | CL6: =IF($CD6="","",IF(基本項目!$H10="","",基本項目!$H10)) -> 2024-02-28
D7: 限度額(円) | Z7: =IF(入力!U34="","",入力!U34) -> 650000 | AG7: =IF(入力!U57="","",入力!U57) -> 220000 | AN7: =IF(入力!U80="","",入力!U80) -> 170000 | AV7: 第４期 | BC7: =IF(基本項目!$M6="","",SUM(基本項目!$M6)) -> 0 | BK7: =IF($BC7="","",IF(基本項目!$H6="","",基本項目!$H6)) -> 2023-10-31 | BW7: 随時期 | CD7: =IF(基本項目!$M11="",IF(基本項目!$M12="","",SUM(基本項目!$M12)),SUM(基本項目!$M11)) ->  | CL7: =IF($CD7="","",IF(基本項目!$M11="",IF(基本項目!$M12="","",基本項目!$H12),基本項目!$H11)) -> 
D8: 限度額合計(円) | Z8: =SUM(Z7:AT7) -> 1040000 | AV8: 第５期 | BC8: =IF(基本項目!$M7="","",SUM(基本項目!$M7)) -> 0 | BK8: =IF($BC8="","",IF(基本項目!$H7="","",基本項目!$H7)) -> 2023-11-30 | BW8: 合 計 | CD8: =IF(AND(COUNT(BC4:BJ8,CD4:CK7)=0,SUM(BC4:BJ8,CD4:CK7)=0),"",SUM(BC4:BJ8,CD4:CK7)) -> 0
C10: 《軽減及び月割後》
D11: 氏 名 | L11: 年齢 | P11: 医療保険分 | AO11: 後期高齢者支援金分 | BG11: 介護保険分 | BY11: 備考
P12: 月数 | T12: 所得割 | AA12: 均等割 | AH12: 平等割 | AO12: 月数 | AS12: 所得割 | AZ12: 均等割 | BG12: 月数 | BK12: 所得割 | BR12: 均等割
B13: 1 | D13: =IF(入力!$D18="","",入力!$D18) ->  | L13: =IF(入力!$R18="","",入力!$R18) ->  | P13: =IF(入力!$DH39="","",入力!$DH39) ->  | T13: =IF(入力!$DP39="","",入力!$DP39) ->  | AA13: =IF(入力!$DW39="","",入力!$DW39) ->  | AH13: =IF(入力!$ED39="","",入力!$ED39) ->  | AO13: =IF(入力!$DH62="","",入力!$DH62) ->  | AS13: =IF(入力!$DP62="","",入力!$DP62) ->  | AZ13: =IF(入力!$DW62="","",入力!$DW62) ->  | BG13: =IF(入力!$DH85="","",入力!$DH85) ->  | BK13: =IF(入力!$DP85="","",入力!$DP85) ->  | BR13: =IF(入力!$DW85="","",入力!$DW85) ->  | BY13: =IF(入力!GH39="",IF(入力!GH85="","",入力!GH85),入力!GH39) -> 
B14: 2 | D14: =IF(入力!$D19="","",入力!$D19) ->  | L14: =IF(入力!$R19="","",入力!$R19) ->  | P14: =IF(入力!$DH40="","",入力!$DH40) ->  | T14: =IF(入力!$DP40="","",入力!$DP40) ->  | AA14: =IF(入力!$DW40="","",入力!$DW40) ->  | AO14: =IF(入力!$DH63="","",入力!$DH63) ->  | AS14: =IF(入力!$DP63="","",入力!$DP63) ->  | AZ14: =IF(入力!$DW63="","",入力!$DW63) ->  | BG14: =IF(入力!$DH86="","",入力!$DH86) ->  | BK14: =IF(入力!$DP86="","",入力!$DP86) ->  | BR14: =IF(入力!$DW86="","",入力!$DW86) ->  | BY14: =IF(入力!GH40="",IF(入力!GH86="","",入力!GH86),入力!GH40) -> 
B15: 3 | D15: =IF(入力!$D20="","",入力!$D20) ->  | L15: =IF(入力!$R20="","",入力!$R20) ->  | P15: =IF(入力!$DH41="","",入力!$DH41) ->  | T15: =IF(入力!$DP41="","",入力!$DP41) ->  | AA15: =IF(入力!$DW41="","",入力!$DW41) ->  | AO15: =IF(入力!$DH64="","",入力!$DH64) ->  | AS15: =IF(入力!$DP64="","",入力!$DP64) ->  | AZ15: =IF(入力!$DW64="","",入力!$DW64) ->  | BG15: =IF(入力!$DH87="","",入力!$DH87) ->  | BK15: =IF(入力!$DP87="","",入力!$DP87) ->  | BR15: =IF(入力!$DW87="","",入力!$DW87) ->  | BY15: =IF(入力!GH41="",IF(入力!GH87="","",入力!GH87),入力!GH41) -> 
B16: 4 | D16: =IF(入力!$D21="","",入力!$D21) ->  | L16: =IF(入力!$R21="","",入力!$R21) ->  | P16: =IF(入力!$DH42="","",入力!$DH42) ->  | T16: =IF(入力!$DP42="","",入力!$DP42) ->  | AA16: =IF(入力!$DW42="","",入力!$DW42) ->  | AO16: =IF(入力!$DH65="","",入力!$DH65) ->  | AS16: =IF(入力!$DP65="","",入力!$DP65) ->  | AZ16: =IF(入力!$DW65="","",入力!$DW65) ->  | BG16: =IF(入力!$DH88="","",入力!$DH88) ->  | BK16: =IF(入力!$DP88="","",入力!$DP88) ->  | BR16: =IF(入力!$DW88="","",入力!$DW88) ->  | BY16: =IF(入力!GH42="",IF(入力!GH88="","",入力!GH88),入力!GH42) -> 
B17: 5 | D17: =IF(入力!$D22="","",入力!$D22) ->  | L17: =IF(入力!$R22="","",入力!$R22) ->  | P17: =IF(入力!$DH43="","",入力!$DH43) ->  | T17: =IF(入力!$DP43="","",入力!$DP43) ->  | AA17: =IF(入力!$DW43="","",入力!$DW43) ->  | AO17: =IF(入力!$DH66="","",入力!$DH66) ->  | AS17: =IF(入力!$DP66="","",入力!$DP66) ->  | AZ17: =IF(入力!$DW66="","",入力!$DW66) ->  | BG17: =IF(入力!$DH89="","",入力!$DH89) ->  | BK17: =IF(入力!$DP89="","",入力!$DP89) ->  | BR17: =IF(入力!$DW89="","",入力!$DW89) ->  | BY17: =IF(入力!GH43="",IF(入力!GH89="","",入力!GH89),入力!GH43) -> 
B18: 6 | D18: =IF(入力!$D23="","",入力!$D23) ->  | L18: =IF(入力!$R23="","",入力!$R23) ->  | P18: =IF(入力!$DH44="","",入力!$DH44) ->  | T18: =IF(入力!$DP44="","",入力!$DP44) ->  | AA18: =IF(入力!$DW44="","",入力!$DW44) ->  | AO18: =IF(入力!$DH67="","",入力!$DH67) ->  | AS18: =IF(入力!$DP67="","",入力!$DP67) ->  | AZ18: =IF(入力!$DW67="","",入力!$DW67) ->  | BG18: =IF(入力!$DH90="","",入力!$DH90) ->  | BK18: =IF(入力!$DP90="","",入力!$DP90) ->  | BR18: =IF(入力!$DW90="","",入力!$DW90) ->  | BY18: =IF(入力!GH44="",IF(入力!GH90="","",入力!GH90),入力!GH44) -> 
B19: 7 | D19: =IF(入力!$D24="","",入力!$D24) ->  | L19: =IF(入力!$R24="","",入力!$R24) ->  | P19: =IF(入力!$DH45="","",入力!$DH45) ->  | T19: =IF(入力!$DP45="","",入力!$DP45) ->  | AA19: =IF(入力!$DW45="","",入力!$DW45) ->  | AO19: =IF(入力!$DH68="","",入力!$DH68) ->  | AS19: =IF(入力!$DP68="","",入力!$DP68) ->  | AZ19: =IF(入力!$DW68="","",入力!$DW68) ->  | BG19: =IF(入力!$DH91="","",入力!$DH91) ->  | BK19: =IF(入力!$DP91="","",入力!$DP91) ->  | BR19: =IF(入力!$DW91="","",入力!$DW91) ->  | BY19: =IF(入力!GH45="",IF(入力!GH91="","",入力!GH91),入力!GH45) -> 
B20: 8 | D20: =IF(入力!$D25="","",入力!$D25) ->  | L20: =IF(入力!$R25="","",入力!$R25) ->  | P20: =IF(入力!$DH46="","",入力!$DH46) ->  | T20: =IF(入力!$DP46="","",入力!$DP46) ->  | AA20: =IF(入力!$DW46="","",入力!$DW46) ->  | AO20: =IF(入力!$DH69="","",入力!$DH69) ->  | AS20: =IF(入力!$DP69="","",入力!$DP69) ->  | AZ20: =IF(入力!$DW69="","",入力!$DW69) ->  | BG20: =IF(入力!$DH92="","",入力!$DH92) ->  | BK20: =IF(入力!$DP92="","",入力!$DP92) ->  | BR20: =IF(入力!$DW92="","",入力!$DW92) ->  | BY20: =IF(入力!GH46="",IF(入力!GH92="","",入力!GH92),入力!GH46) -> 
B21: 9 | D21: =IF(入力!$D26="","",入力!$D26) ->  | L21: =IF(入力!$R26="","",入力!$R26) ->  | P21: =IF(入力!$DH47="","",入力!$DH47) ->  | T21: =IF(入力!$DP47="","",入力!$DP47) ->  | AA21: =IF(入力!$DW47="","",入力!$DW47) ->  | AO21: =IF(入力!$DH70="","",入力!$DH70) ->  | AS21: =IF(入力!$DP70="","",入力!$DP70) ->  | AZ21: =IF(入力!$DW70="","",入力!$DW70) ->  | BG21: =IF(入力!$DH93="","",入力!$DH93) ->  | BK21: =IF(入力!$DP93="","",入力!$DP93) ->  | BR21: =IF(入力!$DW93="","",入力!$DW93) ->  | BY21: =IF(入力!GH47="",IF(入力!GH93="","",入力!GH93),入力!GH47) -> 
B22: 10 | D22: =IF(入力!$D27="","",入力!$D27) ->  | L22: =IF(入力!$R27="","",入力!$R27) ->  | P22: =IF(入力!$DH48="","",入力!$DH48) ->  | T22: =IF(入力!$DP48="","",入力!$DP48) ->  | AA22: =IF(入力!$DW48="","",入力!$DW48) ->  | AO22: =IF(入力!$DH71="","",入力!$DH71) ->  | AS22: =IF(入力!$DP71="","",入力!$DP71) ->  | AZ22: =IF(入力!$DW71="","",入力!$DW71) ->  | BG22: =IF(入力!$DH94="","",入力!$DH94) ->  | BK22: =IF(入力!$DP94="","",入力!$DP94) ->  | BR22: =IF(入力!$DW94="","",入力!$DW94) ->  | BY22: =IF(入力!GH48="",IF(入力!GH94="","",入力!GH94),入力!GH48) -> 
D23: 合計 | T23: =SUM(T13:Z22) -> 0 | AA23: =SUM(AA13:AG22) -> 0 | AH23: =SUM(AH13:AN22) -> 0 | AS23: =SUM(AS13:AY22) -> 0 | AZ23: =SUM(AZ13:BF22) -> 0 | BK23: =SUM(BK13:BQ22) -> 0 | BR23: =SUM(BR13:BX22) -> 0 | BY23: ←それぞれの金額は，軽減及び月割り後 の金額です。
T24: =SUM(T23:AN23) -> 0 | AS24: =SUM(AS23:BF23) -> 0 | BK24: =SUM(BK23:BX23) -> 0
D25: 税額 (限度・端数調整後) | P25: =SUM(入力!ED51) -> 0 | AO25: =SUM(入力!ED74) -> 0 | BG25: =SUM(入力!ED97) -> 0
D26: 総合計 | P26: =SUM(P25:BX25) -> 0

Sheet 国民健康保険税軽減早見表H26から (hidden)
C2: 軽減判定基準額の求め方
C3: ※１：判定となる世帯の所得金額とは，擬主を含む世帯主，被保険者及び特定同一世帯所属者数の所得の合計額
C4: ※２：特定同一世帯所属者とは，国民健康保険から後期高齢者医療制度に移行した方
C5: ※３：一定の給与所得者（給与収入55万円超）と公的年金等の支給（60万円超（65歳未満）又は110万円超（65歳以上））を受ける者
C6: ●２割軽減基準額 世帯の所得金額の合計が
F7: 430000 | L7: 円＋｛（被保険者＋特定同一世帯所属者数）× | AM7: 535000 | AS7: 円｝
U8: ＋10万円×（給与所得者※-1） | AT8: 円
C9: ●５割軽減基準額 世帯の所得の合計が，
F10: 430000 | L10: 円＋｛（被保険者＋特定同一世帯所属者数）× | AM10: 290000 | AS10: 円｝
U11: ＋10万円×（給与所得者※-1） | AT11: 円
C12: ●７割軽減基準額 世帯の所得の合計が，
F13: 430000 | L13: 円 | O13: ＋10万円×（給与所得者※-1） | AN13: 円
C15: 軽減判定基準額表 | Q15: 所得金額調整控除(給与＋年金）を受けた者が対象 | AO15: =SUM(入力!GD30) -> 0 | AU15: 人
C16: ※世帯の所得合計金額 ＝ 擬主を含む世帯主 ＋ 被保険者 ＋ 特定同一世帯所属者数
AN17: 入力シートから
E18: 世帯の軽減判定所得 | AN18: =SUM(入力!AU5) -> 0
E19: 被保険者数＋特定同一世帯所属者数 | AN19: =SUM(入力!P6) -> 0
E20: 判定結果 | AN20: =IF(SUM(AN19)=0,"",VLOOKUP(SUM(AN19),$E$26:$AM$35,29,FALSE)) -> 
E21: ※基準額は以下で判定
E22: 被保険者数 ＋ 特定同一世帯 所属者数 | L22: ２割軽減世帯 | S22: ５割軽減世帯 | Z22: ７割軽減世帯 | AG22: 入力 シートの判定
S23: 被保険者又は特定同一世帯所属者に世帯主がいない場合
E26: 1 | L26: =$F$7+$E26*$AM$7+IF(SUM($AO$15)=1,0,100000*($AO$15-1)) -> 865000 | S26: =$F$10+$E26*$AM$10+IF(SUM($AO$15)=1,0,100000*($AO$15-1)) -> 620000 | Z26: =$F$13+IF(SUM($AO$15)=1,0,100000*($AO$15-1)) -> 330000 | AG26: =IF($AN$19=$E26,IF($AN$18>$L26,"",IF($AN$18<=$Z26,$Z$22,IF($AN$18<=$S26,$S$22,IF($AN$18<=$L26,$L$22,"")))),"") -> 
E27: 2 | L27: =$F$7+$E27*$AM$7+IF(SUM($AO$15)=1,0,100000*($AO$15-1)) -> 1400000 | S27: =$F$10+$E27*$AM$10+IF(SUM($AO$15)=1,0,100000*($AO$15-1)) -> 910000 | Z27: =$F$13+IF(SUM($AO$15)=1,0,100000*($AO$15-1)) -> 330000
E28: 3 | L28: 1935000 | S28: 1200000 | Z28: 330000
E29: 4 | L29: 2470000 | S29: 1490000 | Z29: 330000
E30: 5 | L30: 3005000 | S30: 1780000 | Z30: 330000
E31: 6 | L31: 3540000 | S31: 2070000 | Z31: 330000
E32: 7 | L32: 4075000 | S32: 2360000 | Z32: 330000
E33: 8 | L33: 4610000 | S33: 2650000 | Z33: 330000
E34: 9 | L34: 5145000 | S34: 2940000 | Z34: 330000
E35: 10 | L35: 5680000 | S35: 3230000 | Z35: 330000
E36: 以下１人増 すごとに加算 | L36: =SUM($AM$7) -> 535000 | S36: =SUM($AM$10) -> 290000 | Z36: 加算なし | AG36: ***********

Sheet 所得計算 (hidden)
AB2: 給与所得計算 | AI2: 1 | AJ2: 2 | AK2: 3 | AL2: 4 | AM2: 5 | AN2: 6 | AO2: 7 | AP2: 8 | AQ2: 9 | AR2: 10 | AT2: 専給1 | AU2: 専給2 | AV2: 専給3 | AW2: 専給4 | AX2: 専給5 | AY2: 専給6 | AZ2: 専給7 | BA2: 専給8 | BB2: 専給9 | BC2: 専給10
B3: 年齢計算 | AB3: 給与収入金額 | AD3: 所得金額 の計算 | AI3: =IF(入力!$X18="","",SUM(入力!$X18)) ->  | AJ3: =IF(入力!$X19="","",SUM(入力!$X19)) ->  | AK3: =IF(入力!$X20="","",SUM(入力!$X20)) ->  | AL3: =IF(入力!$X21="","",SUM(入力!$X21)) ->  | AM3: =IF(入力!$X22="","",SUM(入力!$X22)) ->  | AN3: =IF(入力!$X23="","",SUM(入力!$X23)) ->  | AO3: =IF(入力!$X24="","",SUM(入力!$X24)) ->  | AP3: =IF(入力!$X25="","",SUM(入力!$X25)) ->  | AQ3: =IF(入力!$X26="","",SUM(入力!$X26)) ->  | AR3: =IF(入力!$X27="","",SUM(入力!$X27)) ->  | AT3: =IF(入力!$BT18="","",SUM(入力!$BT18)) ->  | AU3: =IF(入力!$BT19="","",SUM(入力!$BT19)) ->  | AV3: =IF(入力!$BT20="","",SUM(入力!$BT20)) ->  | AW3: =IF(入力!$BT21="","",SUM(入力!$BT21)) ->  | AX3: =IF(入力!$BT22="","",SUM(入力!$BT22)) ->  | AY3: =IF(入力!$BT23="","",SUM(入力!$BT23)) ->  | AZ3: =IF(入力!$BT24="","",SUM(入力!$BT24)) ->  | BA3: =IF(入力!$BT25="","",SUM(入力!$BT25)) ->  | BB3: =IF(入力!$BT26="","",SUM(入力!$BT26)) ->  | BC3: =IF(入力!$BT27="","",SUM(入力!$BT27)) ->  | BE3: 給与所得控除後の給与所得 | BP3: 給与所得控除後の給与所得（専従者給与）
B4: 生年月日 | I4: 今日現在 | P4: 年金基準日 | W4: 年金 判定 | AB4: から | AC4: まで | AI4: =IF(AI$3="","",IF(SUM(AI$5:AI$15)=0,"",SUM(AI$5:AI$15))) ->  | AJ4: =IF(AJ$3="","",IF(SUM(AJ$5:AJ$15)=0,"",SUM(AJ$5:AJ$15))) ->  | AT4: =IF(AT$3="","",IF(SUM(AT$5:AT$15)=0,"",SUM(AT$5:AT$15))) ->  | AU4: =IF(AU$3="","",IF(SUM(AU$5:AU$15)=0,"",SUM(AU$5:AU$15))) ->  | BE4: 1 | BF4: 2 | BG4: 3 | BH4: 4 | BI4: 5 | BJ4: 6 | BK4: 7 | BL4: 8 | BM4: 9 | BN4: 10 | BP4: 1 | BQ4: 2 | BR4: 3 | BS4: 4 | BT4: 5 | BU4: 6 | BV4: 7 | BW4: 8 | BX4: 9 | BY4: 10
I5: =TODAY() -> 2024-02-06 | P5: =VALUE("R"&基本項目!$B$3&".1.1") -> 2023-01-01 | AB5: 0 | AC5: 550000 | AD5: 0円 | AI5: =IF(AI$3="","",IF(BE5="","",SUM(BE5)-SUM(BE$16))) ->  | AK5: =IF(AK$3="","",IF(BG5="","",SUM(BG5)-SUM(BG$16))) ->  | AL5: =IF(AL$3="","",IF(BH5="","",SUM(BH5)-SUM(BH$16))) ->  | AM5: =IF(AM$3="","",IF(BI5="","",SUM(BI5)-SUM(BI$16))) ->  | AN5: =IF(AN$3="","",IF(BJ5="","",SUM(BJ5)-SUM(BJ$16))) ->  | AO5: =IF(AO$3="","",IF(BK5="","",SUM(BK5)-SUM(BK$16))) ->  | AP5: =IF(AP$3="","",IF(BL5="","",SUM(BL5)-SUM(BL$16))) ->  | AQ5: =IF(AQ$3="","",IF(BM5="","",SUM(BM5)-SUM(BM$16))) ->  | AR5: =IF(AR$3="","",IF(BN5="","",SUM(BN5)-SUM(BN$16))) ->  | AT5: =IF(AT$3="","",IF(BP5="","",SUM(BP5)-SUM(BP$16))) ->  | AU5: =IF(AU$3="","",IF(BQ5="","",SUM(BQ5)-SUM(BQ$16))) ->  | BE5: =IF(AI$3="","",IF(AND(AI$3>=$AB$5,AI$3<=$AC$5),0,"")) ->  | BF5: =IF(AJ$3="","",IF(AND(AJ$3>=$AB$5,AJ$3<=$AC$5),0,"")) ->  | BP5: =IF(AT$3="","",IF(AND(AT$3>=$AB$5,AT$3<=$AC$5),0,"")) ->  | BQ5: =IF(AU$3="","",IF(AND(AU$3>=$AB$5,AU$3<=$AC$5),0,"")) ->  | BR5: =IF(AV$3="","",IF(AND(AV$3>=$AB$5,AV$3<=$AC$5),0,"")) ->  | BS5: =IF(AW$3="","",IF(AND(AW$3>=$AB$5,AW$3<=$AC$5),0,"")) ->  | BT5: =IF(AX$3="","",IF(AND(AX$3>=$AB$5,AX$3<=$AC$5),0,"")) ->  | BU5: =IF(AY$3="","",IF(AND(AY$3>=$AB$5,AY$3<=$AC$5),0,"")) ->  | BV5: =IF(AZ$3="","",IF(AND(AZ$3>=$AB$5,AZ$3<=$AC$5),0,"")) ->  | BW5: =IF(BA$3="","",IF(AND(BA$3>=$AB$5,BA$3<=$AC$5),0,"")) ->  | BX5: =IF(BB$3="","",IF(AND(BB$3>=$AB$5,BB$3<=$AC$5),0,"")) ->  | BY5: =IF(BC$3="","",IF(AND(BC$3>=$AB$5,BC$3<=$AC$5),0,"")) -> 
B6: =IF(入力!$K18="","",入力!$K18) ->  | I6: =IF($B6="","",IF($B6>I$5,"",DATEDIF($B6,I$5,"Y"))) ->  | P6: =IF(P$5="","",IF($B6="","",IF($B6>P$5,0,DATEDIF($B6,P$5,"Y")))) ->  | W6: =IF(AND(入力!R18="",P6=""),"",IF(入力!R18="",P6,入力!R18)) ->  | AB6: =AC5+1 -> 550001 | AC6: 1618999 | AD6: 給与の収入金額から550,000円を控除した金額 | BE6: =IF(AI$3="","",IF(AND(AI$3>=$AB$6,AI$3<=$AC$6),AI$3-550000,"")) ->  | BF6: =IF(AJ$3="","",IF(AND(AJ$3>=$AB$6,AJ$3<=$AC$6),AJ$3-550000,"")) ->  | BP6: =IF(AT$3="","",IF(AND(AT$3>=$AB$6,AT$3<=$AC$6),AT$3-550000,"")) ->  | BQ6: =IF(AU$3="","",IF(AND(AU$3>=$AB$6,AU$3<=$AC$6),AU$3-550000,"")) ->  | BR6: =IF(AV$3="","",IF(AND(AV$3>=$AB$6,AV$3<=$AC$6),AV$3-550000,"")) ->  | BS6: =IF(AW$3="","",IF(AND(AW$3>=$AB$6,AW$3<=$AC$6),AW$3-550000,"")) ->  | BT6: =IF(AX$3="","",IF(AND(AX$3>=$AB$6,AX$3<=$AC$6),AX$3-550000,"")) ->  | BU6: =IF(AY$3="","",IF(AND(AY$3>=$AB$6,AY$3<=$AC$6),AY$3-550000,"")) ->  | BV6: =IF(AZ$3="","",IF(AND(AZ$3>=$AB$6,AZ$3<=$AC$6),AZ$3-550000,"")) ->  | BW6: =IF(BA$3="","",IF(AND(BA$3>=$AB$6,BA$3<=$AC$6),BA$3-550000,"")) ->  | BX6: =IF(BB$3="","",IF(AND(BB$3>=$AB$6,BB$3<=$AC$6),BB$3-550000,"")) ->  | BY6: =IF(BC$3="","",IF(AND(BC$3>=$AB$6,BC$3<=$AC$6),BC$3-550000,"")) -> 
B7: =IF(入力!$K19="","",入力!$K19) ->  | I7: =IF($B7="","",IF($B7>I$5,"",DATEDIF($B7,I$5,"Y"))) ->  | P7: =IF(P$5="","",IF($B7="","",IF($B7>P$5,0,DATEDIF($B7,P$5,"Y")))) ->  | W7: =IF(AND(入力!R19="",P7=""),"",IF(入力!R19="",P7,入力!R19)) ->  | AB7: =AC6+1 -> 1619000 | AC7: 1619999 | AD7: 1,069,000円 | BE7: =IF(AI$3="","",IF(AND(AI$3>=$AB$7,AI$3<=$AC$7),1069000,"")) ->  | BF7: =IF(AJ$3="","",IF(AND(AJ$3>=$AB$7,AJ$3<=$AC$7),1069000,"")) ->  | BP7: =IF(AT$3="","",IF(AND(AT$3>=$AB$7,AT$3<=$AC$7),1069000,"")) ->  | BQ7: =IF(AU$3="","",IF(AND(AU$3>=$AB$7,AU$3<=$AC$7),1069000,"")) ->  | BR7: =IF(AV$3="","",IF(AND(AV$3>=$AB$7,AV$3<=$AC$7),1069000,"")) ->  | BS7: =IF(AW$3="","",IF(AND(AW$3>=$AB$7,AW$3<=$AC$7),1069000,"")) ->  | BT7: =IF(AX$3="","",IF(AND(AX$3>=$AB$7,AX$3<=$AC$7),1069000,"")) ->  | BU7: =IF(AY$3="","",IF(AND(AY$3>=$AB$7,AY$3<=$AC$7),1069000,"")) ->  | BV7: =IF(AZ$3="","",IF(AND(AZ$3>=$AB$7,AZ$3<=$AC$7),1069000,"")) ->  | BW7: =IF(BA$3="","",IF(AND(BA$3>=$AB$7,BA$3<=$AC$7),1069000,"")) ->  | BX7: =IF(BB$3="","",IF(AND(BB$3>=$AB$7,BB$3<=$AC$7),1069000,"")) ->  | BY7: =IF(BC$3="","",IF(AND(BC$3>=$AB$7,BC$3<=$AC$7),1069000,"")) -> 
B8: =IF(入力!$K20="","",入力!$K20) ->  | I8: =IF($B8="","",IF($B8>I$5,"",DATEDIF($B8,I$5,"Y"))) ->  | P8: =IF(P$5="","",IF($B8="","",IF($B8>P$5,0,DATEDIF($B8,P$5,"Y")))) ->  | W8: =IF(AND(入力!R20="",P8=""),"",IF(入力!R20="",P8,入力!R20)) ->  | AB8: 1620000 | AC8: 1621999 | AD8: 1,070,000円 | BE8: =IF(AI$3="","",IF(AND(AI$3>=$AB$8,AI$3<=$AC$8),1070000,"")) ->  | BF8: =IF(AJ$3="","",IF(AND(AJ$3>=$AB$8,AJ$3<=$AC$8),1070000,"")) ->  | BP8: =IF(AT$3="","",IF(AND(AT$3>=$AB$8,AT$3<=$AC$8),1070000,"")) ->  | BQ8: =IF(AU$3="","",IF(AND(AU$3>=$AB$8,AU$3<=$AC$8),1070000,"")) ->  | BR8: =IF(AV$3="","",IF(AND(AV$3>=$AB$8,AV$3<=$AC$8),1070000,"")) ->  | BS8: =IF(AW$3="","",IF(AND(AW$3>=$AB$8,AW$3<=$AC$8),1070000,"")) ->  | BT8: =IF(AX$3="","",IF(AND(AX$3>=$AB$8,AX$3<=$AC$8),1070000,"")) ->  | BU8: =IF(AY$3="","",IF(AND(AY$3>=$AB$8,AY$3<=$AC$8),1070000,"")) ->  | BV8: =IF(AZ$3="","",IF(AND(AZ$3>=$AB$8,AZ$3<=$AC$8),1070000,"")) ->  | BW8: =IF(BA$3="","",IF(AND(BA$3>=$AB$8,BA$3<=$AC$8),1070000,"")) ->  | BX8: =IF(BB$3="","",IF(AND(BB$3>=$AB$8,BB$3<=$AC$8),1070000,"")) ->  | BY8: =IF(BC$3="","",IF(AND(BC$3>=$AB$8,BC$3<=$AC$8),1070000,"")) -> 
B9: =IF(入力!$K21="","",入力!$K21) ->  | I9: =IF($B9="","",IF($B9>I$5,"",DATEDIF($B9,I$5,"Y"))) ->  | W9: =IF(AND(入力!R21="",P9=""),"",IF(入力!R21="",P9,入力!R21)) ->  | AB9: 1622000 | AC9: 1623999 | AD9: 1,072,000円 | BE9: =IF(AI$3="","",IF(AND(AI$3>=$AB$9,AI$3<=$AC$9),1072000,"")) ->  | BF9: =IF(AJ$3="","",IF(AND(AJ$3>=$AB$9,AJ$3<=$AC$9),1072000,"")) ->  | BP9: =IF(AT$3="","",IF(AND(AT$3>=$AB$9,AT$3<=$AC$9),1072000,"")) ->  | BQ9: =IF(AU$3="","",IF(AND(AU$3>=$AB$9,AU$3<=$AC$9),1072000,"")) ->  | BR9: =IF(AV$3="","",IF(AND(AV$3>=$AB$9,AV$3<=$AC$9),1072000,"")) ->  | BS9: =IF(AW$3="","",IF(AND(AW$3>=$AB$9,AW$3<=$AC$9),1072000,"")) ->  | BT9: =IF(AX$3="","",IF(AND(AX$3>=$AB$9,AX$3<=$AC$9),1072000,"")) ->  | BU9: =IF(AY$3="","",IF(AND(AY$3>=$AB$9,AY$3<=$AC$9),1072000,"")) ->  | BV9: =IF(AZ$3="","",IF(AND(AZ$3>=$AB$9,AZ$3<=$AC$9),1072000,"")) ->  | BW9: =IF(BA$3="","",IF(AND(BA$3>=$AB$9,BA$3<=$AC$9),1072000,"")) ->  | BX9: =IF(BB$3="","",IF(AND(BB$3>=$AB$9,BB$3<=$AC$9),1072000,"")) ->  | BY9: =IF(BC$3="","",IF(AND(BC$3>=$AB$9,BC$3<=$AC$9),1072000,"")) -> 
B10: =IF(入力!$K22="","",入力!$K22) ->  | W10: =IF(AND(入力!R22="",P10=""),"",IF(入力!R22="",P10,入力!R22)) ->  | AB10: 1624000 | AC10: 1627999 | AD10: 1,074,000円 | BE10: =IF(AI$3="","",IF(AND(AI$3>=$AB$10,AI$3<=$AC$10),1074000,"")) ->  | BF10: =IF(AJ$3="","",IF(AND(AJ$3>=$AB$10,AJ$3<=$AC$10),1074000,"")) ->  | BP10: =IF(AT$3="","",IF(AND(AT$3>=$AB$10,AT$3<=$AC$10),1074000,"")) ->  | BQ10: =IF(AU$3="","",IF(AND(AU$3>=$AB$10,AU$3<=$AC$10),1074000,"")) ->  | BR10: =IF(AV$3="","",IF(AND(AV$3>=$AB$10,AV$3<=$AC$10),1074000,"")) ->  | BS10: =IF(AW$3="","",IF(AND(AW$3>=$AB$10,AW$3<=$AC$10),1074000,"")) ->  | BT10: =IF(AX$3="","",IF(AND(AX$3>=$AB$10,AX$3<=$AC$10),1074000,"")) ->  | BU10: =IF(AY$3="","",IF(AND(AY$3>=$AB$10,AY$3<=$AC$10),1074000,"")) ->  | BV10: =IF(AZ$3="","",IF(AND(AZ$3>=$AB$10,AZ$3<=$AC$10),1074000,"")) ->  | BW10: =IF(BA$3="","",IF(AND(BA$3>=$AB$10,BA$3<=$AC$10),1074000,"")) ->  | BX10: =IF(BB$3="","",IF(AND(BB$3>=$AB$10,BB$3<=$AC$10),1074000,"")) ->  | BY10: =IF(BC$3="","",IF(AND(BC$3>=$AB$10,BC$3<=$AC$10),1074000,"")) -> 
B11: =IF(入力!$K23="","",入力!$K23) ->  | W11: =IF(AND(入力!R23="",P11=""),"",IF(入力!R23="",P11,入力!R23)) ->  | AB11: 1628000 | AC11: 1799999 | AD11: 給与の収入金額を４で割り千円未満の端数切捨て（Ａ） | AF11: Ａ×2.4＋100,000で求めた金額 | BE11: =IF(AI$3="","",IF(AND(AI$3>=$AB$11,AI$3<=$AC$11),ROUNDDOWN(ROUNDDOWN(AI$3/4,-3)*2.4,0)+100000,"")) ->  | BF11: =IF(AJ$3="","",IF(AND(AJ$3>=$AB$11,AJ$3<=$AC$11),ROUNDDOWN(ROUNDDOWN(AJ$3/4,-3)*2.4,0)+100000,"")) ->  | BP11: =IF(AT$3="","",IF(AND(AT$3>=$AB$11,AT$3<=$AC$11),ROUNDDOWN(ROUNDDOWN(AT$3/4,-3)*2.4,0)+100000,"")) ->  | BQ11: =IF(AU$3="","",IF(AND(AU$3>=$AB$11,AU$3<=$AC$11),ROUNDDOWN(ROUNDDOWN(AU$3/4,-3)*2.4,0)+100000,"")) ->  | BR11: =IF(AV$3="","",IF(AND(AV$3>=$AB$11,AV$3<=$AC$11),ROUNDDOWN(ROUNDDOWN(AV$3/4,-3)*2.4,0)+100000,"")) ->  | BS11: =IF(AW$3="","",IF(AND(AW$3>=$AB$11,AW$3<=$AC$11),ROUNDDOWN(ROUNDDOWN(AW$3/4,-3)*2.4,0)+100000,"")) ->  | BT11: =IF(AX$3="","",IF(AND(AX$3>=$AB$11,AX$3<=$AC$11),ROUNDDOWN(ROUNDDOWN(AX$3/4,-3)*2.4,0)+100000,"")) ->  | BU11: =IF(AY$3="","",IF(AND(AY$3>=$AB$11,AY$3<=$AC$11),ROUNDDOWN(ROUNDDOWN(AY$3/4,-3)*2.4,0)+100000,"")) ->  | BV11: =IF(AZ$3="","",IF(AND(AZ$3>=$AB$11,AZ$3<=$AC$11),ROUNDDOWN(ROUNDDOWN(AZ$3/4,-3)*2.4,0)+100000,"")) ->  | BW11: =IF(BA$3="","",IF(AND(BA$3>=$AB$11,BA$3<=$AC$11),ROUNDDOWN(ROUNDDOWN(BA$3/4,-3)*2.4,0)+100000,"")) ->  | BX11: =IF(BB$3="","",IF(AND(BB$3>=$AB$11,BB$3<=$AC$11),ROUNDDOWN(ROUNDDOWN(BB$3/4,-3)*2.4,0)+100000,"")) ->  | BY11: =IF(BC$3="","",IF(AND(BC$3>=$AB$11,BC$3<=$AC$11),ROUNDDOWN(ROUNDDOWN(BC$3/4,-3)*2.4,0)+100000,"")) -> 
B12: =IF(入力!$K24="","",入力!$K24) ->  | W12: =IF(AND(入力!R24="",P12=""),"",IF(入力!R24="",P12,入力!R24)) ->  | AB12: 1800000 | AC12: 3599999 | AF12: Ａ×2.8－80,000円で求めた金額 | BE12: =IF(AI$3="","",IF(AND(AI$3>=$AB$12,AI$3<=$AC$12),ROUNDDOWN(ROUNDDOWN(AI$3/4,-3)*2.8,0)-80000,"")) ->  | BF12: =IF(AJ$3="","",IF(AND(AJ$3>=$AB$12,AJ$3<=$AC$12),ROUNDDOWN(ROUNDDOWN(AJ$3/4,-3)*2.8,0)-80000,"")) ->  | BP12: =IF(AT$3="","",IF(AND(AT$3>=$AB$12,AT$3<=$AC$12),ROUNDDOWN(ROUNDDOWN(AT$3/4,-3)*2.8,0)-80000,"")) ->  | BQ12: =IF(AU$3="","",IF(AND(AU$3>=$AB$12,AU$3<=$AC$12),ROUNDDOWN(ROUNDDOWN(AU$3/4,-3)*2.8,0)-80000,"")) ->  | BR12: =IF(AV$3="","",IF(AND(AV$3>=$AB$12,AV$3<=$AC$12),ROUNDDOWN(ROUNDDOWN(AV$3/4,-3)*2.8,0)-80000,"")) ->  | BS12: =IF(AW$3="","",IF(AND(AW$3>=$AB$12,AW$3<=$AC$12),ROUNDDOWN(ROUNDDOWN(AW$3/4,-3)*2.8,0)-80000,"")) ->  | BT12: =IF(AX$3="","",IF(AND(AX$3>=$AB$12,AX$3<=$AC$12),ROUNDDOWN(ROUNDDOWN(AX$3/4,-3)*2.8,0)-80000,"")) ->  | BU12: =IF(AY$3="","",IF(AND(AY$3>=$AB$12,AY$3<=$AC$12),ROUNDDOWN(ROUNDDOWN(AY$3/4,-3)*2.8,0)-80000,"")) ->  | BV12: =IF(AZ$3="","",IF(AND(AZ$3>=$AB$12,AZ$3<=$AC$12),ROUNDDOWN(ROUNDDOWN(AZ$3/4,-3)*2.8,0)-80000,"")) ->  | BW12: =IF(BA$3="","",IF(AND(BA$3>=$AB$12,BA$3<=$AC$12),ROUNDDOWN(ROUNDDOWN(BA$3/4,-3)*2.8,0)-80000,"")) ->  | BX12: =IF(BB$3="","",IF(AND(BB$3>=$AB$12,BB$3<=$AC$12),ROUNDDOWN(ROUNDDOWN(BB$3/4,-3)*2.8,0)-80000,"")) ->  | BY12: =IF(BC$3="","",IF(AND(BC$3>=$AB$12,BC$3<=$AC$12),ROUNDDOWN(ROUNDDOWN(BC$3/4,-3)*2.8,0)-80000,"")) -> 
B13: =IF(入力!$K25="","",入力!$K25) ->  | W13: =IF(AND(入力!R25="",P13=""),"",IF(入力!R25="",P13,入力!R25)) ->  | AB13: 3600000 | AC13: 6599999 | AF13: Ａ×3.2－440,000円で求めた金額 | BE13: =IF(AI$3="","",IF(AND(AI$3>=$AB$13,AI$3<=$AC$13),ROUNDDOWN(ROUNDDOWN(AI$3/4,-3)*3.2,0)-440000,"")) ->  | BF13: =IF(AJ$3="","",IF(AND(AJ$3>=$AB$13,AJ$3<=$AC$13),ROUNDDOWN(ROUNDDOWN(AJ$3/4,-3)*3.2,0)-440000,"")) ->  | BP13: =IF(AT$3="","",IF(AND(AT$3>=$AB$13,AT$3<=$AC$13),ROUNDDOWN(ROUNDDOWN(AT$3/4,-3)*3.2,0)-440000,"")) ->  | BQ13: =IF(AU$3="","",IF(AND(AU$3>=$AB$13,AU$3<=$AC$13),ROUNDDOWN(ROUNDDOWN(AU$3/4,-3)*3.2,0)-440000,"")) ->  | BR13: =IF(AV$3="","",IF(AND(AV$3>=$AB$13,AV$3<=$AC$13),ROUNDDOWN(ROUNDDOWN(AV$3/4,-3)*3.2,0)-440000,"")) ->  | BS13: =IF(AW$3="","",IF(AND(AW$3>=$AB$13,AW$3<=$AC$13),ROUNDDOWN(ROUNDDOWN(AW$3/4,-3)*3.2,0)-440000,"")) ->  | BT13: =IF(AX$3="","",IF(AND(AX$3>=$AB$13,AX$3<=$AC$13),ROUNDDOWN(ROUNDDOWN(AX$3/4,-3)*3.2,0)-440000,"")) ->  | BU13: =IF(AY$3="","",IF(AND(AY$3>=$AB$13,AY$3<=$AC$13),ROUNDDOWN(ROUNDDOWN(AY$3/4,-3)*3.2,0)-440000,"")) ->  | BV13: =IF(AZ$3="","",IF(AND(AZ$3>=$AB$13,AZ$3<=$AC$13),ROUNDDOWN(ROUNDDOWN(AZ$3/4,-3)*3.2,0)-440000,"")) ->  | BW13: =IF(BA$3="","",IF(AND(BA$3>=$AB$13,BA$3<=$AC$13),ROUNDDOWN(ROUNDDOWN(BA$3/4,-3)*3.2,0)-440000,"")) ->  | BX13: =IF(BB$3="","",IF(AND(BB$3>=$AB$13,BB$3<=$AC$13),ROUNDDOWN(ROUNDDOWN(BB$3/4,-3)*3.2,0)-440000,"")) ->  | BY13: =IF(BC$3="","",IF(AND(BC$3>=$AB$13,BC$3<=$AC$13),ROUNDDOWN(ROUNDDOWN(BC$3/4,-3)*3.2,0)-440000,"")) -> 
B14: =IF(入力!$K26="","",入力!$K26) ->  | W14: =IF(AND(入力!R26="",P14=""),"",IF(入力!R26="",P14,入力!R26)) ->  | AB14: 6600000 | AC14: 8499999 | AD14: 給与の収入金額×0.9－1,100,000円で求めた金額 | BE14: =IF(AI$3="","",IF(AND(AI$3>=$AB$14,AI$3<=$AC$14),ROUNDDOWN(AI$3*0.9,0)-1100000,"")) ->  | BF14: =IF(AJ$3="","",IF(AND(AJ$3>=$AB$14,AJ$3<=$AC$14),ROUNDDOWN(AJ$3*0.9,0)-1100000,"")) ->  | BP14: =IF(AT$3="","",IF(AND(AT$3>=$AB$14,AT$3<=$AC$14),ROUNDDOWN(AT$3*0.9,0)-1100000,"")) ->  | BQ14: =IF(AU$3="","",IF(AND(AU$3>=$AB$14,AU$3<=$AC$14),ROUNDDOWN(AU$3*0.9,0)-1100000,"")) ->  | BR14: =IF(AV$3="","",IF(AND(AV$3>=$AB$14,AV$3<=$AC$14),ROUNDDOWN(AV$3*0.9,0)-1100000,"")) ->  | BS14: =IF(AW$3="","",IF(AND(AW$3>=$AB$14,AW$3<=$AC$14),ROUNDDOWN(AW$3*0.9,0)-1100000,"")) ->  | BT14: =IF(AX$3="","",IF(AND(AX$3>=$AB$14,AX$3<=$AC$14),ROUNDDOWN(AX$3*0.9,0)-1100000,"")) ->  | BU14: =IF(AY$3="","",IF(AND(AY$3>=$AB$14,AY$3<=$AC$14),ROUNDDOWN(AY$3*0.9,0)-1100000,"")) ->  | BV14: =IF(AZ$3="","",IF(AND(AZ$3>=$AB$14,AZ$3<=$AC$14),ROUNDDOWN(AZ$3*0.9,0)-1100000,"")) ->  | BW14: =IF(BA$3="","",IF(AND(BA$3>=$AB$14,BA$3<=$AC$14),ROUNDDOWN(BA$3*0.9,0)-1100000,"")) ->  | BX14: =IF(BB$3="","",IF(AND(BB$3>=$AB$14,BB$3<=$AC$14),ROUNDDOWN(BB$3*0.9,0)-1100000,"")) ->  | BY14: =IF(BC$3="","",IF(AND(BC$3>=$AB$14,BC$3<=$AC$14),ROUNDDOWN(BC$3*0.9,0)-1100000,"")) -> 
B15: =IF(入力!$K27="","",入力!$K27) ->  | W15: =IF(AND(入力!R27="",P15=""),"",IF(入力!R27="",P15,入力!R27)) ->  | AB15: =AC14+1 -> 8500000 | AD15: 給与の収入金額－1,950,000円（※所得金額調整控除は別計算） | BE15: =IF(AI$3="","",IF(AI$3>=$AB$15,AI$3-1950000,"")) ->  | BP15: =IF(AT$3="","",IF(AT$3>=$AB$15,AT$3-1950000,"")) -> 
AB16: 所得金額調整控除サイン | AI16: =IF(入力!$AL$18="","",SUM(入力!$AL$18)) ->  | AJ16: =IF(入力!$AL$19="","",SUM(入力!$AL$19)) ->  | AK16: =IF(入力!$AL$20="","",SUM(入力!$AL$20)) ->  | AL16: =IF(入力!$AL$21="","",SUM(入力!$AL$21)) ->  | AM16: =IF(入力!$AL$22="","",SUM(入力!$AL$22)) ->  | AN16: =IF(入力!$AL$23="","",SUM(入力!$AL$23)) ->  | AO16: =IF(入力!$AL$24="","",SUM(入力!$AL$24)) ->  | AP16: =IF(入力!$AL$25="","",SUM(入力!$AL$25)) ->  | AQ16: =IF(入力!$AL$26="","",SUM(入力!$AL$26)) ->  | AR16: =IF(入力!$AL$27="","",SUM(入力!$AL$27)) ->  | AT16: =IF(入力!$AL$18="","",SUM(入力!$AL$18)) ->  | AU16: =IF(入力!$AL$19="","",SUM(入力!$AL$19)) ->  | AV16: =IF(入力!$AL$20="","",SUM(入力!$AL$20)) ->  | AW16: =IF(入力!$AL$21="","",SUM(入力!$AL$21)) ->  | AX16: =IF(入力!$AL$22="","",SUM(入力!$AL$22)) ->  | AY16: =IF(入力!$AL$23="","",SUM(入力!$AL$23)) ->  | AZ16: =IF(入力!$AL$24="","",SUM(入力!$AL$24)) ->  | BA16: =IF(入力!$AL$25="","",SUM(入力!$AL$25)) ->  | BB16: =IF(入力!$AL$26="","",SUM(入力!$AL$26)) ->  | BC16: =IF(入力!$AL$27="","",SUM(入力!$AL$27)) ->  | BD16: 所得金額調整控除→ | BE16: =IF(AI$16="","",IF(SUM(AI$16)=1,SUM(BE$17),IF(SUM(AI$16)=2,SUM(BE$18),IF(SUM(AI$16)=3,SUM(BE$19),0)))) ->  | BO16: 所得金額調整控除→ | BP16: =IF(AT$16="","",IF(SUM(AT$16)=1,SUM(BP$17),IF(SUM(AT$16)=2,SUM(BP$18),IF(SUM(AT$16)=3,SUM(BP$19),0)))) ->  | BQ16: =IF(AU$16="","",IF(SUM(AU$16)=1,SUM(BQ$17),IF(SUM(AU$16)=2,SUM(BQ$18),IF(SUM(AU$16)=3,SUM(BQ$19),0)))) -> 
BD17: 所得金額調整控除サイン１の場合→ | BE17: =IF(AI$16="","",IF(AND(SUM(AI$16)=1,SUM(AI$3)>8500000,SUM(AI$23)=0),ROUNDDOWN(MAX(0,MIN(10000000,SUM(AI$3))-8500000)*0.1,0),0)) ->  | BF17: =IF(AJ$16="","",IF(AND(SUM(AJ$16)=1,SUM(AJ$3)>8500000,SUM(AJ$23)=0),ROUNDDOWN(MAX(0,MIN(10000000,SUM(AJ$3))-8500000)*0.1,0),0)) ->  | BG17: =IF(AK$16="","",IF(AND(SUM(AK$16)=1,SUM(AK$3)>8500000,SUM(AK$23)=0),ROUNDDOWN(MAX(0,MIN(10000000,SUM(AK$3))-8500000)*0.1,0),0)) ->  | BH17: =IF(AL$16="","",IF(AND(SUM(AL$16)=1,SUM(AL$3)>8500000,SUM(AL$23)=0),ROUNDDOWN(MAX(0,MIN(10000000,SUM(AL$3))-8500000)*0.1,0),0)) ->  | BI17: =IF(AM$16="","",IF(AND(SUM(AM$16)=1,SUM(AM$3)>8500000,SUM(AM$23)=0),ROUNDDOWN(MAX(0,MIN(10000000,SUM(AM$3))-8500000)*0.1,0),0)) ->  | BJ17: =IF(AN$16="","",IF(AND(SUM(AN$16)=1,SUM(AN$3)>8500000,SUM(AN$23)=0),ROUNDDOWN(MAX(0,MIN(10000000,SUM(AN$3))-8500000)*0.1,0),0)) ->  | BK17: =IF(AO$16="","",IF(AND(SUM(AO$16)=1,SUM(AO$3)>8500000,SUM(AO$23)=0),ROUNDDOWN(MAX(0,MIN(10000000,SUM(AO$3))-8500000)*0.1,0),0)) ->  | BL17: =IF(AP$16="","",IF(AND(SUM(AP$16)=1,SUM(AP$3)>8500000,SUM(AP$23)=0),ROUNDDOWN(MAX(0,MIN(10000000,SUM(AP$3))-8500000)*0.1,0),0)) ->  | BM17: =IF(AQ$16="","",IF(AND(SUM(AQ$16)=1,SUM(AQ$3)>8500000,SUM(AQ$23)=0),ROUNDDOWN(MAX(0,MIN(10000000,SUM(AQ$3))-8500000)*0.1,0),0)) ->  | BN17: =IF(AR$16="","",IF(AND(SUM(AR$16)=1,SUM(AR$3)>8500000,SUM(AR$23)=0),ROUNDDOWN(MAX(0,MIN(10000000,SUM(AR$3))-8500000)*0.1,0),0)) ->  | BO17: 所得金額調整控除サイン１の場合→ | BP17: =IF(AT$16="","",IF(AND(SUM(AT$16)=1,SUM(AT$3)>8500000,SUM(AI$23)=0),ROUNDDOWN(MAX(0,MIN(10000000,SUM(AT$3))-8500000)*0.1,0),0)) ->  | BQ17: =IF(AU$16="","",IF(AND(SUM(AU$16)=1,SUM(AU$3)>8500000,SUM(AJ$23)=0),ROUNDDOWN(MAX(0,MIN(10000000,SUM(AU$3))-8500000)*0.1,0),0)) -> 
BD18: 所得金額調整控除サイン２の場合→ | BE18: =IF(AI$16="","",IF(AND(SUM(AI$16)=2,SUM(AI$23)<>0,SUM(AI$3)<=8500000),MAX(0,MIN(100000,SUM(BE$5:BE$15))+MIN(100000,SUM(AI$23))-100000),0)) ->  | BF18: =IF(AJ$16="","",IF(AND(SUM(AJ$16)=2,SUM(AJ$23)<>0,SUM(AJ$3)<=8500000),MAX(0,MIN(100000,SUM(BF$5:BF$15))+MIN(100000,SUM(AJ$23))-100000),0)) ->  | BO18: 所得金額調整控除サイン２の場合→ | BP18: =IF(AT$16="","",IF(AND(SUM(AT$16)=2,SUM(AI$23)<>0,SUM(AT$3)<=8500000),MAX(0,MIN(100000,SUM(BP$5:BP$15))+MIN(100000,SUM(AI$23))-100000),0)) ->  | BQ18: =IF(AU$16="","",IF(AND(SUM(AU$16)=2,SUM(AJ$23)<>0,SUM(AU$3)<=8500000),MAX(0,MIN(100000,SUM(BQ$5:BQ$15))+MIN(100000,SUM(AJ$23))-100000),0)) -> 
BD19: 所得金額調整控除サイン３の場合→ | BE19: =IF(AI$16="","",IF(AND(SUM(AI$16)=3,SUM(AI$23)<>0,SUM(AI$3)>8500000),ROUNDDOWN(MAX(0,MIN(10000000,SUM(AI$3))-8500000)*0.1,0)+MAX(0,MIN(100000,SUM(BE$5:BE$15))+MIN(100000,SUM(AI$23))-100000),0)) ->  | BF19: =IF(AJ$16="","",IF(AND(SUM(AJ$16)=3,SUM(AJ$23)<>0,SUM(AJ$3)>8500000),ROUNDDOWN(MAX(0,MIN(10000000,SUM(AJ$3))-8500000)*0.1,0)+MAX(0,MIN(100000,SUM(BF$5:BF$15))+MIN(100000,SUM(AJ$23))-100000),0)) ->  | BO19: 所得金額調整控除サイン３の場合→ | BP19: =IF(AT$16="","",IF(AND(SUM(AT$16)=3,SUM(AI$23)<>0,SUM(AT$3)>8500000),ROUNDDOWN(MAX(0,MIN(10000000,SUM(AT$3))-8500000)*0.1,0)+MAX(0,MIN(100000,SUM(BP$5:BP$15))+MIN(100000,SUM(AI$23))-100000),0)) ->  | BQ19: =IF(AU$16="","",IF(AND(SUM(AU$16)=3,SUM(AJ$23)<>0,SUM(AU$3)>8500000),ROUNDDOWN(MAX(0,MIN(10000000,SUM(AU$3))-8500000)*0.1,0)+MAX(0,MIN(100000,SUM(BQ$5:BQ$15))+MIN(100000,SUM(AJ$23))-100000),0)) -> 
AB20: 年金所得計算 | AI20: 1 | AJ20: 2 | AK20: 3 | AL20: 4 | AM20: 5 | AN20: 6 | AO20: 7 | AP20: 8 | AQ20: 9 | AR20: 10
A21: 1 | D21: 年金所得に係る 雑所得以外の 合計所得金額 | O21: =入力!DJ18 -> 0 | AC21: 年金収入金額の合計(Ａ) | AE21: 公的年金等所得金額の計算 | AI21: =IF(入力!$AY18="","",入力!$AY18) ->  | AJ21: =IF(入力!$AY19="","",入力!$AY19) ->  | AK21: =IF(入力!$AY20="","",入力!$AY20) ->  | AL21: =IF(入力!$AY21="","",入力!$AY21) ->  | AM21: =IF(入力!$AY22="","",入力!$AY22) ->  | AN21: =IF(入力!$AY23="","",入力!$AY23) ->  | AO21: =IF(入力!$AY24="","",入力!$AY24) ->  | AP21: =IF(入力!$AY25="","",入力!$AY25) ->  | AQ21: =IF(入力!$AY26="","",入力!$AY26) ->  | AR21: =IF(入力!$AY27="","",入力!$AY27) -> 
AI22: =IF(所得計算!$W6="","",所得計算!$W6) ->  | AJ22: =IF(所得計算!$W7="","",所得計算!$W7) ->  | AK22: =IF(所得計算!$W8="","",所得計算!$W8) ->  | AL22: =IF(所得計算!$W9="","",所得計算!$W9) ->  | AM22: =IF(所得計算!$W10="","",所得計算!$W10) ->  | AN22: =IF(所得計算!$W11="","",所得計算!$W11) ->  | AO22: =IF(所得計算!$W12="","",所得計算!$W12) ->  | AP22: =IF(所得計算!$W13="","",所得計算!$W13) ->  | AQ22: =IF(所得計算!$W14="","",所得計算!$W14) ->  | AR22: =IF(所得計算!$W15="","",所得計算!$W15) -> 
A23: 2 | D23: 年金所得に係る 雑所得以外の 合計所得金額 | O23: =入力!DJ19 -> 0 | AC23: から | AD23: まで | AI23: =IF(SUM(AI24:AI35)=0,"",SUM(AI24:AI35)) ->  | AJ23: =IF(SUM(AJ24:AJ35)=0,"",SUM(AJ24:AJ35)) -> 
AB24: ６５歳以上 | AC24: 0 | AD24: 1100000 | AE24: 0円or〈～100,000円〉or《～200,000円》 | AI24: =IF(AI$21="","",IF(AND(SUM(AI$22)>=65,AI$21>=$AC24,AI$21<=$AD24),IF($O$21>20000000,MAX(AI21-900000,0),IF($O$21>10000000,MAX(AI21-1000000,0),0)),"")) ->  | AJ24: =IF(AJ$21="","",IF(AND(SUM(AJ$22)>=65,AJ$21>=$AC24,AJ$21<=$AD24),IF($O$23>20000000,MAX(AJ21-900000,0),IF($O$23>10000000,MAX(AJ21-1000000,0),0)),"")) ->  | AK24: =IF(AK$21="","",IF(AND(SUM(AK$22)>=65,AK$21>=$AC24,AK$21<=$AD24),IF($O$25>20000000,MAX(AK21-900000,0),IF($O$25>10000000,MAX(AK21-1000000,0),0)),"")) ->  | AL24: =IF(AL$21="","",IF(AND(SUM(AL$22)>=65,AL$21>=$AC24,AL$21<=$AD24),IF($O$27>20000000,MAX(AL21-900000,0),IF($O$27>10000000,MAX(AL21-1000000,0),0)),"")) ->  | AM24: =IF(AM$21="","",IF(AND(SUM(AM$22)>=65,AM$21>=$AC24,AM$21<=$AD24),IF($O$29>20000000,MAX(AM21-900000,0),IF($O$29>10000000,MAX(AM21-1000000,0),0)),"")) ->  | AN24: =IF(AN$21="","",IF(AND(SUM(AN$22)>=65,AN$21>=$AC24,AN$21<=$AD24),IF($O$31>20000000,MAX(AN21-900000,0),IF($O$31>10000000,MAX(AN21-1000000,0),0)),"")) ->  | AO24: =IF(AO$21="","",IF(AND(SUM(AO$22)>=65,AO$21>=$AC24,AO$21<=$AD24),IF($O$33>20000000,MAX(AO21-900000,0),IF($O$33>10000000,MAX(AO21-1000000,0),0)),"")) ->  | AP24: =IF(AP$21="","",IF(AND(SUM(AP$22)>=65,AP$21>=$AC24,AP$21<=$AD24),IF($O$35>20000000,MAX(AP21-900000,0),IF($O$35>10000000,MAX(AP21-1000000,0),0)),"")) ->  | AQ24: =IF(AQ$21="","",IF(AND(SUM(AQ$22)>=65,AQ$21>=$AC24,AQ$21<=$AD24),IF($O$37>20000000,MAX(AQ21-900000,0),IF($O$37>10000000,MAX(AQ21-1000000,0),0)),"")) ->  | AR24: =IF(AR$21="","",IF(AND(SUM(AR$22)>=65,AR$21>=$AC24,AR$21<=$AD24),IF($O$39>20000000,MAX(AR21-900000,0),IF($O$39>10000000,MAX(AR21-1000000,0),0)),"")) -> 
A25: 3 | D25: 年金所得に係る 雑所得以外の 合計所得金額 | O25: =入力!DJ20 -> 0 | AC25: =SUM(AD24,1) -> 1100001 | AD25: 3299999 | AE25: (Ａ)－1,100,000円〈1,000,000〉《900,000》 | AI25: =IF(AI$21="","",IF(AND(SUM(AI$22)>=65,AI$21>=$AC25,AI$21<=$AD25),IF($O$21>20000000,MAX(AI21-900000,0),IF($O$21>10000000,MAX(AI21-1000000,0),AI21-1100000)),"")) ->  | AJ25: =IF(AJ$21="","",IF(AND(SUM(AJ$22)>=65,AJ$21>=$AC25,AJ$21<=$AD25),IF($O$23>20000000,MAX(AJ21-900000,0),IF($O$23>10000000,MAX(AJ21-1000000,0),AJ21-1100000)),"")) ->  | AK25: =IF(AK$21="","",IF(AND(SUM(AK$22)>=65,AK$21>=$AC25,AK$21<=$AD25),IF($O$25>20000000,MAX(AK21-900000,0),IF($O$25>10000000,MAX(AK21-1000000,0),AK21-1100000)),"")) ->  | AL25: =IF(AL$21="","",IF(AND(SUM(AL$22)>=65,AL$21>=$AC25,AL$21<=$AD25),IF($O$27>20000000,MAX(AL21-900000,0),IF($O$27>10000000,MAX(AL21-1000000,0),AL21-1100000)),"")) ->  | AM25: =IF(AM$21="","",IF(AND(SUM(AM$22)>=65,AM$21>=$AC25,AM$21<=$AD25),IF($O$29>20000000,MAX(AM21-900000,0),IF($O$29>10000000,MAX(AM21-1000000,0),AM21-1100000)),"")) ->  | AN25: =IF(AN$21="","",IF(AND(SUM(AN$22)>=65,AN$21>=$AC25,AN$21<=$AD25),IF($O$31>20000000,MAX(AN21-900000,0),IF($O$31>10000000,MAX(AN21-1000000,0),AN21-1100000)),"")) ->  | AO25: =IF(AO$21="","",IF(AND(SUM(AO$22)>=65,AO$21>=$AC25,AO$21<=$AD25),IF($O$33>20000000,MAX(AO21-900000,0),IF($O$33>10000000,MAX(AO21-1000000,0),AO21-1100000)),"")) ->  | AP25: =IF(AP$21="","",IF(AND(SUM(AP$22)>=65,AP$21>=$AC25,AP$21<=$AD25),IF($O$35>20000000,MAX(AP21-900000,0),IF($O$35>10000000,MAX(AP21-1000000,0),AP21-1100000)),"")) ->  | AQ25: =IF(AQ$21="","",IF(AND(SUM(AQ$22)>=65,AQ$21>=$AC25,AQ$21<=$AD25),IF($O$37>20000000,MAX(AQ21-900000,0),IF($O$37>10000000,MAX(AQ21-1000000,0),AQ21-1100000)),"")) ->  | AR25: =IF(AR$21="","",IF(AND(SUM(AR$22)>=65,AR$21>=$AC25,AR$21<=$AD25),IF($O$39>20000000,MAX(AR21-900000,0),IF($O$39>10000000,MAX(AR21-1000000,0),AR21-1100000)),"")) -> 
AC26: =SUM(AD25,1) -> 3300000 | AD26: 4099999 | AE26: (Ａ)×75％－275,000円〈175,000〉《75,000》 | AI26: =IF(AI$21="","",IF(AND(SUM(AI$22)>=65,AI$21>=$AC26,AI$21<=$AD26),IF($O$21>20000000,ROUNDDOWN(AI$21*75/100,0)-75000,IF($O$21>10000000,ROUNDDOWN(AI$21*75/100,0)-175000,ROUNDDOWN(AI$21*75/100,0)-275000)),"")) ->  | AJ26: =IF(AJ$21="","",IF(AND(SUM(AJ$22)>=65,AJ$21>=$AC26,AJ$21<=$AD26),IF($O$23>20000000,ROUNDDOWN(AJ$21*75/100,0)-75000,IF($O$23>10000000,ROUNDDOWN(AJ$21*75/100,0)-175000,ROUNDDOWN(AJ$21*75/100,0)-275000)),"")) ->  | AK26: =IF(AK$21="","",IF(AND(SUM(AK$22)>=65,AK$21>=$AC26,AK$21<=$AD26),IF($O$25>20000000,ROUNDDOWN(AK$21*75/100,0)-75000,IF($O$25>10000000,ROUNDDOWN(AK$21*75/100,0)-175000,ROUNDDOWN(AK$21*75/100,0)-275000)),"")) ->  | AL26: =IF(AL$21="","",IF(AND(SUM(AL$22)>=65,AL$21>=$AC26,AL$21<=$AD26),IF($O$27>20000000,ROUNDDOWN(AL$21*75/100,0)-75000,IF($O$27>10000000,ROUNDDOWN(AL$21*75/100,0)-175000,ROUNDDOWN(AL$21*75/100,0)-275000)),"")) ->  | AM26: =IF(AM$21="","",IF(AND(SUM(AM$22)>=65,AM$21>=$AC26,AM$21<=$AD26),IF($O$29>20000000,ROUNDDOWN(AM$21*75/100,0)-75000,IF($O$29>10000000,ROUNDDOWN(AM$21*75/100,0)-175000,ROUNDDOWN(AM$21*75/100,0)-275000)),"")) ->  | AN26: =IF(AN$21="","",IF(AND(SUM(AN$22)>=65,AN$21>=$AC26,AN$21<=$AD26),IF($O$31>20000000,ROUNDDOWN(AN$21*75/100,0)-75000,IF($O$31>10000000,ROUNDDOWN(AN$21*75/100,0)-175000,ROUNDDOWN(AN$21*75/100,0)-275000)),"")) ->  | AO26: =IF(AO$21="","",IF(AND(SUM(AO$22)>=65,AO$21>=$AC26,AO$21<=$AD26),IF($O$33>20000000,ROUNDDOWN(AO$21*75/100,0)-75000,IF($O$33>10000000,ROUNDDOWN(AO$21*75/100,0)-175000,ROUNDDOWN(AO$21*75/100,0)-275000)),"")) ->  | AP26: =IF(AP$21="","",IF(AND(SUM(AP$22)>=65,AP$21>=$AC26,AP$21<=$AD26),IF($O$35>20000000,ROUNDDOWN(AP$21*75/100,0)-75000,IF($O$35>10000000,ROUNDDOWN(AP$21*75/100,0)-175000,ROUNDDOWN(AP$21*75/100,0)-275000)),"")) ->  | AQ26: =IF(AQ$21="","",IF(AND(SUM(AQ$22)>=65,AQ$21>=$AC26,AQ$21<=$AD26),IF($O$37>20000000,ROUNDDOWN(AQ$21*75/100,0)-75000,IF($O$37>10000000,ROUNDDOWN(AQ$21*75/100,0)-175000,ROUNDDOWN(AQ$21*75/100,0)-275000)),"")) ->  | AR26: =IF(AR$21="","",IF(AND(SUM(AR$22)>=65,AR$21>=$AC26,AR$21<=$AD26),IF($O$39>20000000,ROUNDDOWN(AR$21*75/100,0)-75000,IF($O$39>10000000,ROUNDDOWN(AR$21*75/100,0)-175000,ROUNDDOWN(AR$21*75/100,0)-275000)),"")) -> 
A27: 4 | D27: 年金所得に係る 雑所得以外の 合計所得金額 | O27: =入力!DJ21 -> 0 | AC27: =SUM(AD26,1) -> 4100000 | AD27: 7699999 | AE27: (Ａ)×85％－685,000円〈585,000〉《485,000》 | AI27: =IF(AI$21="","",IF(AND(SUM(AI$22)>=65,AI$21>=$AC27,AI$21<=$AD27),IF($O$21>20000000,ROUNDDOWN(AI$21*85/100,0)-485000,IF($O$21>10000000,ROUNDDOWN(AI$21*85/100,0)-585000,ROUNDDOWN(AI$21*85/100,0)-685000)),"")) ->  | AJ27: =IF(AJ$21="","",IF(AND(SUM(AJ$22)>=65,AJ$21>=$AC27,AJ$21<=$AD27),IF($O$23>20000000,ROUNDDOWN(AJ$21*85/100,0)-485000,IF($O$23>10000000,ROUNDDOWN(AJ$21*85/100,0)-585000,ROUNDDOWN(AJ$21*85/100,0)-685000)),"")) ->  | AK27: =IF(AK$21="","",IF(AND(SUM(AK$22)>=65,AK$21>=$AC27,AK$21<=$AD27),IF($O$25>20000000,ROUNDDOWN(AK$21*85/100,0)-485000,IF($O$25>10000000,ROUNDDOWN(AK$21*85/100,0)-585000,ROUNDDOWN(AK$21*85/100,0)-685000)),"")) ->  | AL27: =IF(AL$21="","",IF(AND(SUM(AL$22)>=65,AL$21>=$AC27,AL$21<=$AD27),IF($O$27>20000000,ROUNDDOWN(AL$21*85/100,0)-485000,IF($O$27>10000000,ROUNDDOWN(AL$21*85/100,0)-585000,ROUNDDOWN(AL$21*85/100,0)-685000)),"")) ->  | AM27: =IF(AM$21="","",IF(AND(SUM(AM$22)>=65,AM$21>=$AC27,AM$21<=$AD27),IF($O$29>20000000,ROUNDDOWN(AM$21*85/100,0)-485000,IF($O$29>10000000,ROUNDDOWN(AM$21*85/100,0)-585000,ROUNDDOWN(AM$21*85/100,0)-685000)),"")) ->  | AN27: =IF(AN$21="","",IF(AND(SUM(AN$22)>=65,AN$21>=$AC27,AN$21<=$AD27),IF($O$31>20000000,ROUNDDOWN(AN$21*85/100,0)-485000,IF($O$31>10000000,ROUNDDOWN(AN$21*85/100,0)-585000,ROUNDDOWN(AN$21*85/100,0)-685000)),"")) ->  | AO27: =IF(AO$21="","",IF(AND(SUM(AO$22)>=65,AO$21>=$AC27,AO$21<=$AD27),IF($O$33>20000000,ROUNDDOWN(AO$21*85/100,0)-485000,IF($O$33>10000000,ROUNDDOWN(AO$21*85/100,0)-585000,ROUNDDOWN(AO$21*85/100,0)-685000)),"")) ->  | AP27: =IF(AP$21="","",IF(AND(SUM(AP$22)>=65,AP$21>=$AC27,AP$21<=$AD27),IF($O$35>20000000,ROUNDDOWN(AP$21*85/100,0)-485000,IF($O$35>10000000,ROUNDDOWN(AP$21*85/100,0)-585000,ROUNDDOWN(AP$21*85/100,0)-685000)),"")) ->  | AQ27: =IF(AQ$21="","",IF(AND(SUM(AQ$22)>=65,AQ$21>=$AC27,AQ$21<=$AD27),IF($O$37>20000000,ROUNDDOWN(AQ$21*85/100,0)-485000,IF($O$37>10000000,ROUNDDOWN(AQ$21*85/100,0)-585000,ROUNDDOWN(AQ$21*85/100,0)-685000)),"")) ->  | AR27: =IF(AR$21="","",IF(AND(SUM(AR$22)>=65,AR$21>=$AC27,AR$21<=$AD27),IF($O$39>20000000,ROUNDDOWN(AR$21*85/100,0)-485000,IF($O$39>10000000,ROUNDDOWN(AR$21*85/100,0)-585000,ROUNDDOWN(AR$21*85/100,0)-685000)),"")) -> 
AC28: =SUM(AD27,1) -> 7700000 | AD28: 9999999 | AE28: (Ａ)×95％－1,455,000円〈1,355,000〉《1,255,000》 | AI28: =IF(AI$21="","",IF(AND(SUM(AI$22)>=65,AI$21>=$AC28,AI$21<=$AD28),IF($O$21>20000000,ROUNDDOWN(AI$21*95/100,0)-1255000,IF($O$21>10000000,ROUNDDOWN(AI$21*95/100,0)-1355000,ROUNDDOWN(AI$21*95/100,0)-1455000)),"")) ->  | AJ28: =IF(AJ$21="","",IF(AND(SUM(AJ$22)>=65,AJ$21>=$AC28,AJ$21<=$AD28),IF($O$23>20000000,ROUNDDOWN(AJ$21*95/100,0)-1255000,IF($O$23>10000000,ROUNDDOWN(AJ$21*95/100,0)-1355000,ROUNDDOWN(AJ$21*95/100,0)-1455000)),"")) ->  | AK28: =IF(AK$21="","",IF(AND(SUM(AK$22)>=65,AK$21>=$AC28,AK$21<=$AD28),IF($O$25>20000000,ROUNDDOWN(AK$21*95/100,0)-1255000,IF($O$25>10000000,ROUNDDOWN(AK$21*95/100,0)-1355000,ROUNDDOWN(AK$21*95/100,0)-1455000)),"")) ->  | AL28: =IF(AL$21="","",IF(AND(SUM(AL$22)>=65,AL$21>=$AC28,AL$21<=$AD28),IF($O$27>20000000,ROUNDDOWN(AL$21*95/100,0)-1255000,IF($O$27>10000000,ROUNDDOWN(AL$21*95/100,0)-1355000,ROUNDDOWN(AL$21*95/100,0)-1455000)),"")) ->  | AM28: =IF(AM$21="","",IF(AND(SUM(AM$22)>=65,AM$21>=$AC28,AM$21<=$AD28),IF($O$29>20000000,ROUNDDOWN(AM$21*95/100,0)-1255000,IF($O$29>10000000,ROUNDDOWN(AM$21*95/100,0)-1355000,ROUNDDOWN(AM$21*95/100,0)-1455000)),"")) ->  | AN28: =IF(AN$21="","",IF(AND(SUM(AN$22)>=65,AN$21>=$AC28,AN$21<=$AD28),IF($O$31>20000000,ROUNDDOWN(AN$21*95/100,0)-1255000,IF($O$31>10000000,ROUNDDOWN(AN$21*95/100,0)-1355000,ROUNDDOWN(AN$21*95/100,0)-1455000)),"")) ->  | AO28: =IF(AO$21="","",IF(AND(SUM(AO$22)>=65,AO$21>=$AC28,AO$21<=$AD28),IF($O$33>20000000,ROUNDDOWN(AO$21*95/100,0)-1255000,IF($O$33>10000000,ROUNDDOWN(AO$21*95/100,0)-1355000,ROUNDDOWN(AO$21*95/100,0)-1455000)),"")) ->  | AP28: =IF(AP$21="","",IF(AND(SUM(AP$22)>=65,AP$21>=$AC28,AP$21<=$AD28),IF($O$35>20000000,ROUNDDOWN(AP$21*95/100,0)-1255000,IF($O$35>10000000,ROUNDDOWN(AP$21*95/100,0)-1355000,ROUNDDOWN(AP$21*95/100,0)-1455000)),"")) ->  | AQ28: =IF(AQ$21="","",IF(AND(SUM(AQ$22)>=65,AQ$21>=$AC28,AQ$21<=$AD28),IF($O$37>20000000,ROUNDDOWN(AQ$21*95/100,0)-1255000,IF($O$37>10000000,ROUNDDOWN(AQ$21*95/100,0)-1355000,ROUNDDOWN(AQ$21*95/100,0)-1455000)),"")) ->  | AR28: =IF(AR$21="","",IF(AND(SUM(AR$22)>=65,AR$21>=$AC28,AR$21<=$AD28),IF($O$39>20000000,ROUNDDOWN(AR$21*95/100,0)-1255000,IF($O$39>10000000,ROUNDDOWN(AR$21*95/100,0)-1355000,ROUNDDOWN(AR$21*95/100,0)-1455000)),"")) -> 
A29: 5 | D29: 年金所得に係る 雑所得以外の 合計所得金額 | O29: =入力!DJ22 -> 0 | AC29: 10000000 | AE29: (Ａ)－1,955,000円〈1,855,000〉《1,755,000》 | AI29: =IF(AI$21="","",IF(AND(SUM(AI$22)>=65,AI$21>=$AC29),IF($O$21>20000000,MAX(AI21-1755000,0),IF($O$21>10000000,MAX(AI21-1855000,0),AI21-1955000)),"")) ->  | AJ29: =IF(AJ$21="","",IF(AND(SUM(AJ$22)>=65,AJ$21>=$AC29),IF($O$23>20000000,MAX(AJ21-1755000,0),IF($O$23>10000000,MAX(AJ21-1855000,0),AJ21-1955000)),"")) ->  | AK29: =IF(AK$21="","",IF(AND(SUM(AK$22)>=65,AK$21>=$AC29),IF($O$25>20000000,MAX(AK21-1755000,0),IF($O$25>10000000,MAX(AK21-1855000,0),AK21-1955000)),"")) ->  | AL29: =IF(AL$21="","",IF(AND(SUM(AL$22)>=65,AL$21>=$AC29),IF($O$27>20000000,MAX(AL21-1755000,0),IF($O$27>10000000,MAX(AL21-1855000,0),AL21-1955000)),"")) ->  | AM29: =IF(AM$21="","",IF(AND(SUM(AM$22)>=65,AM$21>=$AC29),IF($O$29>20000000,MAX(AM21-1755000,0),IF($O$29>10000000,MAX(AM21-1855000,0),AM21-1955000)),"")) ->  | AN29: =IF(AN$21="","",IF(AND(SUM(AN$22)>=65,AN$21>=$AC29),IF($O$31>20000000,MAX(AN21-1755000,0),IF($O$31>10000000,MAX(AN21-1855000,0),AN21-1955000)),"")) ->  | AO29: =IF(AO$21="","",IF(AND(SUM(AO$22)>=65,AO$21>=$AC29),IF($O$33>20000000,MAX(AO21-1755000,0),IF($O$33>10000000,MAX(AO21-1855000,0),AO21-1955000)),"")) ->  | AP29: =IF(AP$21="","",IF(AND(SUM(AP$22)>=65,AP$21>=$AC29),IF($O$35>20000000,MAX(AP21-1755000,0),IF($O$35>10000000,MAX(AP21-1855000,0),AP21-1955000)),"")) ->  | AQ29: =IF(AQ$21="","",IF(AND(SUM(AQ$22)>=65,AQ$21>=$AC29),IF($O$37>20000000,MAX(AQ21-1755000,0),IF($O$37>10000000,MAX(AQ21-1855000,0),AQ21-1955000)),"")) ->  | AR29: =IF(AR$21="","",IF(AND(SUM(AR$22)>=65,AR$21>=$AC29),IF($O$39>20000000,MAX(AR21-1755000,0),IF($O$39>10000000,MAX(AR21-1855000,0),AR21-1955000)),"")) -> 
AB30: ６５歳未満 | AC30: 0 | AD30: 600000 | AE30: 0円or〈～100,000円〉or《～200,000円》 | AI30: =IF(AI$21="","",IF(AND(SUM(AI$22)<65,AI$21>=$AC30,AI$21<=$AD30),IF($O$21>20000000,MAX(AI21-400000,0),IF($O$21>10000000,MAX(AI21-500000,0),0)),"")) ->  | AJ30: =IF(AJ$21="","",IF(AND(SUM(AJ$22)<65,AJ$21>=$AC30,AJ$21<=$AD30),IF($O$23>20000000,MAX(AJ21-400000,0),IF($O$23>10000000,MAX(AJ21-500000,0),0)),"")) ->  | AK30: =IF(AK$21="","",IF(AND(SUM(AK$22)<65,AK$21>=$AC30,AK$21<=$AD30),IF($O$25>20000000,MAX(AK21-400000,0),IF($O$25>10000000,MAX(AK21-500000,0),0)),"")) ->  | AL30: =IF(AL$21="","",IF(AND(SUM(AL$22)<65,AL$21>=$AC30,AL$21<=$AD30),IF($O$27>20000000,MAX(AL21-400000,0),IF($O$27>10000000,MAX(AL21-500000,0),0)),"")) ->  | AM30: =IF(AM$21="","",IF(AND(SUM(AM$22)<65,AM$21>=$AC30,AM$21<=$AD30),IF($O$29>20000000,MAX(AM21-400000,0),IF($O$29>10000000,MAX(AM21-500000,0),0)),"")) ->  | AN30: =IF(AN$21="","",IF(AND(SUM(AN$22)<65,AN$21>=$AC30,AN$21<=$AD30),IF($O$31>20000000,MAX(AN21-400000,0),IF($O$31>10000000,MAX(AN21-500000,0),0)),"")) ->  | AO30: =IF(AO$21="","",IF(AND(SUM(AO$22)<65,AO$21>=$AC30,AO$21<=$AD30),IF($O$33>20000000,MAX(AO21-400000,0),IF($O$33>10000000,MAX(AO21-500000,0),0)),"")) ->  | AP30: =IF(AP$21="","",IF(AND(SUM(AP$22)<65,AP$21>=$AC30,AP$21<=$AD30),IF($O$35>20000000,MAX(AP21-400000,0),IF($O$35>10000000,MAX(AP21-500000,0),0)),"")) ->  | AQ30: =IF(AQ$21="","",IF(AND(SUM(AQ$22)<65,AQ$21>=$AC30,AQ$21<=$AD30),IF($O$37>20000000,MAX(AQ21-400000,0),IF($O$37>10000000,MAX(AQ21-500000,0),0)),"")) ->  | AR30: =IF(AR$21="","",IF(AND(SUM(AR$22)<65,AR$21>=$AC30,AR$21<=$AD30),IF($O$39>20000000,MAX(AR21-400000,0),IF($O$39>10000000,MAX(AR21-500000,0),0)),"")) -> 
A31: 6 | D31: 年金所得に係る 雑所得以外の 合計所得金額 | O31: =入力!DJ23 -> 0 | AC31: =SUM(AD30,1) -> 600001 | AD31: 1299999 | AE31: (Ａ)－600,000円〈500,000〉《400,000》 | AI31: =IF(AI$21="","",IF(AND(SUM(AI$22)<65,AI$21>=$AC31,AI$21<=$AD31),IF($O$21>20000000,MAX(AI21-400000,0),IF($O$21>10000000,MAX(AI21-500000,0),AI21-600000)),"")) ->  | AJ31: =IF(AJ$21="","",IF(AND(SUM(AJ$22)<65,AJ$21>=$AC31,AJ$21<=$AD31),IF($O$23>20000000,MAX(AJ21-400000,0),IF($O$23>10000000,MAX(AJ21-500000,0),AJ21-600000)),"")) ->  | AK31: =IF(AK$21="","",IF(AND(SUM(AK$22)<65,AK$21>=$AC31,AK$21<=$AD31),IF($O$25>20000000,MAX(AK21-400000,0),IF($O$25>10000000,MAX(AK21-500000,0),AK21-600000)),"")) ->  | AL31: =IF(AL$21="","",IF(AND(SUM(AL$22)<65,AL$21>=$AC31,AL$21<=$AD31),IF($O$27>20000000,MAX(AL21-400000,0),IF($O$27>10000000,MAX(AL21-500000,0),AL21-600000)),"")) ->  | AM31: =IF(AM$21="","",IF(AND(SUM(AM$22)<65,AM$21>=$AC31,AM$21<=$AD31),IF($O$29>20000000,MAX(AM21-400000,0),IF($O$29>10000000,MAX(AM21-500000,0),AM21-600000)),"")) ->  | AN31: =IF(AN$21="","",IF(AND(SUM(AN$22)<65,AN$21>=$AC31,AN$21<=$AD31),IF($O$31>20000000,MAX(AN21-400000,0),IF($O$31>10000000,MAX(AN21-500000,0),AN21-600000)),"")) ->  | AO31: =IF(AO$21="","",IF(AND(SUM(AO$22)<65,AO$21>=$AC31,AO$21<=$AD31),IF($O$33>20000000,MAX(AO21-400000,0),IF($O$33>10000000,MAX(AO21-500000,0),AO21-600000)),"")) ->  | AP31: =IF(AP$21="","",IF(AND(SUM(AP$22)<65,AP$21>=$AC31,AP$21<=$AD31),IF($O$35>20000000,MAX(AP21-400000,0),IF($O$35>10000000,MAX(AP21-500000,0),AP21-600000)),"")) ->  | AQ31: =IF(AQ$21="","",IF(AND(SUM(AQ$22)<65,AQ$21>=$AC31,AQ$21<=$AD31),IF($O$37>20000000,MAX(AQ21-400000,0),IF($O$37>10000000,MAX(AQ21-500000,0),AQ21-600000)),"")) ->  | AR31: =IF(AR$21="","",IF(AND(SUM(AR$22)<65,AR$21>=$AC31,AR$21<=$AD31),IF($O$39>20000000,MAX(AR21-400000,0),IF($O$39>10000000,MAX(AR21-500000,0),AR21-600000)),"")) -> 
AC32: =SUM(AD31,1) -> 1300000 | AD32: 4099999 | AE32: (Ａ)×75％－275,000円〈175,000〉《75,000》 | AI32: =IF(AI$21="","",IF(AND(SUM(AI$22)<65,AI$21>=$AC32,AI$21<=$AD32),IF($O$21>20000000,ROUNDDOWN(AI$21*75/100,0)-75000,IF($O$21>10000000,ROUNDDOWN(AI$21*75/100,0)-175000,ROUNDDOWN(AI$21*75/100,0)-275000)),"")) ->  | AJ32: =IF(AJ$21="","",IF(AND(SUM(AJ$22)<65,AJ$21>=$AC32,AJ$21<=$AD32),IF($O$23>20000000,ROUNDDOWN(AJ$21*75/100,0)-75000,IF($O$23>10000000,ROUNDDOWN(AJ$21*75/100,0)-175000,ROUNDDOWN(AJ$21*75/100,0)-275000)),"")) ->  | AK32: =IF(AK$21="","",IF(AND(SUM(AK$22)<65,AK$21>=$AC32,AK$21<=$AD32),IF($O$25>20000000,ROUNDDOWN(AK$21*75/100,0)-75000,IF($O$25>10000000,ROUNDDOWN(AK$21*75/100,0)-175000,ROUNDDOWN(AK$21*75/100,0)-275000)),"")) ->  | AL32: =IF(AL$21="","",IF(AND(SUM(AL$22)<65,AL$21>=$AC32,AL$21<=$AD32),IF($O$27>20000000,ROUNDDOWN(AL$21*75/100,0)-75000,IF($O$27>10000000,ROUNDDOWN(AL$21*75/100,0)-175000,ROUNDDOWN(AL$21*75/100,0)-275000)),"")) ->  | AM32: =IF(AM$21="","",IF(AND(SUM(AM$22)<65,AM$21>=$AC32,AM$21<=$AD32),IF($O$29>20000000,ROUNDDOWN(AM$21*75/100,0)-75000,IF($O$29>10000000,ROUNDDOWN(AM$21*75/100,0)-175000,ROUNDDOWN(AM$21*75/100,0)-275000)),"")) ->  | AN32: =IF(AN$21="","",IF(AND(SUM(AN$22)<65,AN$21>=$AC32,AN$21<=$AD32),IF($O$31>20000000,ROUNDDOWN(AN$21*75/100,0)-75000,IF($O$31>10000000,ROUNDDOWN(AN$21*75/100,0)-175000,ROUNDDOWN(AN$21*75/100,0)-275000)),"")) ->  | AO32: =IF(AO$21="","",IF(AND(SUM(AO$22)<65,AO$21>=$AC32,AO$21<=$AD32),IF($O$33>20000000,ROUNDDOWN(AO$21*75/100,0)-75000,IF($O$33>10000000,ROUNDDOWN(AO$21*75/100,0)-175000,ROUNDDOWN(AO$21*75/100,0)-275000)),"")) ->  | AP32: =IF(AP$21="","",IF(AND(SUM(AP$22)<65,AP$21>=$AC32,AP$21<=$AD32),IF($O$35>20000000,ROUNDDOWN(AP$21*75/100,0)-75000,IF($O$35>10000000,ROUNDDOWN(AP$21*75/100,0)-175000,ROUNDDOWN(AP$21*75/100,0)-275000)),"")) ->  | AQ32: =IF(AQ$21="","",IF(AND(SUM(AQ$22)<65,AQ$21>=$AC32,AQ$21<=$AD32),IF($O$37>20000000,ROUNDDOWN(AQ$21*75/100,0)-75000,IF($O$37>10000000,ROUNDDOWN(AQ$21*75/100,0)-175000,ROUNDDOWN(AQ$21*75/100,0)-275000)),"")) ->  | AR32: =IF(AR$21="","",IF(AND(SUM(AR$22)<65,AR$21>=$AC32,AR$21<=$AD32),IF($O$39>20000000,ROUNDDOWN(AR$21*75/100,0)-75000,IF($O$39>10000000,ROUNDDOWN(AR$21*75/100,0)-175000,ROUNDDOWN(AR$21*75/100,0)-275000)),"")) -> 
A33: 7 | D33: 年金所得に係る 雑所得以外の 合計所得金額 | O33: =入力!DJ24 -> 0 | AC33: =SUM(AD32,1) -> 4100000 | AD33: 7699999 | AE33: (Ａ)×85％－785,000円〈585,000〉《485,000》 | AI33: =IF(AI$21="","",IF(AND(SUM(AI$22)<65,AI$21>=$AC33,AI$21<=$AD33),IF($O$21>20000000,ROUNDDOWN(AI$21*85/100,0)-485000,IF($O$21>10000000,ROUNDDOWN(AI$21*85/100,0)-585000,ROUNDDOWN(AI$21*85/100,0)-685000)),"")) ->  | AJ33: =IF(AJ$21="","",IF(AND(SUM(AJ$22)<65,AJ$21>=$AC33,AJ$21<=$AD33),IF($O$23>20000000,ROUNDDOWN(AJ$21*85/100,0)-485000,IF($O$23>10000000,ROUNDDOWN(AJ$21*85/100,0)-585000,ROUNDDOWN(AJ$21*85/100,0)-685000)),"")) ->  | AK33: =IF(AK$21="","",IF(AND(SUM(AK$22)<65,AK$21>=$AC33,AK$21<=$AD33),IF($O$25>20000000,ROUNDDOWN(AK$21*85/100,0)-485000,IF($O$25>10000000,ROUNDDOWN(AK$21*85/100,0)-585000,ROUNDDOWN(AK$21*85/100,0)-685000)),"")) ->  | AL33: =IF(AL$21="","",IF(AND(SUM(AL$22)<65,AL$21>=$AC33,AL$21<=$AD33),IF($O$27>20000000,ROUNDDOWN(AL$21*85/100,0)-485000,IF($O$27>10000000,ROUNDDOWN(AL$21*85/100,0)-585000,ROUNDDOWN(AL$21*85/100,0)-685000)),"")) ->  | AM33: =IF(AM$21="","",IF(AND(SUM(AM$22)<65,AM$21>=$AC33,AM$21<=$AD33),IF($O$29>20000000,ROUNDDOWN(AM$21*85/100,0)-485000,IF($O$29>10000000,ROUNDDOWN(AM$21*85/100,0)-585000,ROUNDDOWN(AM$21*85/100,0)-685000)),"")) ->  | AN33: =IF(AN$21="","",IF(AND(SUM(AN$22)<65,AN$21>=$AC33,AN$21<=$AD33),IF($O$31>20000000,ROUNDDOWN(AN$21*85/100,0)-485000,IF($O$31>10000000,ROUNDDOWN(AN$21*85/100,0)-585000,ROUNDDOWN(AN$21*85/100,0)-685000)),"")) ->  | AO33: =IF(AO$21="","",IF(AND(SUM(AO$22)<65,AO$21>=$AC33,AO$21<=$AD33),IF($O$33>20000000,ROUNDDOWN(AO$21*85/100,0)-485000,IF($O$33>10000000,ROUNDDOWN(AO$21*85/100,0)-585000,ROUNDDOWN(AO$21*85/100,0)-685000)),"")) ->  | AP33: =IF(AP$21="","",IF(AND(SUM(AP$22)<65,AP$21>=$AC33,AP$21<=$AD33),IF($O$35>20000000,ROUNDDOWN(AP$21*85/100,0)-485000,IF($O$35>10000000,ROUNDDOWN(AP$21*85/100,0)-585000,ROUNDDOWN(AP$21*85/100,0)-685000)),"")) ->  | AQ33: =IF(AQ$21="","",IF(AND(SUM(AQ$22)<65,AQ$21>=$AC33,AQ$21<=$AD33),IF($O$37>20000000,ROUNDDOWN(AQ$21*85/100,0)-485000,IF($O$37>10000000,ROUNDDOWN(AQ$21*85/100,0)-585000,ROUNDDOWN(AQ$21*85/100,0)-685000)),"")) ->  | AR33: =IF(AR$21="","",IF(AND(SUM(AR$22)<65,AR$21>=$AC33,AR$21<=$AD33),IF($O$39>20000000,ROUNDDOWN(AR$21*85/100,0)-485000,IF($O$39>10000000,ROUNDDOWN(AR$21*85/100,0)-585000,ROUNDDOWN(AR$21*85/100,0)-685000)),"")) -> 
AC34: =SUM(AD33,1) -> 7700000 | AD34: 9999999 | AE34: (Ａ)×95％－1,555,000円〈1,855,000〉《1,755,000》 | AI34: =IF(AI$21="","",IF(AND(SUM(AI$22)<65,AI$21>=$AC34,AI$21<=$AD34),IF($O$21>20000000,ROUNDDOWN(AI$21*95/100,0)-1255000,IF($O$21>10000000,ROUNDDOWN(AI$21*95/100,0)-1355000,ROUNDDOWN(AI$21*95/100,0)-1455000)),"")) ->  | AJ34: =IF(AJ$21="","",IF(AND(SUM(AJ$22)<65,AJ$21>=$AC34,AJ$21<=$AD34),IF($O$23>20000000,ROUNDDOWN(AJ$21*95/100,0)-1255000,IF($O$23>10000000,ROUNDDOWN(AJ$21*95/100,0)-1355000,ROUNDDOWN(AJ$21*95/100,0)-1455000)),"")) ->  | AK34: =IF(AK$21="","",IF(AND(SUM(AK$22)<65,AK$21>=$AC34,AK$21<=$AD34),IF($O$25>20000000,ROUNDDOWN(AK$21*95/100,0)-1255000,IF($O$25>10000000,ROUNDDOWN(AK$21*95/100,0)-1355000,ROUNDDOWN(AK$21*95/100,0)-1455000)),"")) ->  | AL34: =IF(AL$21="","",IF(AND(SUM(AL$22)<65,AL$21>=$AC34,AL$21<=$AD34),IF($O$27>20000000,ROUNDDOWN(AL$21*95/100,0)-1255000,IF($O$27>10000000,ROUNDDOWN(AL$21*95/100,0)-1355000,ROUNDDOWN(AL$21*95/100,0)-1455000)),"")) ->  | AM34: =IF(AM$21="","",IF(AND(SUM(AM$22)<65,AM$21>=$AC34,AM$21<=$AD34),IF($O$29>20000000,ROUNDDOWN(AM$21*95/100,0)-1255000,IF($O$29>10000000,ROUNDDOWN(AM$21*95/100,0)-1355000,ROUNDDOWN(AM$21*95/100,0)-1455000)),"")) ->  | AN34: =IF(AN$21="","",IF(AND(SUM(AN$22)<65,AN$21>=$AC34,AN$21<=$AD34),IF($O$31>20000000,ROUNDDOWN(AN$21*95/100,0)-1255000,IF($O$31>10000000,ROUNDDOWN(AN$21*95/100,0)-1355000,ROUNDDOWN(AN$21*95/100,0)-1455000)),"")) ->  | AO34: =IF(AO$21="","",IF(AND(SUM(AO$22)<65,AO$21>=$AC34,AO$21<=$AD34),IF($O$33>20000000,ROUNDDOWN(AO$21*95/100,0)-1255000,IF($O$33>10000000,ROUNDDOWN(AO$21*95/100,0)-1355000,ROUNDDOWN(AO$21*95/100,0)-1455000)),"")) ->  | AP34: =IF(AP$21="","",IF(AND(SUM(AP$22)<65,AP$21>=$AC34,AP$21<=$AD34),IF($O$35>20000000,ROUNDDOWN(AP$21*95/100,0)-1255000,IF($O$35>10000000,ROUNDDOWN(AP$21*95/100,0)-1355000,ROUNDDOWN(AP$21*95/100,0)-1455000)),"")) ->  | AQ34: =IF(AQ$21="","",IF(AND(SUM(AQ$22)<65,AQ$21>=$AC34,AQ$21<=$AD34),IF($O$37>20000000,ROUNDDOWN(AQ$21*95/100,0)-1255000,IF($O$37>10000000,ROUNDDOWN(AQ$21*95/100,0)-1355000,ROUNDDOWN(AQ$21*95/100,0)-1455000)),"")) ->  | AR34: =IF(AR$21="","",IF(AND(SUM(AR$22)<65,AR$21>=$AC34,AR$21<=$AD34),IF($O$39>20000000,ROUNDDOWN(AR$21*95/100,0)-1255000,IF($O$39>10000000,ROUNDDOWN(AR$21*95/100,0)-1355000,ROUNDDOWN(AR$21*95/100,0)-1455000)),"")) -> 
A35: 8 | D35: 年金所得に係る 雑所得以外の 合計所得金額 | O35: =入力!DJ25 -> 0 | AC35: 10000000 | AE35: (Ａ)－1,955,000円〈1,855,000〉《1,755,000》 | AI35: =IF(AI$21="","",IF(AND(SUM(AI$22)<65,AI$21>=$AC35),IF($O$21>20000000,MAX(AI21-1755000,0),IF($O$21>10000000,MAX(AI21-1855000,0),AI21-1955000)),"")) ->  | AJ35: =IF(AJ$21="","",IF(AND(SUM(AJ$22)<65,AJ$21>=$AC35),IF($O$23>20000000,MAX(AJ21-1755000,0),IF($O$23>10000000,MAX(AJ21-1855000,0),AJ21-1955000)),"")) ->  | AK35: =IF(AK$21="","",IF(AND(SUM(AK$22)<65,AK$21>=$AC35),IF($O$25>20000000,MAX(AK21-1755000,0),IF($O$25>10000000,MAX(AK21-1855000,0),AK21-1955000)),"")) ->  | AL35: =IF(AL$21="","",IF(AND(SUM(AL$22)<65,AL$21>=$AC35),IF($O$27>20000000,MAX(AL21-1755000,0),IF($O$27>10000000,MAX(AL21-1855000,0),AL21-1955000)),"")) ->  | AM35: =IF(AM$21="","",IF(AND(SUM(AM$22)<65,AM$21>=$AC35),IF($O$29>20000000,MAX(AM21-1755000,0),IF($O$29>10000000,MAX(AM21-1855000,0),AM21-1955000)),"")) ->  | AN35: =IF(AN$21="","",IF(AND(SUM(AN$22)<65,AN$21>=$AC35),IF($O$31>20000000,MAX(AN21-1755000,0),IF($O$31>10000000,MAX(AN21-1855000,0),AN21-1955000)),"")) ->  | AO35: =IF(AO$21="","",IF(AND(SUM(AO$22)<65,AO$21>=$AC35),IF($O$33>20000000,MAX(AO21-1755000,0),IF($O$33>10000000,MAX(AO21-1855000,0),AO21-1955000)),"")) ->  | AP35: =IF(AP$21="","",IF(AND(SUM(AP$22)<65,AP$21>=$AC35),IF($O$35>20000000,MAX(AP21-1755000,0),IF($O$35>10000000,MAX(AP21-1855000,0),AP21-1955000)),"")) ->  | AQ35: =IF(AQ$21="","",IF(AND(SUM(AQ$22)<65,AQ$21>=$AC35),IF($O$37>20000000,MAX(AQ21-1755000,0),IF($O$37>10000000,MAX(AQ21-1855000,0),AQ21-1955000)),"")) ->  | AR35: =IF(AR$21="","",IF(AND(SUM(AR$22)<65,AR$21>=$AC35),IF($O$39>20000000,MAX(AR21-1755000,0),IF($O$39>10000000,MAX(AR21-1855000,0),AR21-1955000)),"")) -> 
AB36: 軽減判定の際６５歳以上は，年金所得から１５万円引く ⇒ ⇒ ⇒ ⇒ ⇒ | AH36: =SUM(AI36:AR36) -> 0 | AI36: =IF(SUM(AI22)>=65,IF(SUM(AI23)>150000,150000,SUM(AI23)),"") ->  | AJ36: =IF(SUM(AJ22)>=65,IF(SUM(AJ23)>150000,150000,SUM(AJ23)),"") -> 
A37: 9 | D37: 年金所得に係る 雑所得以外の 合計所得金額 | O37: =入力!DJ26 -> 0
A39: 10 | D39: 年金所得に係る 雑所得以外の 合計所得金額 | O39: =入力!DJ27 -> 0

Sheet 軽減について (hidden)
B1: 軽減判定基準額（２・５・７割軽減）について
B2: １ 判定となる世帯の所得金額とは，擬主を含む世帯主，被保険者及び特定同一世帯所属者数の
B3: 所得の合計額
B4: ２ 国民健康保険に加入したまま，７５歳を迎えることにより後期高齢者医療制度へ移行した方
B5: を，特定同一世帯所属者と言います。
M6: 軽減判定対象 | S6: 所得割 計算対象 | V6: 備考
M8: 人数 | P8: 所得 | S8: 所得
D9: 世帯主（被保険者） | M9: ○ | P9: ○ | S9: ○
D11: 擬主 | M11: × | P11: ○ | S11: × | V11: 擬主は軽減判定の際，所得金額は関係するが，人数には入れない。
D13: その他被保険者 | M13: ○ | P13: ○ | S13: ○
D15: 特定同一世帯所属者 | M15: ○ | P15: ○ | S15: ×
D17: 専従者 給与（控除） | J17: 主 | M17: － | P17: ○ 収入 | S17: × | V17: 所得割：経費OR控除後 軽減：専従者給与収入金額を判定所得に入れる
J19: 専従者 | P19: × | S19: ○ | V19: 所得割：給与収入として給与所得が計算対象 軽減：対象外（対象所得に入れない）
D21: 損失の繰越控除 | J21: 純 | M21: － | P21: ○ | S21: × | V21: 所得割：繰越控除後，軽減：繰越控除後
J22: 雑 | P22: ○ | S22: ○ | V22: 所得割：繰越控除前，軽減：繰越控除後
B24: 特定世帯及び特定継続世帯の平等割額の軽減について
B25: １ 特定同一世帯所属者になられたことによって，国保加入者が一人になる世帯は，特定同一世
B26: 帯所属者になられた月から５年間，国民健康保険税のうち平等割額の２分の１が軽減されま
B27: す（特定世帯）。
B28: また，５年を経過した後も３年間，平等割額の４分の１が軽減されます（特定継続世帯）。
B30: 《２・５・７割軽減と特定世帯及び特定継続世帯の平等割額の軽減の例》
C31: 当年度 | L31: ８月
C32: 国保 | E32: Ａ 8月で75歳 | L32: 後期 高齢 | N32: Ａ | Q32: 特定同一世帯所属者 国民健康保険に加入したまま，７５歳を迎えることにより後期高齢者医療制度へ移行した方を，特定同一世帯所属者という。
E34: Ｂ 10月で74歳 | L34: 国保 | N34: Ｂ | Q34: ２・５・７割軽減の判定（4/1時点）～判定人数：Ａ・Ｂ・Ｃの３人 ※年度途中に特定同一世帯所属者が出ても再判定しない。 ※特定世帯及び特定継続世帯の平等割額の軽減にはならない。
E36: Ｃ 6月で60歳 | N36: Ｃ
E38: 年度当初は，３人が国保 | L38: ８月から２人が国保
C41: 次年度 | L41: 10月
C42: 国保 | E42: Ａ 8月で76歳 | L42: 後期 高齢 | N42: Ａ | Q42: 特定同一世帯所属者 国民健康保険に加入したまま，７５歳を迎えることにより後期高齢者医療制度へ移行した方を，特定同一世帯所属者という。
E44: Ｂ 10月で75歳 | N44: Ｂ
E46: Ｃ 6月で61歳 | L46: 国保 | N46: Ｃ | Q46: ２・５・７割軽減の判定（4/1時点）～判定人数：Ａ・Ｂ・Ｃの３人 ※年度途中に特定同一世帯所属者が出ても再判定しない。 Ａは昨年度に特定同一世帯所属者となったが，判定に含める。 ※特定世帯及び特定継続世帯の平等割額の軽減を受けることになる。
E48: 年度当初は，２人が国保，後期高齢は１人 | L48: １０月から１人のみ国保

Sheet 基礎控除 (hidden)
B2: 合計所得金額 | D2: 基礎控除額 | F2: 被保険者 | G2: 合計所得金額 | H2: 基礎控除額
B3: から | C3: まで | F3: 1 | G3: =IF(入力!DC18="","",入力!DC18) ->  | H3: =IF($G3="","",VLOOKUP($G3,$B$4:$D$7,3,TRUE)) -> 
B4: 0 | C4: 24000000 | D4: 430000 | F4: 2 | G4: =IF(入力!DC19="","",入力!DC19) ->  | H4: =IF($G4="","",VLOOKUP($G4,$B$4:$D$7,3,TRUE)) -> 
B5: =C4+1 -> 24000001 | C5: 24500000 | D5: 290000 | F5: 3 | G5: =IF(入力!DC20="","",入力!DC20) -> 
B6: =C5+1 -> 24500001 | C6: 25000000 | D6: 150000 | F6: 4 | G6: =IF(入力!DC21="","",入力!DC21) -> 
B7: =C6+1 -> 25000001 | D7: 0 | F7: 5 | G7: =IF(入力!DC22="","",入力!DC22) -> 
F8: 6 | G8: =IF(入力!DC23="","",入力!DC23) -> 
F9: 7 | G9: =IF(入力!DC24="","",入力!DC24) -> 
F10: 8 | G10: =IF(入力!DC25="","",入力!DC25) -> 
F11: 9 | G11: =IF(入力!DC26="","",入力!DC26) -> 
F12: 10 | G12: =IF(入力!DC27="","",入力!DC27) -> 

Sheet 未就学児 (hidden)
C2: =基本項目!E2 -> 未就学児 基準日 | D2: =基本項目!E3 -> 2024-04-01
B4: 被保険者 | C4: 生年月日 | D4: 年齢直接入力 | E4: 未就学児基準日の年齢 | F4: 未就学児 判定
B6: 1 | C6: =IF(入力!K18="","",入力!K18) ->  | D6: =IF(入力!U18="","",入力!U18) ->  | E6: =IF(AND(C6="",D6=""),"",IF(C6<>"",DATEDIF(C6,$D$2,"y"),D6)) ->  | F6: =IF(E6="","",IF(E6<=6,1,"")) -> 
B7: 2 | C7: =IF(入力!K19="","",入力!K19) ->  | D7: =IF(入力!U19="","",入力!U19) ->  | E7: =IF(AND(C7="",D7=""),"",IF(C7<>"",DATEDIF(C7,$D$2,"y"),D7)) ->  | F7: =IF(E7="","",IF(E7<=6,1,"")) -> 
B8: 3 | C8: =IF(入力!K20="","",入力!K20) ->  | D8: =IF(入力!U20="","",入力!U20) ->  | F8: =IF(E8="","",IF(E8<=6,1,"")) -> 
B9: 4 | C9: =IF(入力!K21="","",入力!K21) ->  | D9: =IF(入力!U21="","",入力!U21) -> 
B10: 5 | C10: =IF(入力!K22="","",入力!K22) ->  | D10: =IF(入力!U22="","",入力!U22) -> 
B11: 6 | C11: =IF(入力!K23="","",入力!K23) ->  | D11: =IF(入力!U23="","",入力!U23) -> 
B12: 7 | C12: =IF(入力!K24="","",入力!K24) ->  | D12: =IF(入力!U24="","",入力!U24) -> 
B13: 8 | C13: =IF(入力!K25="","",入力!K25) ->  | D13: =IF(入力!U25="","",入力!U25) -> 
B14: 9 | C14: =IF(入力!K26="","",入力!K26) ->  | D14: =IF(入力!U26="","",入力!U26) -> 
B15: 10 | C15: =IF(入力!K27="","",入力!K27) ->  | D15: =IF(入力!U27="","",入力!U27) -> 
